Workbook

Sheet Lotto5 DL560 Gen10 1
C1: TOTALE PRODOTTI CONVENZIONE | D1: =H10 -> 0 | G1: =IF(D105=" OK",0,1) -> 0 | H1: =IF(G1+G2=0,(D1+D2),"ERRORE VERIFICARE LA CONFIGURAZIONE") -> 0
C2: TOTALE ARTICOLI 20% | D2: =H11 -> 0
B3: Indicare qui la quantità Server -----> | D3: 0 | H3: =Riepilogo!T6 -> ver. 3.3 | CD3: 0
A4: Tecnologie Server 2 Lotto 5 Prestazionale DL560 Gen10
A5: Tecnologie Server 2 Lotto 5 Prestazionale DL560 Gen10
D10: Totale Server e Opzioni | H10: =F17*SRV_A -> 0
A11: Components: Server HPE Proliant DL560 Gen10 (2CPU Intel® Xeon-Gold 5220) | D11: Totale Ulteriori Opzioni | H11: =G17*SRV_A -> 0
D13: TOTALE CONVENZIONE | H13: =H11+H10 -> 0
F15: 6078
B16: Quantity: | C16: =SRV_A -> 0 | F16: =SUM(F20:F222) -> 0
F17: =SUM(F15:F16) -> 6078 | G17: =SUM(G20:G216) -> 10
B19: Base
B20: HPE DL560 Gen10 8SFF CTO Server | C20: 1 | E20: 841730-B21
B22: Configurazione dello chassis
B23: HPE DL560 Gen10 8SFF HDD Bay2 Kit | C23: 1 | E23: 872235-B21
B25: Processore
B26: Intel Xeon-Gold 5220 (2.2GHz/18-core/125W) | C26: 2 | E26: 840389-L21
B27: HPE DL560 Gen10 Intel® Xeon-Gold 5118 (2.3GHz/12-core/105W) Processor | C27: 1 | E27: 840399-B21
B29: Processore aggiuntivo
B30: No Additional Processor | C30: =VLOOKUP($B$30, CPU_A, 2, FALSE) -> 0 | D30: =VLOOKUP($B$30, CPU_A, 3, FALSE) ->  | E30: 840399-L21 | F30: =VLOOKUP(B30, CPU_A, 12, FALSE) -> 0
B32: Mezz Board Option
B33: =VLOOKUP($B$30, CPU_A, 6, FALSE) ->  | C33: =VLOOKUP($B$30, CPU_A, 7, FALSE) ->  | E33: =VLOOKUP($B$30, CPU_A, 8, FALSE) -> 
B35: Memoria Totale in GB | C35: =IF(F30=2584,IF(B36=64,"ATTENZIONE: AUMENTARE LA RAM",""),"") -> 
B36: 128 (DIMM 32GB)
B38: Capacità di memoria
B39: =IF($B$30="No Additional Processor",VLOOKUP($B$36, MEM_A1, 8, FALSE),VLOOKUP($B$36, MEM_A2, 8, FALSE)) -> HPE 32GB 2Rx4 PC4-2933 Smart Kit | C39: =IF($B$30="No Additional Processor",VLOOKUP($B$36, MEM_A1, 9, FALSE),VLOOKUP($B$36, MEM_A2, 9, FALSE)) -> 4 | E39: =IF($B$30="No Additional Processor",VLOOKUP($B$36, MEM_A1, 10, FALSE),VLOOKUP($B$36, MEM_A2, 10, FALSE)) -> 815100-B21
B41: =IF($B$30="No Additional Processor",VLOOKUP($B$36, MEM_A1, 2, FALSE),VLOOKUP($B$36, MEM_A2, 2, FALSE)) -> HPE 32GB 2Rx4 PC4-2933 Smart Kit | C41: =IF($B$30="No Additional Processor",VLOOKUP($B$36, MEM_A1, 3, FALSE),VLOOKUP($B$36, MEM_A2, 3, FALSE)) -> 4 | D41: =IF($B$30="No Additional Processor",VLOOKUP($B$36, MEM_A1, 4, FALSE),VLOOKUP($B$36, MEM_A2, 4, FALSE)) ->  | E41: =IF($B$30="No Additional Processor",VLOOKUP($B$36, MEM_A1, 6, FALSE),VLOOKUP($B$36, MEM_A2, 6, FALSE)) -> 815100-B21 | F41: =IF($B$30="No Additional Processor",VLOOKUP($B$36, MEM_A1, 7, FALSE),VLOOKUP($B$36, MEM_A2, 7, FALSE)) -> 0
B42: =IF($B$30="No Additional Processor",VLOOKUP($B$36, MEM_A1, 11, FALSE),VLOOKUP($B$36, MEM_A2, 11, FALSE)) ->  | C42: =IF($B$30="No Additional Processor",VLOOKUP($B$36, MEM_A1, 12, FALSE),VLOOKUP($B$36, MEM_A2, 12, FALSE)) ->  | D42: =IF($B$30="No Additional Processor",VLOOKUP($B$36, MEM_A1, 13, FALSE),VLOOKUP($B$36, MEM_A2, 13, FALSE)) ->  | E42: =IF($B$30="No Additional Processor",VLOOKUP($B$36, MEM_A1, 15, FALSE),VLOOKUP($B$36, MEM_A2, 15, FALSE)) ->  | F42: =IF($B$30="No Additional Processor",VLOOKUP($B$36, MEM_A1, 16, FALSE),VLOOKUP($B$36, MEM_A2, 16, FALSE)) -> 
B45: Sistema operativo preinstallato
B46: No Operating System | C46: =VLOOKUP($B$46, OS_A, 2, FALSE) ->  | D46: =VLOOKUP($B$46, OS_A, 3, FALSE) ->  | E46: =VLOOKUP($B$46, OS_A, 5, FALSE) ->  | F46: =VLOOKUP($B$46, OS_A, 6, FALSE) -> 
B47: =IF($B$30="No Additional Processor",VLOOKUP($B$46, OS_A, 19, FALSE),VLOOKUP($B$46, OS_A2, 19, FALSE)) ->  | C47: =IF($B$30="No Additional Processor",VLOOKUP($B$46, OS_A, 20, FALSE),VLOOKUP($B$46, OS_A2, 20, FALSE)) -> 0 | D47: =IF($B$30="No Additional Processor",VLOOKUP($B$46, OS_A, 21, FALSE),VLOOKUP($B$46, OS_A2, 21, FALSE)) ->  | E47: =IF($B$30="No Additional Processor",VLOOKUP($B$46, OS_A, 23, FALSE),VLOOKUP($B$46, OS_A2, 23, FALSE)) ->  | F47: =IF($B$30="No Additional Processor",VLOOKUP($B$46, OS_A, 24, FALSE)*C47,VLOOKUP($B$46, OS_A2, 24, FALSE)*C47) -> 0
B48: =IF($B$30="No Additional Processor",VLOOKUP($B$46, OS_A, 25, FALSE),VLOOKUP($B$46, OS_A2, 25, FALSE)) ->  | C48: =IF($B$30="No Additional Processor",VLOOKUP($B$46, OS_A, 26, FALSE),VLOOKUP($B$46, OS_A2, 26, FALSE)) -> 0 | D48: =IF($B$30="No Additional Processor",VLOOKUP($B$46, OS_A, 27, FALSE),VLOOKUP($B$46, OS_A2, 27, FALSE)) ->  | E48: =IF($B$30="No Additional Processor",VLOOKUP($B$46, OS_A, 29, FALSE),VLOOKUP($B$46, OS_A2, 29, FALSE)) ->  | F48: =IF($B$30="No Additional Processor",VLOOKUP($B$46, OS_A, 30, FALSE)*C48,VLOOKUP($B$46, OS_A2, 30, FALSE)*C48) -> 0
B50: Client Access Licenses
B51: =VLOOKUP($B$46, OS_A, 7, FALSE) -> None | C51: 0 | D51: =VLOOKUP($B$46, OS_A, 9, FALSE) ->  | E51: =VLOOKUP($B$46, OS_A, 11, FALSE) ->  | F51: =VLOOKUP($B$46, OS_A, 12, FALSE)*C51 -> 0
B53: =VLOOKUP($B$46, OS_A, 13, FALSE) -> None | C53: 0 | D53: =VLOOKUP($B$46, OS_A, 15, FALSE) ->  | E53: =VLOOKUP($B$46, OS_A, 17, FALSE) ->  | F53: =VLOOKUP($B$46, OS_A, 18, FALSE)*C53 -> 0
B55: VMware vSphere
B56: None | C56: =IF(D56="",0,(C26+C30)) -> 0 | D56: =VLOOKUP($B$56,vmware, 3, FALSE) ->  | E56: =VLOOKUP($B$56,vmware, 5, FALSE) ->  | G56: =VLOOKUP($B$56,vmware, 6, FALSE)*C56 -> 0
B57: VMware vSphere Essentials Plus
B58: None | C58: =VLOOKUP($B$58,vmwareplus, 2, FALSE) -> 0 | D58: =VLOOKUP($B$58,vmwareplus, 3, FALSE) ->  | E58: =VLOOKUP($B$58,vmwareplus, 5, FALSE) ->  | G58: =VLOOKUP($B$58,vmwareplus, 6, FALSE)*C58 -> 0
B59: VMware vCenter Server
B60: None | C60: =VLOOKUP($B$60,vmwarevcenter, 2, FALSE) -> 0 | D60: =VLOOKUP($B$60,vmwarevcenter, 3, FALSE) ->  | E60: =VLOOKUP($B$60,vmwarevcenter, 5, FALSE) ->  | G60: =VLOOKUP($B$60, vmwarevcenter, 6, FALSE)*C60 -> 0
B61: VMware vSAN
B62: None | C62: =IF(D62="",0,($C$26+$C$30)) -> 0 | D62: =VLOOKUP($B$62,vmvsan, 3, FALSE) ->  | E62: =VLOOKUP($B$62,vmvsan, 5, FALSE) ->  | G62: =VLOOKUP($B$62,vmvsan, 6, FALSE)*C62 -> 0
B65: HPE OneView Advanced (with HPE iLO Advanced)
B66: None | C66: =VLOOKUP($B$66, OpzOVAdv, 2, FALSE) -> 0 | D66: =VLOOKUP($B$66, OpzOVAdv, 3, FALSE) ->  | E66: =VLOOKUP($B$66, OpzOVAdv, 5, FALSE) ->  | G66: =VLOOKUP($B$66, OpzOVAdv, 6, FALSE) -> 0
B68: Configurazione dello chassis
B69: HPE DL560 Gen10 NVMe 8 SSD Express Bay Kit (opzione disponibile con 4 CPU) | C69: 0 | D69: =VLOOKUP($C$69, HDD_NVMe, 2, FALSE) ->  | E69: =VLOOKUP($C$69, HDD_NVMe, 4, FALSE) -> 0 | G69: =VLOOKUP($C$69, HDD_NVMe, 5, FALSE) -> 0
B72: HPE DL560 Gen10 8SFF HDD Bay1 Kit | C72: 0 | D72: =IF(C69+C72=2,"TS2L5-HDDBAY",VLOOKUP($C$72,HDD_BAY1,2,FALSE)) ->  | E72: =VLOOKUP($C$72, HDD_BAY1, 4, FALSE) -> 0 | G72: =IF(C69+C72=2,"191,00",VLOOKUP($C$72,HDD_BAY1,5,FALSE)) -> 0
B74: Controller RAID
B75: HPE Smart Array P816i-a SR Gen10 | C75: =VLOOKUP($B$75, _Array, 2, FALSE) -> 1 | D75: =VLOOKUP($B$75, _Array, 3, FALSE) ->  | E75: =VLOOKUP($B$75, _Array, 5, FALSE) -> 869083-B21 | G75: =VLOOKUP($B$75, _Array, 6, FALSE) -> 
B77: =VLOOKUP($B$75, _Array, 7, FALSE) -> HPE 96W Smart Storage Battery with 145mm Cable Kit | C77: =VLOOKUP($B$75, _Array, 8, FALSE) -> 1 | D77: =VLOOKUP($B$75, _Array, 9, FALSE) ->  | E77: =VLOOKUP($B$75, _Array, 10, FALSE) -> P01366-B21
B79: =IF(C72=0,"",IF(C69+C72=2,"","HPE DL5x0 Gen10 12Gb SAS Expander Card Kit with Cables")) ->  | C79: =IF(C72=0,"",IF(C69+C72=2,"",1)) ->  | D79: =IF(C72=0,"",IF(C69+C72=2,"","TS2L5-SASBAY1")) ->  | E79: =IF(C72=0,"",IF(C69+C72=2,"","873444-B21")) -> 
B81: =IF(5+E72+E69=5,"Dischi rigidi SAS/SSD (numero massimo totale 16)",IF(5+E72+E69=8,"Dischi rigidi SAS/SSD (numero massimo totale 16)",IF(5+E72+E69=6,"Dischi rigidi SAS/SSD (numero massimo totale 24)",IF(5+E72+E69=7,"Dischi rigidi SAS/SSD (numero massimo totale 8)")))) -> Dischi rigidi SAS/SSD (numero massimo totale 16)
B82: HPE 300GB SAS 15K SFF SC DS HDD | C82: 2 | E82: 870753-B21
B84: HPE 300GB SAS 15K SFF SC DS HDD | C84: 2 | D84: TS2L5-15K300 | E84: 872475-B21 | F84: =IF(C84<=2,0,C84-2)*137 -> 0
B86: HPE 1.2TB SAS 10K SFF SC DS HDD | C86: 0 | D86: TS2L5-10K1200 | E86: 872479-B21 | F86: =C86*146 -> 0
A88: HDD SAS | B88: HPE 1.8TB SAS 10K SFF SC 512e DS HDD | C88: 0 | D88: TS2L5-10K1800 | E88: 872481-B21 | F88: =C88*190 -> 0
B91: HPE 400GB SAS 12G Mixed Use SFF (2.5in) SC DS SSD | C91: 0 | D91: TS2L5-SSD400MU | E91: P09088-B21 | G91: =C91*622 -> 0
B93: HPE 400GB SAS 12G Write Intensive SFF (2.5in) SC DS SSD | C93: 0 | D93: TS2L5-SSD400WIB | E93: P09098-B21 | G93: =C93*959 -> 0
B95: HPE 800GB SAS 12G Mixed Use SFF (2.5in) SC DS SSD | C95: 0 | D95: TS2L5-SSD800MU | E95: P09090-B21 | G95: =C95*980 -> 0
A96: SSD SAS
B97: HPE 960GB SAS 12G Mixed Use SC SAS DS SSD | C97: 0 | D97: TS2L5-SSD960MU | E97: P10448-B21 | G97: =C97*864 -> 0
B99: HPE 960GB SAS RI SFF SC DS SSD | C99: 0 | D99: TS2L5-SSDR960 | E99: P06584-B21 | F99: =C99*664 -> 0
B101: HPE 1.92TB SAS 12G Read Intensive SFF | C101: 0 | D101: TS2L5-SSDR1920 | E101: P06586-B21 | F101: =C101*1313 -> 0
B103: HPE 3.84TB SAS 12G Read Intensive SFF (2.5in) SC | C103: 0 | D103: TS2L5-SSD3840RI | E103: P04521-B21 | G103: =C103*2066 -> 0
E104: =IF(C105<=E105,0,1) -> 0
B105: DISCHI TOTALI | C105: =SUM(C84:C101) -> 2 | D105: =IF(C105<=E105," OK"," ERRORE: Totale n° di dischi superiore al consentito") -> OK | E105: =IF(5+E72+E69=5,16,IF(5+E72+E69=7,8,IF(5+E72+E69=6,24,IF(5+E72+E69=8,16)))) -> 16
E106: =E104+E123 -> 0
B108: HPE 375GB NVMe x4 Lanes Write Intensive SFF (2.5in) SCN | C108: 0 | D108: TS2L5-375NVMEWI | E108: 878014-B21 | G108: =C108*2398 -> 0
B110: HPE 750GB NVMe x4 Write Intensive SFF (2.5in) SCN | C110: 0 | D110: TS2L5-750NVMEWI | E110: P06952-B21 | G110: =C110*4797 -> 0
B112: HPE 800GB NVMe x4 Lanes Mixed Use SFF (2.5in) SCN | C112: 0 | D112: TS2L5-800NVMEMU | E112: P13668-B21 | G112: =C112*900 -> 0
B114: HPE 2TB NVMe x4 Lanes Read Intensive SFF (2.5in) SCN | C114: 0 | D114: TS2L5-2000NVMERI | E114: P13695-B21 | G114: =C114*1912 -> 0
A115: NVMe SSD
A116: NVMe SSD | B116: HPE 3.84TB SAS 12G Read Intensive SFF (2.5in) SC | C116: 0 | D116: TS2L5-SSD3840RI | E116: P04521-B21 | G116: =C116*2066 -> 0
B118: HPE 4TB NVMe x4 Lanes Read Intensive SFF (2.5in) SCN | C118: 0 | D118: TS2L5-4000NVMERI | E118: P13697-B21 | G118: =C118*3748 -> 0
B120: HPE 1.6TB NVMe x4 Lanes Mixed Use SFF (2.5in) SCN | C120: 0 | D120: TS2L5-1600NVMEMU | E120: P13699-B21 | G120: =C120*1569 -> 0
B122: HPE 3.2TB NVMe x4 Lanes Mixed Use SFF (2.5in) SCN | C122: 0 | D122: TS2L5-3200NVMEMU | E122: P13701-B21 | G122: =C122*3452 -> 0
E123: =IF(C124<=8,0,1) -> 0
B124: DISCHI NVMe TOTALI | C124: =SUM(C108:C122) -> 0 | D124: =IF(C124<=8," OK"," ERRORE: Totale n° di dischi NVMe superiore al consentito") -> OK
B126: NOTE sulla configurazione (CAMPO OBBLIGATORIO)
A127: =IF(E123+E104=0,"","ERRORE: Totale n° di dischi superiore al consentito") ->  | B127: Specificare la configurazione RAID per l'installazione del Sistema Operativo, se richiesto. e/o inserire eventuali note. | E127: Specificare la configurazione RAID per l'installazione del Sistema Operativo, se richiesto. e/o inserire eventuali note. | H127: =IF(B127=E127,"ERRORE: Compilare il campo NOTE","") -> ERRORE: Compilare il campo NOTE
B128: Configurazione RAID con HDD 300GB
B129: RAID 1 (2 HDDs) | C129: 1 | E129: =VLOOKUP($B$129, RAID_A1, 2, FALSE) -> 
B130: Hot Spare for 300GB HDD | C130: No
B132: Configurazione RAID con HDD 1TB
C133: 1 | E133: =VLOOKUP($B$133, RAID_A2, 2, FALSE) -> 
B134: Hot Spare for 1TB HDD | C134: No
B136: Micro SD (USB Flash Drive)
B137: None | C137: =VLOOKUP($B$137,microsd, 2, FALSE) -> 0 | D137: =VLOOKUP($B$137,microsd, 3, FALSE) ->  | E137: =VLOOKUP($B$137,microsd, 5, FALSE) ->  | G137: =VLOOKUP($B$137, microsd, 6, FALSE)*C137 -> 0
B139: Alimentatore
B140: HPE 1600W Flex Slot Platinum Hot Plug Low Halogen Power Supply Kit | C140: 2 | E140: 830272-B21
B142: PCIe Riser
B143: Primary, Secondary Riser & Tertiary Riser Kit | C143: 1 | E143: 870548-B21 - 872253-B21
B145: Secondary Riser | C145: 0 | D145: =VLOOKUP($C$145, Riser2, 2, FALSE) ->  | E145: =VLOOKUP($C$145, Riser2, 3, FALSE) ->  | F145: =VLOOKUP($C$145, Riser2, 4, FALSE) ->  | G145: =VLOOKUP($C$145, Riser2, 5, FALSE) -> 0 | H145: =IF(C145+C147=2,"ERRORE - SELEZIONARE SOLO UNA SECONDARY RISER","") -> 
B147: Secondary Riser for GPU (abilita l'installazione della GPU P2000 su slot 5) | C147: 0 | D147: =VLOOKUP($C$147, Riser2GPU, 2, FALSE) ->  | E147: =VLOOKUP($C$147, Riser2GPU, 3, FALSE) ->  | F147: =VLOOKUP($C$147, Riser2GPU, 4, FALSE) ->  | G147: =VLOOKUP($C$147, Riser2GPU, 5, FALSE) -> 0
B149: Tertiary riser | C149: 0 | D149: =VLOOKUP($C$149, Riser3, 2, FALSE) ->  | E149: =VLOOKUP($C$149, Riser3, 3, FALSE) ->  | F149: =VLOOKUP($C$149, Riser3, 4, FALSE) ->  | G149: =VLOOKUP($C$149, Riser3, 5, FALSE) -> 0
B151: Scheda FlexibleLOM
B152: HPE Ethernet 1Gb 4-port 331FLR Adapter | C152: =VLOOKUP(B152, FLR_Slot, 2, FALSE) -> 1 | D152: =VLOOKUP(B152, FLR_Slot, 3, FALSE) ->  | E152: =VLOOKUP(B152, FLR_Slot, 5, FALSE) ->  | F152: =VLOOKUP(B152, FLR_Slot, 6, FALSE) ->  | G152: =VLOOKUP(B152, FLR_Slot, 9, FALSE) -> 0
B154: Additional Card for PCIe Slot 1 x8 CPU 1
B155: None | C155: =IF(B155=B79,"",VLOOKUP(B155, PCI_A1, 2, FALSE)) ->  | D155: =IF(B155=B79,"",VLOOKUP(B155, PCI_A1, 3, FALSE)) ->  | E155: =IF(B155=B79,"",VLOOKUP(B155, PCI_A1, 5, FALSE)) ->  | F155: =IF(B155=B79,"",VLOOKUP(B155, PCI_A1, 6, FALSE)) ->  | G155: =IF(B155=B79,"",VLOOKUP(B155, PCI_A1, 9, FALSE)) -> 0
B157: Additional Card for PCIe Slot 2 x16 CPU 1
B158: None | C158: =VLOOKUP(B158, PCI_A2, 2, FALSE) ->  | D158: =VLOOKUP(B158, PCI_A2, 3, FALSE) ->  | E158: =VLOOKUP(B158, PCI_A2, 5, FALSE) ->  | F158: =VLOOKUP(B158, PCI_A2, 6, FALSE) ->  | G158: =VLOOKUP(B158, PCI_A2, 9, FALSE) -> 0
B160: Additional Card for PCIe Slot 3 x8 CPU 1
B161: None | C161: =VLOOKUP(B161, PCI_A3, 2, FALSE) ->  | D161: =VLOOKUP(B161, PCI_A3, 3, FALSE) ->  | E161: =VLOOKUP(B161, PCI_A3, 5, FALSE) ->  | F161: =VLOOKUP(B161, PCI_A3, 6, FALSE) ->  | G161: =VLOOKUP(B161, PCI_A3, 9, FALSE) -> 0
B163: =IF(C147=1,"Additional Card for PCIe Slot 4 x8 CPU 2 ","Additional Card for PCIe Slot 4 x8 CPU 2 ") -> Additional Card for PCIe Slot 4 x8 CPU 2
B164: None | C164: =VLOOKUP(B164, PCI_A2, 2, FALSE) ->  | D164: =VLOOKUP(B164, PCI_A2, 3, FALSE) ->  | E164: =VLOOKUP(B164, PCI_A2, 5, FALSE) ->  | F164: =VLOOKUP(B164, PCI_A2, 6, FALSE) ->  | G164: =VLOOKUP(B164, PCI_A2, 9, FALSE) -> 0
B166: Additional Card for PCIe Slot 5 (GPU SLOT) x16 CPU 2
B167: None | C167: =VLOOKUP(B167, PCI_A5, 2, FALSE) ->  | D167: =VLOOKUP(B167, PCI_A5, 3, FALSE) ->  | E167: =VLOOKUP(B167, PCI_A5, 5, FALSE) ->  | F167: =VLOOKUP(B167, PCI_A5, 6, FALSE) ->  | G167: =VLOOKUP(B167, PCI_A5, 9, FALSE) -> 0
B169: Additional Card for PCIe Slot 6 x8 CPU 2
B170: None | C170: =VLOOKUP(B170, PCI_A3, 2, FALSE) ->  | D170: =VLOOKUP(B170, PCI_A3, 3, FALSE) ->  | E170: =VLOOKUP(B170, PCI_A3, 5, FALSE) ->  | F170: =VLOOKUP(B170, PCI_A3, 6, FALSE) ->  | G170: =VLOOKUP(B170, PCI_A3, 9, FALSE) -> 0
B172: Additional Card for PCIe Slot 7 x8 CPU 2
B173: None | C173: =VLOOKUP(B173, PCI_A2, 2, FALSE) ->  | D173: =VLOOKUP(B173, PCI_A2, 3, FALSE) ->  | E173: =VLOOKUP(B173, PCI_A2, 5, FALSE) ->  | F173: =VLOOKUP(B173, PCI_A2, 6, FALSE) ->  | G173: =VLOOKUP(B173, PCI_A2, 9, FALSE) -> 0
B175: Additional Card for PCIe Slot 8 x8 CPU 2
B176: None | C176: =VLOOKUP(B176, PCI_A2, 2, FALSE) ->  | D176: =VLOOKUP(B176, PCI_A2, 3, FALSE) ->  | E176: =VLOOKUP(B176, PCI_A2, 5, FALSE) ->  | F176: =VLOOKUP(B176, PCI_A2, 6, FALSE) ->  | G176: =VLOOKUP(B176, PCI_A2, 9, FALSE) -> 0
B178: Bezel
B179: None | C179: 1
B181: Unità ottica
B182: HP Mobile USB DVDRW Drive | C182: 1 | E182: 701498-B21
B184: Accessori per Server
B185: HPE 240GB SATA 6G Mixed Use M.2 2280 | C185: 0 | D185: =IF(C185=0,"","TS2L5-M2240") ->  | E185: 875488-B21 | G185: =C185*175 -> 0
B187: Cavi rj45
B188: Cavo Rete UTP cat. 5e 3 metri | C188: 5 | D188: =IF(C188=0,"","TS2L5-3MRJ45") -> TS2L5-3MRJ45 | E188: ROS1403/G | G188: =2*C188 -> 10
B190: Omni-Path Architecture Optical
B191: HPE X240 10G SFP+ SFP+ 3m DAC Cable | C191: 0 | D191: =IF(C191=0,"","TS2L5-DACX240M3") ->  | E191: JD097C | G191: =C191*81 -> 0
B193: HPE X240 10G SFP+ SFP+ 5m DAC Cable | C193: 0 | D193: =IF(C193=0,"","TS2L5-DACX240M5") ->  | E193: JG081C | G193: =C193*95 -> 0
B195: HPE X240 10G SFP+ SFP+ 7m DAC Cable | C195: 0 | D195: =IF(C195=0,"","TS2L5-DACX240M7") ->  | E195: JC784C | G195: =C195*106 -> 0
B197: InfiniBand Copper Cable
B198: HPE 2M FDR Quad Small Form Factor Pluggable InfiniBand Copper Cable | C198: 0 | D198: =IF(C198=0,"","TS2L5-DACQSFPM2") ->  | E198: 670759-B24 | G198: =C198*147 -> 0
B200: Omni-Path Architecture Copper Cable
B201: HPE 2M 100Gb QSFP28 Omni-Path Architecture Copper Cable | C201: 0 | D201: =IF(C201=0,"","TS2L5-DAC100M2") ->  | E201: 830024-B24 | G201: =C201*117 -> 0
B203: HPE 3M 100Gb QSFP28 Omni-Path Architecture Copper Cable | C203: 0 | D203: =IF(C203=0,"","TS2L5-DAC100M3") ->  | E203: 830024-B25 | G203: =C203*147 -> 0
B205: Omni-Path Architecture Optical
B206: HPE 3M 100Gb QSFP28 Omni-Path Architecture Optical Power Class 2 Cable | C206: 0 | D206: =IF(C206=0,"","TS2L5-DACAOCM3") ->  | E206: 881204-B21 | G206: =C206*612 -> 0
B208: HPE 5M 100Gb QSFP28 Omni-Path Architecture Optical Power Class 2 Cable | C208: 0 | D208: =IF(C208=0,"","TS2L5-DACAOCM5") ->  | E208: 881204-B22 | G208: =C208*619 -> 0
B210: HPE 7M 100Gb QSFP28 Omni-Path Architecture Optical Power Class 2 Cable | C210: 0 | D210: =IF(C210=0,"","TS2L5-DACAOCM7") ->  | E210: 881204-B23 | G210: =C210*627 -> 0
B212: Optical Transceiver
B213: HPE 10Gb SFP+ SR Transceiver | C213: 0 | D213: =IF(C213=0,"","TS2L5-10OTSR") ->  | E213: 455883-B21 | G213: =C213*230 -> 0
B215: HPE 10G SFP+ LR Transceiver | C215: 0 | D215: =IF(C215=0,"","TS2L5-10OTLR") ->  | E215: 455886-B21 | G215: =C215*481 -> 0
B217: Estensione di Garanzia
B218: None | C218: =VLOOKUP($B$218, SO_B1,2, FALSE) ->  | D218: =VLOOKUP($B$218, SO_B1, 3, FALSE) ->  | E218: =VLOOKUP($B$218, SO_B1, 5, FALSE) ->  | F218: =VLOOKUP($B$218, SO_B1, 6, FALSE) -> 
B221: None | C221: =VLOOKUP($B$221, SO_A2, 2, FALSE) ->  | D221: =VLOOKUP($B$221, SO_A2, 3, FALSE) ->  | E221: =VLOOKUP($B$221, SO_A2,5, FALSE) ->  | F221: =VLOOKUP($B$221, SO_A2, 6, FALSE) -> 

Sheet Lotto5 DL560 Gen10 2
C1: TOTALE PRODOTTI CONVENZIONE | D1: =H10 -> 0 | G1: =IF(D105=" OK",0,1) -> 0 | H1: =IF(G1+G2=0,(D1+D2),"ERRORE VERIFICARE LA CONFIGURAZIONE") -> 0
C2: TOTALE ARTICOLI 20% | D2: =H11 -> 0
B3: Indicare qui la quantità Server -----> | D3: 0 | H3: =Riepilogo!T6 -> ver. 3.3
A4: Tecnologie Server 2 Lotto 5 Prestazionale DL560 Gen10
A5: Tecnologie Server 2 Lotto 5 Prestazionale DL560 Gen10
D10: Totale Server e Opzioni | H10: =F17*SRV_AA -> 0
A11: Components: Server HPE Proliant DL560 Gen10 (2CPU Intel® Xeon-Gold 5220) | D11: Totale Ulteriori Opzioni | H11: =G17*SRV_AA -> 0
D13: TOTALE CONVENZIONE | H13: =H11+H10 -> 0
F15: 6078
B16: Quantity: | C16: =SRV_AA -> 0 | F16: =SUM(F20:F1048576) -> 0
F17: =SUM(F15:F16) -> 6078 | G17: =SUM(G20:G216) -> 10
B19: Base
B20: HPE DL560 Gen10 8SFF CTO Server | C20: 1 | E20: 841730-B21
B22: Configurazione dello chassis
B23: HPE DL560 Gen10 8SFF HDD Bay2 Kit | C23: 1 | E23: 872235-B21
B25: Processore
B26: Intel Xeon-Gold 5220 (2.2GHz/18-core/125W) | C26: 2 | E26: 840389-L21
B27: HPE DL560 Gen10 Intel® Xeon-Gold 5118 (2.3GHz/12-core/105W) Processor | C27: 1 | E27: 840399-B21
B29: Processore aggiuntivo
B30: No Additional Processor | C30: =VLOOKUP($B$30, CPU_A, 2, FALSE) -> 0 | D30: =VLOOKUP($B$30, CPU_A, 3, FALSE) ->  | E30: =VLOOKUP($B$30, CPU_A, 5, FALSE) ->  | F30: =VLOOKUP(B30, CPU_A, 12, FALSE) -> 0
B32: Mezz Board Option
B33: =VLOOKUP($B$30, CPU_A, 6, FALSE) ->  | C33: =VLOOKUP($B$30, CPU_A, 7, FALSE) ->  | E33: =VLOOKUP($B$30, CPU_A, 8, FALSE) -> 
B35: Memoria Totale in GB | C35: =IF(F30=2584,IF(B36=64,"ATTENZIONE: AUMENTARE LA RAM",""),"") -> 
B36: 128 (DIMM 32GB)
B38: Capacità di memoria
B39: =IF($B$30="No Additional Processor",VLOOKUP($B$36, MEM_A1, 8, FALSE),VLOOKUP($B$36, MEM_A2, 8, FALSE)) -> HPE 32GB 2Rx4 PC4-2933 Smart Kit | C39: =IF($B$30="No Additional Processor",VLOOKUP($B$36, MEM_A1, 9, FALSE),VLOOKUP($B$36, MEM_A2, 9, FALSE)) -> 4 | E39: =IF($B$30="No Additional Processor",VLOOKUP($B$36, MEM_A1, 10, FALSE),VLOOKUP($B$36, MEM_A2, 10, FALSE)) -> 815100-B21
B41: =IF($B$30="No Additional Processor",VLOOKUP($B$36, MEM_A1, 2, FALSE),VLOOKUP($B$36, MEM_A2, 2, FALSE)) -> HPE 32GB 2Rx4 PC4-2933 Smart Kit | C41: =IF($B$30="No Additional Processor",VLOOKUP($B$36, MEM_A1, 3, FALSE),VLOOKUP($B$36, MEM_A2, 3, FALSE)) -> 4 | D41: =IF($B$30="No Additional Processor",VLOOKUP($B$36, MEM_A1, 4, FALSE),VLOOKUP($B$36, MEM_A2, 4, FALSE)) ->  | E41: =IF($B$30="No Additional Processor",VLOOKUP($B$36, MEM_A1, 6, FALSE),VLOOKUP($B$36, MEM_A2, 6, FALSE)) -> 815100-B21 | F41: =IF($B$30="No Additional Processor",VLOOKUP($B$36, MEM_A1, 7, FALSE),VLOOKUP($B$36, MEM_A2, 7, FALSE)) -> 0
B42: =IF($B$30="No Additional Processor",VLOOKUP($B$36, MEM_A1, 11, FALSE),VLOOKUP($B$36, MEM_A2, 11, FALSE)) ->  | C42: =IF($B$30="No Additional Processor",VLOOKUP($B$36, MEM_A1, 12, FALSE),VLOOKUP($B$36, MEM_A2, 12, FALSE)) ->  | D42: =IF($B$30="No Additional Processor",VLOOKUP($B$36, MEM_A1, 13, FALSE),VLOOKUP($B$36, MEM_A2, 13, FALSE)) ->  | E42: =IF($B$30="No Additional Processor",VLOOKUP($B$36, MEM_A1, 15, FALSE),VLOOKUP($B$36, MEM_A2, 15, FALSE)) ->  | F42: =IF($B$30="No Additional Processor",VLOOKUP($B$36, MEM_A1, 16, FALSE),VLOOKUP($B$36, MEM_A2, 16, FALSE)) -> 
B45: Sistema operativo preinstallato
B46: No Operating System | C46: =VLOOKUP($B$46, OS_A, 2, FALSE) ->  | D46: =VLOOKUP($B$46, OS_A, 3, FALSE) ->  | E46: =VLOOKUP($B$46, OS_A, 5, FALSE) ->  | F46: =VLOOKUP($B$46, OS_A, 6, FALSE) -> 
B47: =IF($B$30="No Additional Processor",VLOOKUP($B$46, OS_A, 19, FALSE),VLOOKUP($B$46, OS_A2, 19, FALSE)) ->  | C47: =IF($B$30="No Additional Processor",VLOOKUP($B$46, OS_A, 20, FALSE),VLOOKUP($B$46, OS_A2, 20, FALSE)) -> 0 | D47: =IF($B$30="No Additional Processor",VLOOKUP($B$46, OS_A, 21, FALSE),VLOOKUP($B$46, OS_A2, 21, FALSE)) ->  | E47: =IF($B$30="No Additional Processor",VLOOKUP($B$46, OS_A, 23, FALSE),VLOOKUP($B$46, OS_A2, 23, FALSE)) ->  | F47: =IF($B$30="No Additional Processor",VLOOKUP($B$46, OS_A, 24, FALSE)*C47,VLOOKUP($B$46, OS_A2, 24, FALSE)*C47) -> 0 | H47: =IF(D46="TS1L2-WIN1",3,IF(D46="TS1L2-WINDC1",4,0)) -> 0
B48: =IF($B$30="No Additional Processor",VLOOKUP($B$46, OS_A, 25, FALSE),VLOOKUP($B$46, OS_A2, 25, FALSE)) ->  | C48: =IF($B$30="No Additional Processor",VLOOKUP($B$46, OS_A, 26, FALSE),VLOOKUP($B$46, OS_A2, 26, FALSE)) -> 0 | D48: =IF($B$30="No Additional Processor",VLOOKUP($B$46, OS_A, 27, FALSE),VLOOKUP($B$46, OS_A2, 27, FALSE)) ->  | E48: =IF($B$30="No Additional Processor",VLOOKUP($B$46, OS_A, 29, FALSE),VLOOKUP($B$46, OS_A2, 29, FALSE)) ->  | F48: =IF($B$30="No Additional Processor",VLOOKUP($B$46, OS_A, 30, FALSE)*C48,VLOOKUP($B$46, OS_A2, 30, FALSE)*C48) -> 0
B50: Client Access Licenses
B51: =VLOOKUP($B$46, OS_A, 7, FALSE) -> None | C51: 0 | D51: =VLOOKUP($B$46, OS_A, 9, FALSE) ->  | E51: =VLOOKUP($B$46, OS_A, 11, FALSE) ->  | F51: =VLOOKUP($B$46, OS_A, 12, FALSE)*C51 -> 0
B53: =VLOOKUP($B$46, OS_A, 13, FALSE) -> None | C53: 0 | D53: =VLOOKUP($B$46, OS_A, 15, FALSE) ->  | E53: =VLOOKUP($B$46, OS_A, 17, FALSE) ->  | F53: =VLOOKUP($B$46, OS_A, 18, FALSE)*C53 -> 0
B55: VMware vSphere
B56: None | C56: =IF(D56="",0,(C26+C30)) -> 0 | D56: =VLOOKUP($B$56,vmware, 3, FALSE) ->  | E56: =VLOOKUP($B$56,vmware, 5, FALSE) ->  | G56: =VLOOKUP($B$56,vmware, 6, FALSE)*C56 -> 0
B57: VMware vSphere Essentials Plus
B58: None | C58: =VLOOKUP($B$58,vmwareplus, 2, FALSE) -> 0 | D58: =VLOOKUP($B$58,vmwareplus, 3, FALSE) ->  | E58: =VLOOKUP($B$58,vmwareplus, 5, FALSE) ->  | G58: =VLOOKUP($B$58,vmwareplus, 6, FALSE)*C58 -> 0
B59: VMware vCenter Server
B60: None | C60: =VLOOKUP($B$60,vmwarevcenter, 2, FALSE) -> 0 | D60: =VLOOKUP($B$60,vmwarevcenter, 3, FALSE) ->  | E60: =VLOOKUP($B$60,vmwarevcenter, 5, FALSE) ->  | G60: =VLOOKUP($B$60, vmwarevcenter, 6, FALSE)*C60 -> 0
B61: VMware vSAN
B62: None | C62: =IF(D62="",0,($C$26+$C$30)) -> 0 | D62: =VLOOKUP($B$62,vmvsan, 3, FALSE) ->  | E62: =VLOOKUP($B$62,vmvsan, 5, FALSE) ->  | G62: =VLOOKUP($B$62,vmvsan, 6, FALSE)*C62 -> 0
B65: HPE OneView Advanced (with HPE iLO Advanced)
B66: None | C66: =VLOOKUP($B$66, OpzOVAdv, 2, FALSE) -> 0 | D66: =VLOOKUP($B$66, OpzOVAdv, 3, FALSE) ->  | E66: =VLOOKUP($B$66, OpzOVAdv, 5, FALSE) ->  | G66: =VLOOKUP($B$66, OpzOVAdv, 6, FALSE) -> 0
B68: Configurazione dello chassis
B69: HPE DL560 Gen10 NVMe 8 SSD Express Bay Kit (opzione disponibile con 4 CPU) | C69: 0 | D69: =VLOOKUP($C$69, HDD_NVMe, 2, FALSE) ->  | E69: =VLOOKUP($C$69, HDD_NVMe, 4, FALSE) -> 0 | G69: =VLOOKUP($C$69, HDD_NVMe, 5, FALSE) -> 0
B72: HPE DL560 Gen10 8SFF HDD Bay1 Kit | C72: 0 | D72: =IF(C69+C72=2,"TS2L5-HDDBAY",VLOOKUP($C$72,HDD_BAY1,2,FALSE)) ->  | E72: =VLOOKUP($C$72, HDD_BAY1, 4, FALSE) -> 0 | G72: =IF(C69+C72=2,"191,00",VLOOKUP($C$72,HDD_BAY1,5,FALSE)) -> 0
B74: Controller RAID
B75: HPE Smart Array P816i-a SR Gen10 | C75: =VLOOKUP($B$75, _Array, 2, FALSE) -> 1 | D75: =VLOOKUP($B$75, _Array, 3, FALSE) ->  | E75: =VLOOKUP($B$75, _Array, 5, FALSE) -> 869083-B21 | G75: =VLOOKUP($B$75, _Array, 6, FALSE) -> 
B77: =VLOOKUP($B$75, _Array, 7, FALSE) -> HPE 96W Smart Storage Battery with 145mm Cable Kit | C77: =VLOOKUP($B$75, _Array, 8, FALSE) -> 1 | D77: =VLOOKUP($B$75, _Array, 9, FALSE) ->  | E77: =VLOOKUP($B$75, _Array, 10, FALSE) -> P01366-B21
B79: =IF(C72=0,"",IF(C69+C72=2,"","HPE DL5x0 Gen10 12Gb SAS Expander Card Kit with Cables")) ->  | C79: =IF(C72=0,"",IF(C69+C72=2,"",1)) ->  | D79: =IF(C72=0,"",IF(C69+C72=2,"","TS2L5-SASBAY1")) ->  | E79: =IF(C72=0,"",IF(C69+C72=2,"","873444-B21")) -> 
B81: =IF(5+E72+E69=5,"Dischi rigidi SAS/SSD (numero massimo totale 16)",IF(5+E72+E69=8,"Dischi rigidi SAS/SSD (numero massimo totale 16)",IF(5+E72+E69=6,"Dischi rigidi SAS/SSD (numero massimo totale 24)",IF(5+E72+E69=7,"Dischi rigidi SAS/SSD (numero massimo totale 8)")))) -> Dischi rigidi SAS/SSD (numero massimo totale 16)
B82: HPE 300GB SAS 15K SFF SC DS HDD | C82: 2 | E82: 870753-B21
B84: HPE 300GB SAS 15K SFF SC DS HDD | C84: 2 | D84: TS2L5-15K300 | E84: 872475-B21 | F84: =IF(C84<=2,0,C84-2)*137 -> 0
B86: HPE 1.2TB SAS 10K SFF SC DS HDD | C86: 0 | D86: TS2L5-10K1200 | E86: 872479-B21 | F86: =C86*146 -> 0
A88: HDD SAS | B88: HPE 1.8TB SAS 10K SFF SC 512e DS HDD | C88: 0 | D88: TS2L5-10K1800 | E88: 872481-B21 | F88: =C88*190 -> 0
B91: HPE 400GB SAS 12G Mixed Use SFF (2.5in) SC DS SSD | C91: 0 | D91: TS2L5-SSD400MU | E91: P09088-B21 | G91: =C91*622 -> 0
B93: HPE 400GB SAS 12G Write Intensive SFF (2.5in) SC DS SSD | C93: 0 | D93: TS2L5-SSD400WIB | E93: P09098-B21 | G93: =C93*959 -> 0
B95: HPE 800GB SAS 12G Mixed Use SFF (2.5in) SC DS SSD | C95: 0 | D95: TS2L5-SSD800MU | E95: P09090-B21 | G95: =C95*980 -> 0
A96: SSD SAS
B97: HPE 960GB SAS 12G Mixed Use SC SAS DS SSD | C97: 0 | D97: TS2L5-SSD960MU | E97: P10448-B21 | G97: =C97*864 -> 0
B99: HPE 960GB SAS RI SFF SC DS SSD | C99: 0 | D99: TS2L5-SSDR960 | E99: P06584-B21 | F99: =C99*664 -> 0
B101: HPE 1.92TB SAS 12G Read Intensive SFF | C101: 0 | D101: TS2L5-SSDR1920 | E101: P06586-B21 | F101: =C101*1313 -> 0
B103: HPE 3.84TB SAS 12G Read Intensive SFF (2.5in) SC | C103: 0 | D103: TS2L5-SSD3840RI | E103: P04521-B21 | G103: =C103*2066 -> 0
E104: =IF(C105<=E105,0,1) -> 0
B105: DISCHI TOTALI | C105: =SUM(C84:C101) -> 2 | D105: =IF(C105<=E105," OK"," ERRORE: Totale n° di dischi superiore al consentito") -> OK | E105: =IF(5+E72+E69=5,16,IF(5+E72+E69=7,8,IF(5+E72+E69=6,24,IF(5+E72+E69=8,16)))) -> 16
E106: =E104+E123 -> 0
B108: HPE 375GB NVMe x4 Lanes Write Intensive SFF (2.5in) SCN | C108: 0 | D108: TS2L5-375NVMEWI | E108: 878014-B21 | G108: =C108*2398 -> 0
B110: HPE 750GB NVMe x4 Write Intensive SFF (2.5in) SCN | C110: 0 | D110: TS2L5-750NVMEWI | E110: P06952-B21 | G110: =C110*4797 -> 0
B112: HPE 800GB NVMe x4 Lanes Mixed Use SFF (2.5in) SCN | C112: 0 | D112: TS2L5-800NVMEMU | E112: P13668-B21 | G112: =C112*900 -> 0
B114: HPE 2TB NVMe x4 Lanes Read Intensive SFF (2.5in) SCN | C114: 0 | D114: TS2L5-2000NVMERI | E114: P13695-B21 | G114: =C114*1912 -> 0
A115: NVMe SSD
A116: NVMe SSD | B116: HPE 3.84TB SAS 12G Read Intensive SFF (2.5in) SC | C116: 0 | D116: TS2L5-SSD3840RI | E116: P04521-B21 | G116: =C116*2066 -> 0
B118: HPE 4TB NVMe x4 Lanes Read Intensive SFF (2.5in) SCN | C118: 0 | D118: TS2L5-4000NVMERI | E118: P13697-B21 | G118: =C118*3748 -> 0
B120: HPE 1.6TB NVMe x4 Lanes Mixed Use SFF (2.5in) SCN | C120: 0 | D120: TS2L5-1600NVMEMU | E120: P13699-B21 | G120: =C120*1569 -> 0
B122: HPE 3.2TB NVMe x4 Lanes Mixed Use SFF (2.5in) SCN | C122: 0 | D122: TS2L5-3200NVMEMU | E122: P13701-B21 | G122: =C122*3452 -> 0
E123: =IF(C124<=8,0,1) -> 0
B124: DISCHI NVMe TOTALI | C124: =SUM(C108:C122) -> 0 | D124: =IF(C124<=8," OK"," ERRORE: Totale n° di dischi NVMe superiore al consentito") -> OK
B126: NOTE sulla configurazione (CAMPO OBBLIGATORIO)
A127: =IF(E123+E104=0,"","ERRORE: Totale n° di dischi superiore al consentito") ->  | B127: Specificare la configurazione RAID per l'installazione del Sistema Operativo, se richiesto. e/o inserire eventuali note. | E127: Specificare la configurazione RAID per l'installazione del Sistema Operativo, se richiesto. e/o inserire eventuali note. | H127: =IF(B127=E127,"ERRORE: Compilare il campo NOTE","") -> ERRORE: Compilare il campo NOTE
B128: Configurazione RAID con HDD 300GB
B129: RAID 1 (2 HDDs) | C129: 1 | E129: =VLOOKUP($B$129, RAID_A1, 2, FALSE) -> 
B130: Hot Spare for 300GB HDD | C130: No
B132: Configurazione RAID con HDD 1TB
C133: 1 | E133: =VLOOKUP($B$133, RAID_A2, 2, FALSE) -> 
B134: Hot Spare for 1TB HDD | C134: No
B136: Micro SD (USB Flash Drive)
B137: None | C137: =VLOOKUP($B$137,microsd, 2, FALSE) -> 0 | D137: =VLOOKUP($B$137,microsd, 3, FALSE) ->  | E137: =VLOOKUP($B$137,microsd, 5, FALSE) ->  | G137: =VLOOKUP($B$137, microsd, 6, FALSE)*C137 -> 0
B139: Alimentatore
B140: HPE 1600W Flex Slot Platinum Hot Plug Low Halogen Power Supply Kit | C140: 2 | E140: 830272-B21
B142: PCIe Riser
B143: Primary, Secondary Riser & Tertiary Riser Kit | C143: 1 | E143: 870548-B21 - 872253-B21
B145: Secondary Riser | C145: 0 | D145: =VLOOKUP($C$145, Riser2, 2, FALSE) ->  | E145: =VLOOKUP($C$145, Riser2, 3, FALSE) ->  | F145: =VLOOKUP($C$145, Riser2, 4, FALSE) ->  | G145: =VLOOKUP($C$145, Riser2, 5, FALSE) -> 0 | H145: =IF(C145+C147=2,"ERRORE - SELEZIONARE SOLO UNA SECONDARY RISER","") -> 
B147: Secondary Riser for GPU (abilita l'installazione della GPU P2000 su slot 5) | C147: 0 | D147: =VLOOKUP($C$147, Riser2GPU, 2, FALSE) ->  | E147: =VLOOKUP($C$147, Riser2GPU, 3, FALSE) ->  | F147: =VLOOKUP($C$147, Riser2GPU, 4, FALSE) ->  | G147: =VLOOKUP($C$147, Riser2GPU, 5, FALSE) -> 0
B149: Tertiary riser | C149: 0 | D149: =VLOOKUP($C$149, Riser3, 2, FALSE) ->  | E149: =VLOOKUP($C$149, Riser3, 3, FALSE) ->  | F149: =VLOOKUP($C$149, Riser3, 4, FALSE) ->  | G149: =VLOOKUP($C$149, Riser3, 5, FALSE) -> 0
B151: Scheda FlexibleLOM
B152: HPE Ethernet 1Gb 4-port 331FLR Adapter | C152: =VLOOKUP(B152, FLR_Slot, 2, FALSE) -> 1 | D152: =VLOOKUP(B152, FLR_Slot, 3, FALSE) ->  | E152: =VLOOKUP(B152, FLR_Slot, 5, FALSE) ->  | F152: =VLOOKUP(B152, FLR_Slot, 6, FALSE) ->  | G152: =VLOOKUP(B152, FLR_Slot, 9, FALSE) -> 0
B154: Additional Card for PCIe Slot 1 x8 CPU 1
B155: None | C155: =IF(B155=B79,"",VLOOKUP(B155, PCI_A1, 2, FALSE)) ->  | D155: =IF(B155=B79,"",VLOOKUP(B155, PCI_A1, 3, FALSE)) ->  | E155: =IF(B155=B79,"",VLOOKUP(B155, PCI_A1, 5, FALSE)) ->  | F155: =IF(B155=B79,"",VLOOKUP(B155, PCI_A1, 6, FALSE)) ->  | G155: =IF(B155=B79,"",VLOOKUP(B155, PCI_A1, 9, FALSE)) -> 0
B157: Additional Card for PCIe Slot 2 x16 CPU 1
B158: None | C158: =VLOOKUP(B158, PCI_A2, 2, FALSE) ->  | D158: =VLOOKUP(B158, PCI_A2, 3, FALSE) ->  | E158: =VLOOKUP(B158, PCI_A2, 5, FALSE) ->  | F158: =VLOOKUP(B158, PCI_A2, 6, FALSE) ->  | G158: =VLOOKUP(B158, PCI_A2, 9, FALSE) -> 0
B160: Additional Card for PCIe Slot 3 x8 CPU 1
B161: None | C161: =VLOOKUP(B161, PCI_A3, 2, FALSE) ->  | D161: =VLOOKUP(B161, PCI_A3, 3, FALSE) ->  | E161: =VLOOKUP(B161, PCI_A3, 5, FALSE) ->  | F161: =VLOOKUP(B161, PCI_A3, 6, FALSE) ->  | G161: =VLOOKUP(B161, PCI_A3, 9, FALSE) -> 0
B163: =IF(C147=1,"Additional Card for PCIe Slot 4 x8 CPU 2 ","Additional Card for PCIe Slot 4 x8 CPU 2 ") -> Additional Card for PCIe Slot 4 x8 CPU 2
B164: None | C164: =VLOOKUP(B164, PCI_A2, 2, FALSE) ->  | D164: =VLOOKUP(B164, PCI_A2, 3, FALSE) ->  | E164: =VLOOKUP(B164, PCI_A2, 5, FALSE) ->  | F164: =VLOOKUP(B164, PCI_A2, 6, FALSE) ->  | G164: =VLOOKUP(B164, PCI_A2, 9, FALSE) -> 0
B166: Additional Card for PCIe Slot 5 (GPU SLOT) x16 CPU 2
B167: None | C167: =VLOOKUP(B167, PCI_A5, 2, FALSE) ->  | D167: =VLOOKUP(B167, PCI_A5, 3, FALSE) ->  | E167: =VLOOKUP(B167, PCI_A5, 5, FALSE) ->  | F167: =VLOOKUP(B167, PCI_A5, 6, FALSE) ->  | G167: =VLOOKUP(B167, PCI_A5, 9, FALSE) -> 0
B169: Additional Card for PCIe Slot 6 x8 CPU 2
B170: None | C170: =VLOOKUP(B170, PCI_A3, 2, FALSE) ->  | D170: =VLOOKUP(B170, PCI_A3, 3, FALSE) ->  | E170: =VLOOKUP(B170, PCI_A3, 5, FALSE) ->  | F170: =VLOOKUP(B170, PCI_A3, 6, FALSE) ->  | G170: =VLOOKUP(B170, PCI_A3, 9, FALSE) -> 0
B172: Additional Card for PCIe Slot 7 x8 CPU 2
B173: None | C173: =VLOOKUP(B173, PCI_A2, 2, FALSE) ->  | D173: =VLOOKUP(B173, PCI_A2, 3, FALSE) ->  | E173: =VLOOKUP(B173, PCI_A2, 5, FALSE) ->  | F173: =VLOOKUP(B173, PCI_A2, 6, FALSE) ->  | G173: =VLOOKUP(B173, PCI_A2, 9, FALSE) -> 0
B175: Additional Card for PCIe Slot 8 x8 CPU 2
B176: None | C176: =VLOOKUP(B176, PCI_A2, 2, FALSE) ->  | D176: =VLOOKUP(B176, PCI_A2, 3, FALSE) ->  | E176: =VLOOKUP(B176, PCI_A2, 5, FALSE) ->  | F176: =VLOOKUP(B176, PCI_A2, 6, FALSE) ->  | G176: =VLOOKUP(B176, PCI_A2, 9, FALSE) -> 0
B178: Bezel
B179: None | C179: 1
B181: Unità ottica
B182: HP Mobile USB DVDRW Drive | C182: 1 | E182: 701498-B21
B184: Accessori per Server
B185: HPE 240GB SATA 6G Mixed Use M.2 2280 | C185: 0 | D185: =IF(C185=0,"","TS2L5-M2240") ->  | E185: 875488-B21 | G185: =C185*175 -> 0
B187: Cavi rj45
B188: Cavo Rete UTP cat. 5e 3 metri | C188: 5 | D188: =IF(C188=0,"","TS2L5-3MRJ45") -> TS2L5-3MRJ45 | E188: ROS1403/G | G188: =2*C188 -> 10
B190: Omni-Path Architecture Optical
B191: HPE X240 10G SFP+ SFP+ 3m DAC Cable | C191: 0 | D191: =IF(C191=0,"","TS2L5-DACX240M3") ->  | E191: JD097C | G191: =C191*81 -> 0
B193: HPE X240 10G SFP+ SFP+ 5m DAC Cable | C193: 0 | D193: =IF(C193=0,"","TS2L5-DACX240M5") ->  | E193: JG081C | G193: =C193*95 -> 0
B195: HPE X240 10G SFP+ SFP+ 7m DAC Cable | C195: 0 | D195: =IF(C195=0,"","TS2L5-DACX240M7") ->  | E195: JC784C | G195: =C195*106 -> 0
B197: InfiniBand Copper Cable
B198: HPE 2M FDR Quad Small Form Factor Pluggable InfiniBand Copper Cable | C198: 0 | D198: =IF(C198=0,"","TS2L5-DACQSFPM2") ->  | E198: 670759-B24 | G198: =C198*147 -> 0
B200: Omni-Path Architecture Copper Cable
B201: HPE 2M 100Gb QSFP28 Omni-Path Architecture Copper Cable | C201: 0 | D201: =IF(C201=0,"","TS2L5-DAC100M2") ->  | E201: 830024-B24 | G201: =C201*117 -> 0
B203: HPE 3M 100Gb QSFP28 Omni-Path Architecture Copper Cable | C203: 0 | D203: =IF(C203=0,"","TS2L5-DAC100M3") ->  | E203: 830024-B25 | G203: =C203*147 -> 0
B205: Omni-Path Architecture Optical
B206: HPE 3M 100Gb QSFP28 Omni-Path Architecture Optical Power Class 2 Cable | C206: 0 | D206: =IF(C206=0,"","TS2L5-DACAOCM3") ->  | E206: 881204-B21 | G206: =C206*612 -> 0
B208: HPE 5M 100Gb QSFP28 Omni-Path Architecture Optical Power Class 2 Cable | C208: 0 | D208: =IF(C208=0,"","TS2L5-DACAOCM5") ->  | E208: 881204-B22 | G208: =C208*619 -> 0
B210: HPE 7M 100Gb QSFP28 Omni-Path Architecture Optical Power Class 2 Cable | C210: 0 | D210: =IF(C210=0,"","TS2L5-DACAOCM7") ->  | E210: 881204-B23 | G210: =C210*627 -> 0
B212: Optical Transceiver
B213: HPE 10Gb SFP+ SR Transceiver | C213: 0 | D213: =IF(C213=0,"","TS2L5-10OTSR") ->  | E213: 455883-B21 | G213: =C213*230 -> 0
B215: HPE 10G SFP+ LR Transceiver | C215: 0 | D215: =IF(C215=0,"","TS2L5-10OTLR") ->  | E215: 455886-B21 | G215: =C215*481 -> 0
B217: Estensione di Garanzia
B218: None | C218: =VLOOKUP($B$218, SO_B1,2, FALSE) ->  | D218: =VLOOKUP($B$218, SO_B1, 3, FALSE) ->  | E218: =VLOOKUP($B$218, SO_B1, 5, FALSE) ->  | F218: =VLOOKUP($B$218, SO_B1, 6, FALSE) -> 

Sheet Lotto5 DL560 Gen10 3
C1: TOTALE PRODOTTI CONVENZIONE | D1: =H10 -> 0 | G1: =IF(D105=" OK",0,1) -> 0 | H1: =IF(G1+G2=0,(D1+D2),"ERRORE VERIFICARE LA CONFIGURAZIONE") -> 0
C2: TOTALE ARTICOLI 20% | D2: =H11 -> 0
B3: Indicare qui la quantità Server -----> | D3: 0 | H3: =Riepilogo!T6 -> ver. 3.3
A4: Tecnologie Server 2 Lotto 5 Prestazionale DL560 Gen10
A5: Tecnologie Server 2 Lotto 5 Prestazionale DL560 Gen10
D10: Totale Server e Opzioni | H10: =F17*SRV_AAA -> 0
A11: Components: Server HPE Proliant DL560 Gen10 (2CPU Intel® Xeon-Gold 5220) | D11: Totale Ulteriori Opzioni | H11: =G17*SRV_AAA -> 0
D13: TOTALE CONVENZIONE | H13: =H11+H10 -> 0
F15: 6078
B16: Quantity: | C16: =SRV_AAA -> 0 | F16: =SUM(F20:F1048576) -> 0
F17: =SUM(F15:F16) -> 6078 | G17: =SUM(G20:G216) -> 10
B19: Base
B20: HPE DL560 Gen10 8SFF CTO Server | C20: 1 | E20: 841730-B21
B22: Configurazione dello chassis
B23: HPE DL560 Gen10 8SFF HDD Bay2 Kit | C23: 1 | E23: 872235-B21
B25: Processore
B26: Intel Xeon-Gold 5220 (2.2GHz/18-core/125W) | C26: 2 | E26: 840389-L21
B27: HPE DL560 Gen10 Intel® Xeon-Gold 5118 (2.3GHz/12-core/105W) Processor | C27: 1 | E27: 840399-B21
B29: Processore aggiuntivo
B30: No Additional Processor | C30: =VLOOKUP($B$30, CPU_A, 2, FALSE) -> 0 | D30: =VLOOKUP($B$30, CPU_A, 3, FALSE) ->  | E30: =VLOOKUP($B$30, CPU_A, 5, FALSE) ->  | F30: =VLOOKUP(B30, CPU_A, 12, FALSE) -> 0
B32: Mezz Board Option
B33: =VLOOKUP($B$30, CPU_A, 6, FALSE) ->  | C33: =VLOOKUP($B$30, CPU_A, 7, FALSE) ->  | E33: =VLOOKUP($B$30, CPU_A, 8, FALSE) -> 
B35: Memoria Totale in GB | C35: =IF(F30=2584,IF(B36=64,"ATTENZIONE: AUMENTARE LA RAM",""),"") -> 
B36: 128 (DIMM 32GB)
B38: Capacità di memoria
B39: =IF($B$30="No Additional Processor",VLOOKUP($B$36, MEM_A1, 8, FALSE),VLOOKUP($B$36, MEM_A2, 8, FALSE)) -> HPE 32GB 2Rx4 PC4-2933 Smart Kit | C39: =IF($B$30="No Additional Processor",VLOOKUP($B$36, MEM_A1, 9, FALSE),VLOOKUP($B$36, MEM_A2, 9, FALSE)) -> 4 | E39: =IF($B$30="No Additional Processor",VLOOKUP($B$36, MEM_A1, 10, FALSE),VLOOKUP($B$36, MEM_A2, 10, FALSE)) -> 815100-B21
B41: =IF($B$30="No Additional Processor",VLOOKUP($B$36, MEM_A1, 2, FALSE),VLOOKUP($B$36, MEM_A2, 2, FALSE)) -> HPE 32GB 2Rx4 PC4-2933 Smart Kit | C41: =IF($B$30="No Additional Processor",VLOOKUP($B$36, MEM_A1, 3, FALSE),VLOOKUP($B$36, MEM_A2, 3, FALSE)) -> 4 | D41: =IF($B$30="No Additional Processor",VLOOKUP($B$36, MEM_A1, 4, FALSE),VLOOKUP($B$36, MEM_A2, 4, FALSE)) ->  | E41: =IF($B$30="No Additional Processor",VLOOKUP($B$36, MEM_A1, 6, FALSE),VLOOKUP($B$36, MEM_A2, 6, FALSE)) -> 815100-B21 | F41: =IF($B$30="No Additional Processor",VLOOKUP($B$36, MEM_A1, 7, FALSE),VLOOKUP($B$36, MEM_A2, 7, FALSE)) -> 0
B42: =IF($B$30="No Additional Processor",VLOOKUP($B$36, MEM_A1, 11, FALSE),VLOOKUP($B$36, MEM_A2, 11, FALSE)) ->  | C42: =IF($B$30="No Additional Processor",VLOOKUP($B$36, MEM_A1, 12, FALSE),VLOOKUP($B$36, MEM_A2, 12, FALSE)) ->  | D42: =IF($B$30="No Additional Processor",VLOOKUP($B$36, MEM_A1, 13, FALSE),VLOOKUP($B$36, MEM_A2, 13, FALSE)) ->  | E42: =IF($B$30="No Additional Processor",VLOOKUP($B$36, MEM_A1, 15, FALSE),VLOOKUP($B$36, MEM_A2, 15, FALSE)) ->  | F42: =IF($B$30="No Additional Processor",VLOOKUP($B$36, MEM_A1, 16, FALSE),VLOOKUP($B$36, MEM_A2, 16, FALSE)) -> 
B45: Sistema operativo preinstallato
B46: No Operating System | C46: =VLOOKUP($B$46, OS_A, 2, FALSE) ->  | D46: =VLOOKUP($B$46, OS_A, 3, FALSE) ->  | E46: =VLOOKUP($B$46, OS_A, 5, FALSE) ->  | F46: =VLOOKUP($B$46, OS_A, 6, FALSE) -> 
B47: =IF($B$30="No Additional Processor",VLOOKUP($B$46, OS_A, 19, FALSE),VLOOKUP($B$46, OS_A2, 19, FALSE)) ->  | C47: =IF($B$30="No Additional Processor",VLOOKUP($B$46, OS_A, 20, FALSE),VLOOKUP($B$46, OS_A2, 20, FALSE)) -> 0 | D47: =IF($B$30="No Additional Processor",VLOOKUP($B$46, OS_A, 21, FALSE),VLOOKUP($B$46, OS_A2, 21, FALSE)) ->  | E47: =IF($B$30="No Additional Processor",VLOOKUP($B$46, OS_A, 23, FALSE),VLOOKUP($B$46, OS_A2, 23, FALSE)) ->  | F47: =IF($B$30="No Additional Processor",VLOOKUP($B$46, OS_A, 24, FALSE)*C47,VLOOKUP($B$46, OS_A2, 24, FALSE)*C47) -> 0 | H47: =IF(D46="TS1L2-WIN1",3,IF(D46="TS1L2-WINDC1",4,0)) -> 0
B48: =IF($B$30="No Additional Processor",VLOOKUP($B$46, OS_A, 25, FALSE),VLOOKUP($B$46, OS_A2, 25, FALSE)) ->  | C48: =IF($B$30="No Additional Processor",VLOOKUP($B$46, OS_A, 26, FALSE),VLOOKUP($B$46, OS_A2, 26, FALSE)) -> 0 | D48: =IF($B$30="No Additional Processor",VLOOKUP($B$46, OS_A, 27, FALSE),VLOOKUP($B$46, OS_A2, 27, FALSE)) ->  | E48: =IF($B$30="No Additional Processor",VLOOKUP($B$46, OS_A, 29, FALSE),VLOOKUP($B$46, OS_A2, 29, FALSE)) ->  | F48: =IF($B$30="No Additional Processor",VLOOKUP($B$46, OS_A, 30, FALSE)*C48,VLOOKUP($B$46, OS_A2, 30, FALSE)*C48) -> 0
B50: Client Access Licenses
B51: =VLOOKUP($B$46, OS_A, 7, FALSE) -> None | C51: 0 | D51: =VLOOKUP($B$46, OS_A, 9, FALSE) ->  | E51: =VLOOKUP($B$46, OS_A, 11, FALSE) ->  | F51: =VLOOKUP($B$46, OS_A, 12, FALSE)*C51 -> 0
B53: =VLOOKUP($B$46, OS_A, 13, FALSE) -> None | C53: 0 | D53: =VLOOKUP($B$46, OS_A, 15, FALSE) ->  | E53: =VLOOKUP($B$46, OS_A, 17, FALSE) ->  | F53: =VLOOKUP($B$46, OS_A, 18, FALSE)*C53 -> 0
B55: VMware vSphere
B56: None | C56: =IF(D56="",0,(C26+C30)) -> 0 | D56: =VLOOKUP($B$56,vmware, 3, FALSE) ->  | E56: =VLOOKUP($B$56,vmware, 5, FALSE) ->  | G56: =VLOOKUP($B$56,vmware, 6, FALSE)*C56 -> 0
B57: VMware vSphere Essentials Plus
B58: None | C58: =VLOOKUP($B$58,vmwareplus, 2, FALSE) -> 0 | D58: =VLOOKUP($B$58,vmwareplus, 3, FALSE) ->  | E58: =VLOOKUP($B$58,vmwareplus, 5, FALSE) ->  | G58: =VLOOKUP($B$58,vmwareplus, 6, FALSE)*C58 -> 0
B59: VMware vCenter Server
B60: None | C60: =VLOOKUP($B$60,vmwarevcenter, 2, FALSE) -> 0 | D60: =VLOOKUP($B$60,vmwarevcenter, 3, FALSE) ->  | E60: =VLOOKUP($B$60,vmwarevcenter, 5, FALSE) ->  | G60: =VLOOKUP($B$60, vmwarevcenter, 6, FALSE)*C60 -> 0
B61: VMware vSAN
B62: None | C62: =IF(D62="",0,($C$26+$C$30)) -> 0 | D62: =VLOOKUP($B$62,vmvsan, 3, FALSE) ->  | E62: =VLOOKUP($B$62,vmvsan, 5, FALSE) ->  | G62: =VLOOKUP($B$62,vmvsan, 6, FALSE)*C62 -> 0
B65: HPE OneView Advanced (with HPE iLO Advanced)
B66: None | C66: =VLOOKUP($B$66, OpzOVAdv, 2, FALSE) -> 0 | D66: =VLOOKUP($B$66, OpzOVAdv, 3, FALSE) ->  | E66: =VLOOKUP($B$66, OpzOVAdv, 5, FALSE) ->  | G66: =VLOOKUP($B$66, OpzOVAdv, 6, FALSE) -> 0
B68: Configurazione dello chassis
B69: HPE DL560 Gen10 NVMe 8 SSD Express Bay Kit (opzione disponibile con 4 CPU) | C69: 0 | D69: =VLOOKUP($C$69, HDD_NVMe, 2, FALSE) ->  | E69: =VLOOKUP($C$69, HDD_NVMe, 4, FALSE) -> 0 | G69: =VLOOKUP($C$69, HDD_NVMe, 5, FALSE) -> 0
B72: HPE DL560 Gen10 8SFF HDD Bay1 Kit | C72: 0 | D72: =IF(C69+C72=2,"TS2L5-HDDBAY",VLOOKUP($C$72,HDD_BAY1,2,FALSE)) ->  | E72: =VLOOKUP($C$72, HDD_BAY1, 4, FALSE) -> 0 | G72: =IF(C69+C72=2,"191,00",VLOOKUP($C$72,HDD_BAY1,5,FALSE)) -> 0
B74: Controller RAID
B75: HPE Smart Array P816i-a SR Gen10 | C75: =VLOOKUP($B$75, _Array, 2, FALSE) -> 1 | D75: =VLOOKUP($B$75, _Array, 3, FALSE) ->  | E75: =VLOOKUP($B$75, _Array, 5, FALSE) -> 869083-B21 | G75: =VLOOKUP($B$75, _Array, 6, FALSE) -> 
B77: =VLOOKUP($B$75, _Array, 7, FALSE) -> HPE 96W Smart Storage Battery with 145mm Cable Kit | C77: =VLOOKUP($B$75, _Array, 8, FALSE) -> 1 | D77: =VLOOKUP($B$75, _Array, 9, FALSE) ->  | E77: =VLOOKUP($B$75, _Array, 10, FALSE) -> P01366-B21
B79: =IF(C72=0,"",IF(C69+C72=2,"","HPE DL5x0 Gen10 12Gb SAS Expander Card Kit with Cables")) ->  | C79: =IF(C72=0,"",IF(C69+C72=2,"",1)) ->  | D79: =IF(C72=0,"",IF(C69+C72=2,"","TS2L5-SASBAY1")) ->  | E79: =IF(C72=0,"",IF(C69+C72=2,"","873444-B21")) -> 
B81: =IF(5+E72+E69=5,"Dischi rigidi SAS/SSD (numero massimo totale 16)",IF(5+E72+E69=8,"Dischi rigidi SAS/SSD (numero massimo totale 16)",IF(5+E72+E69=6,"Dischi rigidi SAS/SSD (numero massimo totale 24)",IF(5+E72+E69=7,"Dischi rigidi SAS/SSD (numero massimo totale 8)")))) -> Dischi rigidi SAS/SSD (numero massimo totale 16)
B82: HPE 300GB SAS 15K SFF SC DS HDD | C82: 2 | E82: 870753-B21
B84: HPE 300GB SAS 15K SFF SC DS HDD | C84: 2 | D84: TS2L5-15K300 | E84: 872475-B21 | F84: =IF(C84<=2,0,C84-2)*137 -> 0
B86: HPE 1.2TB SAS 10K SFF SC DS HDD | C86: 0 | D86: TS2L5-10K1200 | E86: 872479-B21 | F86: =C86*146 -> 0
A88: HDD SAS | B88: HPE 1.8TB SAS 10K SFF SC 512e DS HDD | C88: 0 | D88: TS2L5-10K1800 | E88: 872481-B21 | F88: =C88*190 -> 0
B91: HPE 400GB SAS 12G Mixed Use SFF (2.5in) SC DS SSD | C91: 0 | D91: TS2L5-SSD400MU | E91: P09088-B21 | G91: =C91*622 -> 0
B93: HPE 400GB SAS 12G Write Intensive SFF (2.5in) SC DS SSD | C93: 0 | D93: TS2L5-SSD400WIB | E93: P09098-B21 | G93: =C93*959 -> 0
B95: HPE 800GB SAS 12G Mixed Use SFF (2.5in) SC DS SSD | C95: 0 | D95: TS2L5-SSD800MU | E95: P09090-B21 | G95: =C95*980 -> 0
A96: SSD SAS
B97: HPE 960GB SAS 12G Mixed Use SC SAS DS SSD | C97: 0 | D97: TS2L5-SSD960MU | E97: P10448-B21 | G97: =C97*864 -> 0
B99: HPE 960GB SAS RI SFF SC DS SSD | C99: 0 | D99: TS2L5-SSDR960 | E99: P06584-B21 | F99: =C99*664 -> 0
B101: HPE 1.92TB SAS 12G Read Intensive SFF | C101: 0 | D101: TS2L5-SSDR1920 | E101: P06586-B21 | F101: =C101*1313 -> 0
B103: HPE 3.84TB SAS 12G Read Intensive SFF (2.5in) SC | C103: 0 | D103: TS2L5-SSD3840RI | E103: P04521-B21 | G103: =C103*2066 -> 0
E104: =IF(C105<=E105,0,1) -> 0
B105: DISCHI TOTALI | C105: =SUM(C84:C101) -> 2 | D105: =IF(C105<=E105," OK"," ERRORE: Totale n° di dischi superiore al consentito") -> OK | E105: =IF(5+E72+E69=5,16,IF(5+E72+E69=7,8,IF(5+E72+E69=6,24,IF(5+E72+E69=8,16)))) -> 16
E106: =E104+E123 -> 0
B108: HPE 375GB NVMe x4 Lanes Write Intensive SFF (2.5in) SCN | C108: 0 | D108: TS2L5-375NVMEWI | E108: 878014-B21 | G108: =C108*2398 -> 0
B110: HPE 750GB NVMe x4 Write Intensive SFF (2.5in) SCN | C110: 0 | D110: TS2L5-750NVMEWI | E110: P06952-B21 | G110: =C110*4797 -> 0
B112: HPE 800GB NVMe x4 Lanes Mixed Use SFF (2.5in) SCN | C112: 0 | D112: TS2L5-800NVMEMU | E112: P13668-B21 | G112: =C112*900 -> 0
B114: HPE 2TB NVMe x4 Lanes Read Intensive SFF (2.5in) SCN | C114: 0 | D114: TS2L5-2000NVMERI | E114: P13695-B21 | G114: =C114*1912 -> 0
A115: NVMe SSD
A116: NVMe SSD | B116: HPE 3.84TB SAS 12G Read Intensive SFF (2.5in) SC | C116: 0 | D116: TS2L5-SSD3840RI | E116: P04521-B21 | G116: =C116*2066 -> 0
B118: HPE 4TB NVMe x4 Lanes Read Intensive SFF (2.5in) SCN | C118: 0 | D118: TS2L5-4000NVMERI | E118: P13697-B21 | G118: =C118*3748 -> 0
B120: HPE 1.6TB NVMe x4 Lanes Mixed Use SFF (2.5in) SCN | C120: 0 | D120: TS2L5-1600NVMEMU | E120: P13699-B21 | G120: =C120*1569 -> 0
B122: HPE 3.2TB NVMe x4 Lanes Mixed Use SFF (2.5in) SCN | C122: 0 | D122: TS2L5-3200NVMEMU | E122: P13701-B21 | G122: =C122*3452 -> 0
E123: =IF(C124<=8,0,1) -> 0
B124: DISCHI NVMe TOTALI | C124: =SUM(C108:C122) -> 0 | D124: =IF(C124<=8," OK"," ERRORE: Totale n° di dischi NVMe superiore al consentito") -> OK
B126: NOTE sulla configurazione (CAMPO OBBLIGATORIO)
A127: =IF(E123+E104=0,"","ERRORE: Totale n° di dischi superiore al consentito") ->  | B127: Specificare la configurazione RAID per l'installazione del Sistema Operativo, se richiesto. e/o inserire eventuali note. | E127: Specificare la configurazione RAID per l'installazione del Sistema Operativo, se richiesto. e/o inserire eventuali note. | H127: =IF(B127=E127,"ERRORE: Compilare il campo NOTE","") -> ERRORE: Compilare il campo NOTE
B128: Configurazione RAID con HDD 300GB
B129: RAID 1 (2 HDDs) | C129: 1 | E129: =VLOOKUP($B$129, RAID_A1, 2, FALSE) -> 
B130: Hot Spare for 300GB HDD | C130: No
B132: Configurazione RAID con HDD 1TB
C133: 1 | E133: =VLOOKUP($B$133, RAID_A2, 2, FALSE) -> 
B134: Hot Spare for 1TB HDD | C134: No
B136: Micro SD (USB Flash Drive)
B137: None | C137: =VLOOKUP($B$137,microsd, 2, FALSE) -> 0 | D137: =VLOOKUP($B$137,microsd, 3, FALSE) ->  | E137: =VLOOKUP($B$137,microsd, 5, FALSE) ->  | G137: =VLOOKUP($B$137, microsd, 6, FALSE)*C137 -> 0
B139: Alimentatore
B140: HPE 1600W Flex Slot Platinum Hot Plug Low Halogen Power Supply Kit | C140: 2 | E140: 830272-B21
B142: PCIe Riser
B143: Primary, Secondary Riser & Tertiary Riser Kit | C143: 1 | E143: 870548-B21 - 872253-B21
B145: Secondary Riser | C145: 0 | D145: =VLOOKUP($C$145, Riser2, 2, FALSE) ->  | E145: =VLOOKUP($C$145, Riser2, 3, FALSE) ->  | F145: =VLOOKUP($C$145, Riser2, 4, FALSE) ->  | G145: =VLOOKUP($C$145, Riser2, 5, FALSE) -> 0 | H145: =IF(C145+C147=2,"ERRORE - SELEZIONARE SOLO UNA SECONDARY RISER","") -> 
B147: Secondary Riser for GPU (abilita l'installazione della GPU P2000 su slot 5) | C147: 0 | D147: =VLOOKUP($C$147, Riser2GPU, 2, FALSE) ->  | E147: =VLOOKUP($C$147, Riser2GPU, 3, FALSE) ->  | F147: =VLOOKUP($C$147, Riser2GPU, 4, FALSE) ->  | G147: =VLOOKUP($C$147, Riser2GPU, 5, FALSE) -> 0
B149: Tertiary riser | C149: 0 | D149: =VLOOKUP($C$149, Riser3, 2, FALSE) ->  | E149: =VLOOKUP($C$149, Riser3, 3, FALSE) ->  | F149: =VLOOKUP($C$149, Riser3, 4, FALSE) ->  | G149: =VLOOKUP($C$149, Riser3, 5, FALSE) -> 0
B151: Scheda FlexibleLOM
B152: HPE Ethernet 1Gb 4-port 331FLR Adapter | C152: =VLOOKUP(B152, FLR_Slot, 2, FALSE) -> 1 | D152: =VLOOKUP(B152, FLR_Slot, 3, FALSE) ->  | E152: =VLOOKUP(B152, FLR_Slot, 5, FALSE) ->  | F152: =VLOOKUP(B152, FLR_Slot, 6, FALSE) ->  | G152: =VLOOKUP(B152, FLR_Slot, 9, FALSE) -> 0
B154: Additional Card for PCIe Slot 1 x8 CPU 1
B155: None | C155: =IF(B155=B79,"",VLOOKUP(B155, PCI_A1, 2, FALSE)) ->  | D155: =IF(B155=B79,"",VLOOKUP(B155, PCI_A1, 3, FALSE)) ->  | E155: =IF(B155=B79,"",VLOOKUP(B155, PCI_A1, 5, FALSE)) ->  | F155: =IF(B155=B79,"",VLOOKUP(B155, PCI_A1, 6, FALSE)) ->  | G155: =IF(B155=B79,"",VLOOKUP(B155, PCI_A1, 9, FALSE)) -> 0
B157: Additional Card for PCIe Slot 2 x16 CPU 1
B158: None | C158: =VLOOKUP(B158, PCI_A2, 2, FALSE) ->  | D158: =VLOOKUP(B158, PCI_A2, 3, FALSE) ->  | E158: =VLOOKUP(B158, PCI_A2, 5, FALSE) ->  | F158: =VLOOKUP(B158, PCI_A2, 6, FALSE) ->  | G158: =VLOOKUP(B158, PCI_A2, 9, FALSE) -> 0
B160: Additional Card for PCIe Slot 3 x8 CPU 1
B161: None | C161: =VLOOKUP(B161, PCI_A3, 2, FALSE) ->  | D161: =VLOOKUP(B161, PCI_A3, 3, FALSE) ->  | E161: =VLOOKUP(B161, PCI_A3, 5, FALSE) ->  | F161: =VLOOKUP(B161, PCI_A3, 6, FALSE) ->  | G161: =VLOOKUP(B161, PCI_A3, 9, FALSE) -> 0
B163: =IF(C147=1,"Additional Card for PCIe Slot 4 x8 CPU 2 ","Additional Card for PCIe Slot 4 x8 CPU 2 ") -> Additional Card for PCIe Slot 4 x8 CPU 2
B164: None | C164: =VLOOKUP(B164, PCI_A2, 2, FALSE) ->  | D164: =VLOOKUP(B164, PCI_A2, 3, FALSE) ->  | E164: =VLOOKUP(B164, PCI_A2, 5, FALSE) ->  | F164: =VLOOKUP(B164, PCI_A2, 6, FALSE) ->  | G164: =VLOOKUP(B164, PCI_A2, 9, FALSE) -> 0
B166: Additional Card for PCIe Slot 5 (GPU SLOT) x16 CPU 2
B167: None | C167: =VLOOKUP(B167, PCI_A5, 2, FALSE) ->  | D167: =VLOOKUP(B167, PCI_A5, 3, FALSE) ->  | E167: =VLOOKUP(B167, PCI_A5, 5, FALSE) ->  | F167: =VLOOKUP(B167, PCI_A5, 6, FALSE) ->  | G167: =VLOOKUP(B167, PCI_A5, 9, FALSE) -> 0
B169: Additional Card for PCIe Slot 6 x8 CPU 2
B170: None | C170: =VLOOKUP(B170, PCI_A3, 2, FALSE) ->  | D170: =VLOOKUP(B170, PCI_A3, 3, FALSE) ->  | E170: =VLOOKUP(B170, PCI_A3, 5, FALSE) ->  | F170: =VLOOKUP(B170, PCI_A3, 6, FALSE) ->  | G170: =VLOOKUP(B170, PCI_A3, 9, FALSE) -> 0
B172: Additional Card for PCIe Slot 7 x8 CPU 2
B173: None | C173: =VLOOKUP(B173, PCI_A2, 2, FALSE) ->  | D173: =VLOOKUP(B173, PCI_A2, 3, FALSE) ->  | E173: =VLOOKUP(B173, PCI_A2, 5, FALSE) ->  | F173: =VLOOKUP(B173, PCI_A2, 6, FALSE) ->  | G173: =VLOOKUP(B173, PCI_A2, 9, FALSE) -> 0
B175: Additional Card for PCIe Slot 8 x8 CPU 2
B176: None | C176: =VLOOKUP(B176, PCI_A2, 2, FALSE) ->  | D176: =VLOOKUP(B176, PCI_A2, 3, FALSE) ->  | E176: =VLOOKUP(B176, PCI_A2, 5, FALSE) ->  | F176: =VLOOKUP(B176, PCI_A2, 6, FALSE) ->  | G176: =VLOOKUP(B176, PCI_A2, 9, FALSE) -> 0
B178: Bezel
B179: None | C179: 1
B181: Unità ottica
B182: HP Mobile USB DVDRW Drive | C182: 1 | E182: 701498-B21
B184: Accessori per Server
B185: HPE 240GB SATA 6G Mixed Use M.2 2280 | C185: 0 | D185: =IF(C185=0,"","TS2L5-M2240") ->  | E185: 875488-B21 | G185: =C185*175 -> 0
B187: Cavi rj45
B188: Cavo Rete UTP cat. 5e 3 metri | C188: 5 | D188: =IF(C188=0,"","TS2L5-3MRJ45") -> TS2L5-3MRJ45 | E188: ROS1403/G | G188: =2*C188 -> 10
B190: Omni-Path Architecture Optical
B191: HPE X240 10G SFP+ SFP+ 3m DAC Cable | C191: 0 | D191: =IF(C191=0,"","TS2L5-DACX240M3") ->  | E191: JD097C | G191: =C191*81 -> 0
B193: HPE X240 10G SFP+ SFP+ 5m DAC Cable | C193: 0 | D193: =IF(C193=0,"","TS2L5-DACX240M5") ->  | E193: JG081C | G193: =C193*95 -> 0
B195: HPE X240 10G SFP+ SFP+ 7m DAC Cable | C195: 0 | D195: =IF(C195=0,"","TS2L5-DACX240M7") ->  | E195: JC784C | G195: =C195*106 -> 0
B197: InfiniBand Copper Cable
B198: HPE 2M FDR Quad Small Form Factor Pluggable InfiniBand Copper Cable | C198: 0 | D198: =IF(C198=0,"","TS2L5-DACQSFPM2") ->  | E198: 670759-B24 | G198: =C198*147 -> 0
B200: Omni-Path Architecture Copper Cable
B201: HPE 2M 100Gb QSFP28 Omni-Path Architecture Copper Cable | C201: 0 | D201: =IF(C201=0,"","TS2L5-DAC100M2") ->  | E201: 830024-B24 | G201: =C201*117 -> 0
B203: HPE 3M 100Gb QSFP28 Omni-Path Architecture Copper Cable | C203: 0 | D203: =IF(C203=0,"","TS2L5-DAC100M3") ->  | E203: 830024-B25 | G203: =C203*147 -> 0
B205: Omni-Path Architecture Optical
B206: HPE 3M 100Gb QSFP28 Omni-Path Architecture Optical Power Class 2 Cable | C206: 0 | D206: =IF(C206=0,"","TS2L5-DACAOCM3") ->  | E206: 881204-B21 | G206: =C206*612 -> 0
B208: HPE 5M 100Gb QSFP28 Omni-Path Architecture Optical Power Class 2 Cable | C208: 0 | D208: =IF(C208=0,"","TS2L5-DACAOCM5") ->  | E208: 881204-B22 | G208: =C208*619 -> 0
B210: HPE 7M 100Gb QSFP28 Omni-Path Architecture Optical Power Class 2 Cable | C210: 0 | D210: =IF(C210=0,"","TS2L5-DACAOCM7") ->  | E210: 881204-B23 | G210: =C210*627 -> 0
B212: Optical Transceiver
B213: HPE 10Gb SFP+ SR Transceiver | C213: 0 | D213: =IF(C213=0,"","TS2L5-10OTSR") ->  | E213: 455883-B21 | G213: =C213*230 -> 0
B215: HPE 10G SFP+ LR Transceiver | C215: 0 | D215: =IF(C215=0,"","TS2L5-10OTLR") ->  | E215: 455886-B21 | G215: =C215*481 -> 0
B217: Estensione di Garanzia
B218: None | C218: =VLOOKUP($B$218, SO_B1,2, FALSE) ->  | D218: =VLOOKUP($B$218, SO_B1, 3, FALSE) ->  | E218: =VLOOKUP($B$218, SO_B1, 5, FALSE) ->  | F218: =VLOOKUP($B$218, SO_B1, 6, FALSE) -> 

Sheet RACK, Accessori e Servizi
J1: TOTALE PRODOTTI CONVENZIONE | K1: =L15+L24+L27+L30 -> 0 | L1: =K1+K2 -> 0
J2: TOTALE ARTICOLI 20% | K2: =L33+L39+L36 -> 0
M4: SERVIZI
C5: =IF(SRV_A+SRV_B>=1,"Servizi Specialistici","") -> 
C6: =IF(SRV_A+SRV_B>=1,"Servizio Specialistico di System and Network Management per sistema opertivo Windows, erogato on site. (GG/Uomo)","") ->  | K6: =IF(J6>=1,"10L2-SO-WIN","") -> 
C8: =IF(SRV_A+SRV_B>=1,"Servizio Specialistico di System and Network Management per sistema opertivo Linux, erogato on site. (GG/Uomo)","") ->  | K8: =IF(J8>=1,"10L2-SO-LINUX","") -> 
C10: =IF((SRV_A+SRV_AA+SRV_AAA+SRV_B+SRV_BB+SRV_BBB)>=5,"Servizi specialistici sistemistici per aggiornare e prevenire malfunzionamenti. (Minimo 5 Server)","") ->  | K10: =IF(J10>=1,"10L2-SO-PREV","") -> 
M13: SERVER RACK
C14: =IF((SRV_A+SRV_AA+SRV_AAA)>"","","Rack (OpzRack)") -> Rack (OpzRack)
C15: =IF((SRV_A+SRV_AA+SRV_AAA)>=1,"Tecnosteel: armadio Rack 19'' 42U","") ->  | K15: =IF(J15>=1,"TS2L5-RACK","") ->  | L15: =IF(J15>=1,504*J15,"0") -> 0
C17: PDU (OpzPDU32A)
C18: =IF((SRV_A+SRV_AA+SRV_AAA)>=1,"PDU Vertical 20+4 outlets C13 with MCB - IEC60309 input","") ->  | K18: =IF(J18>=1,"TS1-646861","") -> 
C20: OpzPDU_TRIFASE
C21: =IF((SRV_A+SRV_AA+SRV_AAA)>=1,"PDU Vertical 18+6 outlets (C13+C19) with MCB and ammeter - IEC60309 input - 3 phase","") ->  | K21: =IF(J21>=1,"TS1-646875","") -> 
C23: KVM (OpzGUIRack)
C24: =IF((SRV_A+SRV_AA+SRV_AAA)>=1,"Tecnosteel: 1U Rackmount Console 17'' with Italian Keyboard","") ->  | K24: =IF(J24>=1,"TS2L5-GUI","") ->  | L24: =IF(J24>=1,448*J24,"0") -> 0
C26: KVM Option (OpzSWGUIRack)
C27: =IF((SRV_A+SRV_AA+SRV_AAA)>=1,"Tecnosteel: 16-port remote KVM switch with one remote user","") ->  | K27: =IF(J27>=1,"TS2L5-KVMIP","") ->  | L27: =IF(J27>=1,495*J27,"0") -> 0
C29: Uninterrupted Power Supply (OpzUPS 3000VA)
C30: =IF((SRV_A+SRV_AA+SRV_AAA)>=1,"Riello - UPS MSR3000EVO 3000VA 2U Rackmount (SNMP+USB+RS232)","") ->  | K30: =IF(J30>=1,"TS2L5-UPS","") ->  | L30: =IF(J30>=1,387*J30,"0") -> 0
C32: PDU da Rack
C33: =IF((SRV_A+SRV_AA+SRV_AAA)>=1,"Coppia di PDU Vertical 1Ph-32A-18xC13-6xC19 - 0U Base + Kit di montaggio)","") ->  | K33: =IF(J33>=1,"TS2L5-PDU32A","") ->  | L33: =IF(J33>=1,436*J33,"0") -> 0
C35: Armadio Rack 42U PDU Trifase
C36: =IF((SRV_A+SRV_AA+SRV_AAA)>=1,"Armadio Rack 42U profonità 120cm con coppia di PDU 32A trifase","") ->  | K36: =IF(J36>=1,"TS2L5-RACK3PH","") ->  | L36: =IF(J36>=1,2177*J36,"0") -> 0
C38: Armadio Rack 42U PDU Monofase
C39: =IF((SRV_A+SRV_AA+SRV_AAA)>=1,"Armadio Rack 42U profonità 120cm con coppia di PDU 32A monofase","") ->  | K39: =IF(J39>=1,"TS2L5-RACKPDU32","") ->  | L39: =IF(J39>=1,2200*J39,"0") -> 0
D42: Totale-
D43: RACK A | E43: RACK B | F43: RACK C | G43: RACK D | H43: RACK E | I43: RACK F | J43: RACK G | K43: RACK H | L43: RACK I | M43: RACK J
C44: =J15 -> 0 | D44: =IF(H64>0,IF(C44-H64=0,0,C44-H64),0) -> 0 | E44: =IF(I64>0,IF(D44-I64=0,0,D44-I64),0) -> 0 | F44: 0 | G44: 0 | H44: 0 | I44: 0 | J44: =IF(#REF!>0,IF(I44-#REF!=0,0,I44-#REF!),0) ->  | K44: =IF(#REF!>0,IF(J44-#REF!=0,0,J44-#REF!),0) ->  | L44: =IF(#REF!>0,IF(K44-#REF!=0,0,K44-#REF!),0) ->  | M44: =IF(#REF!>0,IF(L44-#REF!=0,0,L44-#REF!),0) -> 
D47: Server Modello 1 | G47: =SRV_A -> 0
D48: Server Modello 2 | G48: =SRV_AA -> 0
D49: Server Modello 3 | G49: =SRV_AAA -> 0
D50: Server Modello 4 | G50: =SRV_B -> 
D51: Server Modello 5 | G51: =SRV_BB -> 
D52: Server Modello 6 | G52: =SRV_BBB -> 
H54: =SUM(H5:H10)+H12+H96*2+H98*2 -> 0 | I54: 0 | J54: 0 | K54: 0 | L54: 0 | M54: 0
C62: Rack ancora da configurare | F62: =J15-H64-I64-J64-K64-L64-M64-#REF!-#REF!-#REF!-#REF! -> 
C64: Indicare il numero di rack per questa configurazione
E66: Totali | F66: da inserire | H66: =IF(C44>0,"RACK A","") ->  | I66: =IF(D44>0,"RACK B","") ->  | J66: =IF(E44>0,"RACK C","") ->  | K66: =IF(F44>0,"RACK D","") ->  | L66: =IF(G44>0,"RACK E","") ->  | M66: =IF(H44>0,"RACK F","") -> 
C68: =IF(G47*$J$15>0,"Server Lotto2 DL560 Conf.1","") ->  | E68: =G47 -> 0 | F68: =(E68-(H68*$H$64)-(I68*$I$64)-(J68*$J$64)-(K68*$K$64)-(L68*$L$64)-(M68*$M$64)-(#REF!*#REF!)-(#REF!*#REF!)-(#REF!*#REF!)-(#REF!*#REF!)) -> 
C69: =IF(G48*$J$15>0,"Server Lotto2 DL560 Conf.2","") ->  | E69: 0 | F69: =(E69-(H69*$H$64)-(I69*$I$64)-(J69*$J$64)-(K69*$K$64)-(L69*$L$64)-(M69*$M$64)-(#REF!*#REF!)-(#REF!*#REF!)-(#REF!*#REF!)-(#REF!*#REF!)) -> 
C70: =IF(G49*$J$15>0,"Server Lotto2 DL560 Conf.3","") ->  | E70: 0 | F70: =(E70-(H70*$H$64)-(I70*$I$64)-(J70*$J$64)-(K70*$K$64)-(L70*$L$64)-(M70*$M$64)-(#REF!*#REF!)-(#REF!*#REF!)-(#REF!*#REF!)-(#REF!*#REF!)) -> 
C71: =IF(G50*$J$15>0,"Server Lotto2 DL580 Conf.1","") ->  | F71: =(E71-(H71*$H$64)-(I71*$I$64)-(J71*$J$64)-(K71*$K$64)-(L71*$L$64)-(M71*$M$64)-(#REF!*#REF!)-(#REF!*#REF!)-(#REF!*#REF!)-(#REF!*#REF!)) -> 
C72: =IF(G51*$J$15>0,"Server Lotto2 DL580 Conf.2","") ->  | F72: =(E72-(H72*$H$64)-(I72*$I$64)-(J72*$J$64)-(K72*$K$64)-(L72*$L$64)-(M72*$M$64)-(#REF!*#REF!)-(#REF!*#REF!)-(#REF!*#REF!)-(#REF!*#REF!)) -> 
C73: =IF(G52*$J$15>0,"Server Lotto2 DL580 Conf.3","") ->  | F73: =(E73-(H73*$H$64)-(I73*$I$64)-(J73*$J$64)-(K73*$K$64)-(L73*$L$64)-(M73*$M$64)-(#REF!*#REF!)-(#REF!*#REF!)-(#REF!*#REF!)-(#REF!*#REF!)) -> 
C75: =IF(J24>0,"OpzGUIRack Disponibili"," ") ->  | E75: =J24 -> 0 | F75: =J24-H75*H64-I75*I64-J75*J64-K75*K64-L75*L64-M75*M64-#REF!*#REF!-#REF!*#REF!-#REF!*#REF!-#REF!*#REF! -> 
C77: =IF(J27>0,"OpzSWGUIRack Disponibili"," ") ->  | E77: =J27 -> 0 | F77: =J27-H77*H64-I77*I64-J77*J64-K77*K64-L77*L64-M77*M64-#REF!*#REF!-#REF!*#REF!-#REF!*#REF!-#REF!*#REF! -> 
C79: =IF(J39>0,"OpzUPS 3000VA Disponibili"," ") ->  | E79: =J39 -> 0 | F79: =J39-H79*H64-I79*I64-J79*J64-K79*K64-L79*L64-M79*M64-#REF!*#REF!-#REF!*#REF!-#REF!*#REF!-#REF!*#REF! -> 

Sheet Riepilogo
B1: Amministrazione | R1: CONFIGURATORE ELETTRONICO TECNOLOGIE SERVER 2 LOTTO 5 | V1: 1 | X1: Server1 | Y1: Server2 | Z1: Server3
B2: N° Identificativo Ordine | I2: =IF(AA2>0,"ERRORE DI CONFIGURAZIONE",IF(Y13>0,"ERRORE DI MANCATA COMPILAZIONE DATI NECESSARI PER L'ORDINATIVO","Configurazione OK")) -> ERRORE DI MANCATA COMPILAZIONE DATI NECESSARI PER L'ORDINATIVO | V2: 1 | W2: Errore | X2: =IF('Lotto5 DL560 Gen10 1'!H1="ERRORE VERIFICARE LA CONFIGURAZIONE",1,0) -> 0 | Y2: =IF('Lotto5 DL560 Gen10 2'!H1="ERRORE VERIFICARE LA CONFIGURAZIONE",1,0) -> 0 | Z2: =IF('Lotto5 DL560 Gen10 3'!H1="ERRORE VERIFICARE LA CONFIGURAZIONE",1,0) -> 0 | AA2: =SUM(X2:Z2) -> 0 | AD2: =IF('Lotto5 DL560 Gen10 1'!N1="ERRORE VERIFICARE LA CONFIGURAZIONE",1,0) -> 0
B3: Data Ordine | V3: 1 | W3: Dati non compilati | X3: Amministrazione | Y3: =IF(G1>0,0,1) -> 1
B4: Tot Ordine Portale CONSIP IVA incl. | G4: =R122 -> 0 | U4: Nel "Tot Ordine Portale CONSIP" deve essere inserito l'importo totale risultante dall'ordinativo del portale CONSIP. Qualora l'importo inserito corrisponde al valore ricalcolato dal configuratore viene attivato il pulsante "Salva in formato PDF" che permette di generare il file pdf da allegare all'ordinativo. | V4: 1 | X4: N° Identificativo Ordine | Y4: =IF(G2>0,0,1) -> 1
B5: LE CELLE IN GIALLO DEVO ESSERE COMPILATE OBBLIGATORIAMENTE | I5: =IF(AA2>0,"",IF(Y13>0,"","Cliccare il pulsante --------------> per generare il PDF da allegare")) ->  | V5: 1 | X5: Data Ordine | Y5: =IF(G3>0,0,1) -> 1
B6: Quantità Server Ordinati | G6: =IF(B15="",0,B15) -> 0 | T6: ver. 3.3 | V6: 1 | X6: Tot Ordine Portale CONSIP IVA incl. | Y6: =IF(G4>0,0,1) -> 1
V7: 1 | X7: Referente per la Consegna | Y7: =IF(E8>0,0,1) -> 1
B8: Referente per la Consegna | J8: Telefono | P8: email | V8: 1 | X8: Telefono | Y8: =IF(L8>0,0,1) -> 1
V9: 1 | X9: email | Y9: =IF(Q8>0,0,1) -> 1
B10: Referente per l'installazione | J10: Telefono | P10: email | V10: 1 | X10: Referente per l'installazione | Y10: =IF(E10>0,0,1) -> 1
V11: 1 | X11: Telefono | Y11: =IF(L10>0,0,1) -> 1
B12: ATTENZIONE: I CODICI PRODOTTO DELL'ORDINE DEVONO ESSERE SPECULARI A QUELLI GENERATI DAL CONFIGURATORE. | V12: 1 | X12: email | Y12: =IF(Q10>0,0,1) -> 1
B13: Qtà Ordinata | C13: CODICE ARTICOLO PRODUTTORE | G13: CODICE ARTICOLO CONVENZIONE | J13: Descrizione Sintetica (si faccia riferimento alla guida alla convenzione per la descrizione estesa e per le regole di acquisto delle opzioni) | R13: Costo Unitario | T13: Costo Complessivo | V13: 1 | Y13: =SUM(Y3:Y12) -> 10 | AA13: =Y13+AA2 -> 10 | AB13: =IF(AA13=0,"_SavePDFon","_SavePDFoff") -> _SavePDFoff
B14: SERVER PRESTAZIONALE (HPE PROLIANT DL560 Gen10) | V14: =IF(B15>="",0,1) -> 0 | W14: DL560 | X14: Server1 | Y14: Server2 | Z14: Server3
B15: =IF(AE15>=1,AE15,"") ->  | C15: =IF(AE15>0,(VLOOKUP(G15,COD_A,2,FALSE)),"") ->  | G15: =IF(AE15>=1,W15,"") ->  | J15: =IF(AE15>0,(VLOOKUP(G15,COD_A,5,FALSE)),"") ->  | R15: =IF(AE15>0,(VLOOKUP(G15,COD_A,3,FALSE)),"") ->  | T15: =IF(B15="","",R15*B15) ->  | V15: =IF(B15>="",0,1) -> 0 | W15: TS2L5-SRV-U | X15: =SRV_A -> 0 | Y15: =SRV_AA -> 0 | Z15: =SRV_AAA -> 0 | AE15: =SUM(X15:AD15) -> 0
B16: =IF(AE16>=1,AE16,"") ->  | G16: =IF(AE16>=1,W16,"") ->  | T16: =IF(B16="","",R16*B16) ->  | V16: =IF(B16>="",0,1) -> 0 | W16: TS2L5-CPU-U | X16: ='Lotto5 DL560 Gen10 1'!$C$30/2*$X$15 -> 0 | Y16: ='Lotto5 DL560 Gen10 2'!$C$30/2*$Y$15 -> 0 | Z16: ='Lotto5 DL560 Gen10 3'!$C$30/2*$Z$15 -> 0 | AE16: =SUM(X16:AD16) -> 0
B17: =IF(AE17>=1,AE17,"") ->  | C17: =IF(AE17=0,"",(VLOOKUP(G17,Codici!B:F,5,FALSE))) ->  | G17: =IF(AE17>=1,W17,"") ->  | J17: =IF(AE17>0,(VLOOKUP(G17,Codici!B:F,4,FALSE)),"") ->  | R17: =IF(AE17>0,(VLOOKUP(G17,Codici!B:F,2,FALSE)),"") ->  | T17: =IF(B17="","",R17*B17) ->  | V17: 0 | W17: TS2L5-RAM32-U | X17: =IF(MEM_A="",0,(MEM_A-4)*$X$15) -> 0 | Y17: =IF(MEM_AA="",0,(MEM_AA-4)*$Y$15) -> 0 | Z17: =IF(MEM_AAA="",0,(MEM_AAA-4)*$Z$15) -> 0 | AE17: 0
C18: =IF(AE18=0,"",(VLOOKUP(G18,Codici!B:F,5,FALSE))) ->  | J18: =IF(AE18>0,(VLOOKUP(G18,Codici!B:F,4,FALSE)),"") ->  | R18: =IF(AE18>0,(VLOOKUP(G18,Codici!B:F,2,FALSE)),"") ->  | V18: 0 | W18: TS2L5-RAM64-U | X18: =IF(MEM_A32="",0,MEM_A32*$X$15) -> 0 | Y18: =IF(MEM_AA32="",0,MEM_AA32*$Y$15) -> 0 | Z18: =IF(MEM_AAA32="",0,MEM_AAA32*$Z$15) -> 0 | AE18: 0
C19: =IF(AE19=0,"",(VLOOKUP(G19,Codici!B:F,5,FALSE))) ->  | J19: =IF(AE19>0,(VLOOKUP(G19,Codici!B:F,4,FALSE)),"") ->  | R19: =IF(AE19>0,(VLOOKUP(G19,Codici!B:F,2,FALSE)),"") ->  | V19: 0 | AE19: 0 | AH19: slot1 | AI19: ='Lotto5 DL560 Gen10 1'!$D$155 ->  | AJ19: ='Lotto5 DL560 Gen10 2'!$D$155 ->  | AK19: ='Lotto5 DL560 Gen10 3'!$D$155 -> 
C20: =IF(AE20=0,"",(VLOOKUP(G20,Codici!B:F,5,FALSE))) ->  | J20: =IF(AE20>0,(VLOOKUP(G20,Codici!B:F,4,FALSE)),"") ->  | R20: =IF(AE20>0,(VLOOKUP(G20,Codici!B:F,2,FALSE)),"") ->  | V20: 0 | W20: TS2L5-LAN1 | X20: =COUNTIF($AI$19:$AI$26,W20)*$X$15 -> 0 | Y20: =COUNTIF($AJ$19:$AJ$26,W20)*$Y$15 -> 0 | Z20: =COUNTIF($AK$19:$AK$26,W20)*$Z$15 -> 0 | AE20: 0 | AH20: slot2 | AI20: ='Lotto5 DL560 Gen10 1'!$D$158 ->  | AJ20: ='Lotto5 DL560 Gen10 2'!$D$158 ->  | AK20: ='Lotto5 DL560 Gen10 3'!$D$158 -> 
C21: =IF(AE21=0,"",(VLOOKUP(G21,Codici!B:F,5,FALSE))) ->  | J21: =IF(AE21>0,(VLOOKUP(G21,Codici!B:F,4,FALSE)),"") ->  | R21: =IF(AE21>0,(VLOOKUP(G21,Codici!B:F,2,FALSE)),"") ->  | V21: 0 | X21: =COUNTIF($AI$19:$AI$26,W21)*$X$15 -> 0 | Y21: =COUNTIF($AJ$19:$AJ$26,W21)*$Y$15 -> 0 | Z21: =COUNTIF($AK$19:$AK$26,W21)*$Z$15 -> 0 | AE21: 0 | AH21: slot3 | AI21: ='Lotto5 DL560 Gen10 1'!$D$161 ->  | AJ21: ='Lotto5 DL560 Gen10 2'!$D$161 ->  | AK21: ='Lotto5 DL560 Gen10 3'!$D$161 -> 
C22: =IF(AE22=0,"",(VLOOKUP(G22,Codici!B:F,5,FALSE))) ->  | J22: =IF(AE22>0,(VLOOKUP(G22,Codici!B:F,4,FALSE)),"") ->  | R22: =IF(AE22>0,(VLOOKUP(G22,Codici!B:F,2,FALSE)),"") ->  | V22: 0 | W22: TS2L5-LAN10 | X22: 0 | Y22: 0 | Z22: 0 | AE22: 0 | AH22: slot4 | AI22: ='Lotto5 DL560 Gen10 1'!$D$164 ->  | AJ22: ='Lotto5 DL560 Gen10 2'!$D$164 ->  | AK22: ='Lotto5 DL560 Gen10 3'!$D$164 -> 
C23: =IF(AE23=0,"",(VLOOKUP(G23,Codici!B:F,5,FALSE))) ->  | J23: =IF(AE23>0,(VLOOKUP(G23,Codici!B:F,4,FALSE)),"") ->  | R23: =IF(AE23>0,(VLOOKUP(G23,Codici!B:F,2,FALSE)),"") ->  | V23: 0 | X23: 0 | Y23: 0 | Z23: 0 | AE23: 0 | AH23: slot5 | AI23: ='Lotto5 DL560 Gen10 1'!$D$167 ->  | AJ23: ='Lotto5 DL560 Gen10 2'!$D$167 ->  | AK23: ='Lotto5 DL560 Gen10 3'!$D$167 -> 
C24: =IF(AE24=0,"",(VLOOKUP(G24,Codici!B:F,5,FALSE))) ->  | J24: =IF(AE24>0,(VLOOKUP(G24,Codici!B:F,4,FALSE)),"") ->  | R24: =IF(AE24>0,(VLOOKUP(G24,Codici!B:F,2,FALSE)),"") ->  | V24: 0 | W24: TS2L5-CNA10 | X24: 0 | Y24: 0 | Z24: 0 | AE24: 0 | AH24: slot6 | AI24: ='Lotto5 DL560 Gen10 1'!$D$170 ->  | AJ24: ='Lotto5 DL560 Gen10 2'!$D$170 ->  | AK24: ='Lotto5 DL560 Gen10 3'!$D$170 -> 
B25: =IF(AE25>=1,AE25,"") ->  | C25: =IF(AE25=0,"",(VLOOKUP(G25,Codici!B:F,5,FALSE))) ->  | G25: =IF(AE25>=1,W25,"") ->  | J25: =IF(AE25>0,(VLOOKUP(G25,Codici!B:F,4,FALSE)),"") ->  | R25: =IF(AE25>0,(VLOOKUP(G25,Codici!B:F,2,FALSE)),"") ->  | T25: =IF(B25="","",R25*B25) ->  | V25: 0 | X25: =COUNTIF($AI$19:$AI$26,W25)*$X$15 -> 0 | Y25: =COUNTIF($AJ$19:$AJ$26,W25)*$Y$15 -> 0 | Z25: =COUNTIF($AK$19:$AK$26,W25)*$Z$15 -> 0 | AE25: =SUM(X25:AD25) -> 0 | AH25: slot7 | AI25: ='Lotto5 DL560 Gen10 1'!$D$173 ->  | AJ25: ='Lotto5 DL560 Gen10 2'!$D$173 ->  | AK25: ='Lotto5 DL560 Gen10 3'!$D$173 -> 
B26: =IF(AE26>=1,AE26,"") ->  | C26: =IF(AE26=0,"",(VLOOKUP(G26,Codici!B:F,5,FALSE))) ->  | G26: =IF(AE26>=1,W26,"") ->  | J26: =IF(AE26>0,(VLOOKUP(G26,Codici!B:F,4,FALSE)),"") ->  | R26: =IF(AE26>0,(VLOOKUP(G26,Codici!B:F,2,FALSE)),"") ->  | V26: 0 | W26: TS2L5-FC16 | X26: 0 | Y26: 0 | Z26: 0 | AE26: 0 | AH26: slot8 | AI26: ='Lotto5 DL560 Gen10 1'!$D$176 ->  | AJ26: ='Lotto5 DL560 Gen10 2'!$D$176 ->  | AK26: ='Lotto5 DL560 Gen10 3'!$D$176 -> 
C27: =IF(AE27=0,"",(VLOOKUP(G27,Codici!B:F,5,FALSE))) ->  | J27: =IF(AE27>0,(VLOOKUP(G27,Codici!B:F,4,FALSE)),"") ->  | R27: =IF(AE27>0,(VLOOKUP(G27,Codici!B:F,2,FALSE)),"") ->  | V27: 0 | W27: TS2L5-15K300 | X27: =IF('Lotto5 DL560 Gen10 1'!$C$84>=1,('Lotto5 DL560 Gen10 1'!$C$84-2))*$X$15 -> 0 | Y27: =IF('Lotto5 DL560 Gen10 2'!$C$84>=1,('Lotto5 DL560 Gen10 2'!$C$84-2))*$Y$15 -> 0 | Z27: =IF('Lotto5 DL560 Gen10 3'!$C$84>=1,('Lotto5 DL560 Gen10 3'!$C$84-2))*$Z$15 -> 0 | AE27: 0
C28: =IF(AE28=0,"",(VLOOKUP(G28,Codici!B:F,5,FALSE))) ->  | J28: =IF(AE28>0,(VLOOKUP(G28,Codici!B:F,4,FALSE)),"") ->  | R28: =IF(AE28>0,(VLOOKUP(G28,Codici!B:F,2,FALSE)),"") ->  | V28: 0 | W28: TS2L5-10K1200 | X28: ='Lotto5 DL560 Gen10 1'!$C$86*$X$15 -> 0 | Y28: ='Lotto5 DL560 Gen10 2'!$C$86*$Y$15 -> 0 | Z28: ='Lotto5 DL560 Gen10 3'!$C$86*$Z$15 -> 0 | AE28: 0
C29: =IF(AE29=0,"",(VLOOKUP(G29,Codici!B:F,5,FALSE))) ->  | G29: =IF(AT29>0,W29,"") ->  | J29: =IF(AE29>0,(VLOOKUP(G29,Codici!B:F,4,FALSE)),"") ->  | R29: =IF(AE29>0,(VLOOKUP(G29,Codici!B:F,2,FALSE)),"") ->  | T29: =IF(B29="","",R29*B29) ->  | V29: 0 | W29: TS2L5-10K1800 | X29: ='Lotto5 DL560 Gen10 1'!$C$88*$X$15 -> 0 | Y29: ='Lotto5 DL560 Gen10 2'!$C$88*$Y$15 -> 0 | Z29: ='Lotto5 DL560 Gen10 3'!$C$88*$Z$15 -> 0 | AE29: 0 | AG29: =SUM(X29:Z29) -> 0 | AH29: =SUM(AA29:AC29) -> 0 | AI29: =SUM(AD29:AF29) -> 0 | AJ29: =X29*$X$15 -> 0 | AK29: =Y29*$Y$15 -> 0 | AL29: =Z29*$Z$15 -> 0 | AM29: =AA29*$X$36 -> 0 | AN29: =AB29*$Y$36 -> 0 | AO29: =AC29*$Z$36 -> 0 | AP29: =AD29*$X$56 -> 0 | AQ29: =AE29*$Y$56 -> 0 | AR29: =AF29*$Z$56 -> 0 | AT29: =SUM(AJ29:AS29) -> 0
C30: =IF(AE30=0,"",(VLOOKUP(G30,Codici!B:F,5,FALSE))) ->  | G30: =IF(AT30>0,W30,"") ->  | J30: =IF(AE30>0,(VLOOKUP(G30,Codici!B:F,4,FALSE)),"") ->  | R30: =IF(AE30>0,(VLOOKUP(G30,Codici!B:F,2,FALSE)),"") ->  | T30: =IF(B30="","",R30*B30) ->  | V30: 0 | W30: TS2L5-SSDR960 | X30: ='Lotto5 DL560 Gen10 1'!$C$99*$X$15 -> 0 | Y30: ='Lotto5 DL560 Gen10 2'!$C$99*$Y$15 -> 0 | Z30: ='Lotto5 DL560 Gen10 3'!$C$99*$Z$15 -> 0 | AE30: 0 | AG30: 0 | AH30: 0 | AI30: =SUM(AD30:AF30) -> 0 | AJ30: 0 | AK30: 0 | AL30: 0 | AM30: =AA30*$X$36 -> 0 | AN30: =AB30*$Y$36 -> 0 | AO30: =AC30*$Z$36 -> 0 | AP30: =AD30*$X$56 -> 0 | AQ30: =AE30*$Y$56 -> 0 | AR30: =AF30*$Z$56 -> 0 | AT30: =SUM(AJ30:AS30) -> 0
C31: =IF(AE31=0,"",(VLOOKUP(G31,Codici!B:F,5,FALSE))) ->  | G31: =IF(AE31>=1,W31,"") ->  | J31: =IF(AE31>0,(VLOOKUP(G31,Codici!B:F,4,FALSE)),"") ->  | R31: =IF(AE31>0,(VLOOKUP(G31,Codici!B:F,2,FALSE)),"") ->  | V31: 0 | W31: TS2L5-SSDR1920 | X31: ='Lotto5 DL560 Gen10 1'!$C$101*$X$15 -> 0 | Y31: ='Lotto5 DL560 Gen10 2'!$C$101*$Y$15 -> 0 | Z31: ='Lotto5 DL560 Gen10 3'!$C$101*$Z$15 -> 0 | AE31: =SUM(X31:AD31) -> 0
C32: =IF(AE32=0,"",(VLOOKUP(G32,Codici!B:F,5,FALSE))) ->  | J32: =IF(AE32>0,(VLOOKUP(G32,Codici!B:F,4,FALSE)),"") ->  | R32: =IF(AE32>0,(VLOOKUP(G32,Codici!B:F,2,FALSE)),"") ->  | V32: 0 | W32: TS2L5-4Y | X32: =IF('Lotto5 DL560 Gen10 1'!$D$218=W32,('Lotto5 DL560 Gen10 1'!$C$218)*$X$15,0) -> 0 | Y32: =IF('Lotto5 DL560 Gen10 2'!$D$218=W32,('Lotto5 DL560 Gen10 2'!$C$218)*$Y$15,0) -> 0 | Z32: =IF('Lotto5 DL560 Gen10 3'!$D$218=W32,('Lotto5 DL560 Gen10 3'!$C$218)*$Z$15,0) -> 0 | AE32: 0
C33: =IF(AE33=0,"",(VLOOKUP(G33,Codici!B:F,5,FALSE))) ->  | J33: =IF(AE33>0,(VLOOKUP(G33,Codici!B:F,4,FALSE)),"") ->  | R33: =IF(AE33>0,(VLOOKUP(G33,Codici!B:F,2,FALSE)),"") ->  | V33: 0 | W33: TS2L5-5Y | X33: =IF('Lotto5 DL560 Gen10 1'!$D$218=W33,('Lotto5 DL560 Gen10 1'!$C$218)*$X$15,0) -> 0 | Y33: =IF('Lotto5 DL560 Gen10 2'!$D$218=W33,('Lotto5 DL560 Gen10 2'!$C$218)*$Y$15,0) -> 0 | Z33: =IF('Lotto5 DL560 Gen10 3'!$D$218=W33,('Lotto5 DL560 Gen10 3'!$C$218)*$Z$15,0) -> 0 | AE33: 0
C34: =IF(AE34=0,"",(VLOOKUP(G34,Codici!B:F,5,FALSE))) ->  | J34: =IF(AE34>0,(VLOOKUP(G34,Codici!B:F,4,FALSE)),"") ->  | R34: =IF(AE34>0,(VLOOKUP(G34,Codici!B:F,2,FALSE)),"") ->  | V34: 0 | W34: 10L2-SO-HDD | AE34: 0
B35: OPZIONI COMUNI | V35: =IF(SUM(V36:V50)=0,0,1) -> 0 | W35: Comuni | X35: DL560 | Y35: DL560 2 | Z35: DL560 3
B36: =IF(AT36=0,"",AT36) ->  | C36: =IF(AG36=0,"",(VLOOKUP(G36,Codici!B:F,5,FALSE))) ->  | G36: =IF(AT36>0,W36,"") ->  | J36: =IF(AG36>0,(VLOOKUP(G36,Codici!B:F,4,FALSE)),"") ->  | R36: =IF(AG36>0,(VLOOKUP(G36,Codici!B:F,2,FALSE)),"") ->  | T36: =IF(B36="","",R36*B36) ->  | V36: =IF(B36>="",0,1) -> 0 | W36: TS2L5-WIN1 | X36: =IF('Lotto5 DL560 Gen10 1'!$D$46=W36,1*$X$15,0) -> 0 | Y36: =IF('Lotto5 DL560 Gen10 2'!$D$46=W36,1*$Y$15,0) -> 0 | Z36: =IF('Lotto5 DL560 Gen10 3'!$D$46=W36,1*$Z$15,0) -> 0 | AG36: =SUM(X36:Z36) -> 0 | AH36: =SUM(AA36:AC36) -> 0 | AI36: =SUM(AD36:AF36) -> 0 | AT36: =SUM(AG36:AR36) -> 0
C37: =IF(AG37=0,"",(VLOOKUP(G37,Codici!B:F,5,FALSE))) ->  | J37: =IF(AG37>0,(VLOOKUP(G37,Codici!B:F,4,FALSE)),"") ->  | R37: =IF(AG37>0,(VLOOKUP(G37,Codici!B:F,2,FALSE)),"") ->  | V37: 0 | W37: TS2L5-WIN2 | X37: =IF('Lotto5 DL560 Gen10 1'!$D$47=$W$37,'Lotto5 DL560 Gen10 1'!$C$47*$X$15,0) -> 0 | Y37: =IF('Lotto5 DL560 Gen10 2'!$D$47=$W$37,'Lotto5 DL560 Gen10 2'!$C$47*$Y$15,0) -> 0 | Z37: =IF('Lotto5 DL560 Gen10 3'!$D$47=$W$37,'Lotto5 DL560 Gen10 3'!$C$47*$Z$15,0) -> 0 | AG37: 0 | AH37: 0 | AI37: =SUM(AD37:AF37) -> 0 | AT37: =SUM(AG37:AR37) -> 0
C38: =IF(AG38=0,"",(VLOOKUP(G38,Codici!B:F,5,FALSE))) ->  | J38: =IF(AG38>0,(VLOOKUP(G38,Codici!B:F,4,FALSE)),"") ->  | R38: =IF(AG38>0,(VLOOKUP(G38,Codici!B:F,2,FALSE)),"") ->  | V38: 0 | W38: TS2L5-WINDC1 | X38: =IF('Lotto5 DL560 Gen10 1'!$D$46=W38,1*$X$15,0) -> 0 | Y38: =IF('Lotto5 DL560 Gen10 2'!$D$46=W38,1*$Y$15,0) -> 0 | Z38: =IF('Lotto5 DL560 Gen10 3'!$D$46=W38,1*$Z$15,0) -> 0 | AG38: 0 | AH38: 0 | AI38: 0 | AT38: 0
C39: =IF(AG39=0,"",(VLOOKUP(G39,Codici!B:F,5,FALSE))) ->  | J39: =IF(AG39>0,(VLOOKUP(G39,Codici!B:F,4,FALSE)),"") ->  | R39: =IF(AG39>0,(VLOOKUP(G39,Codici!B:F,2,FALSE)),"") ->  | T39: =IF(B39="","",R39*B39) ->  | V39: 0 | W39: TS2L5-WINDC2 | X39: =IF('Lotto5 DL560 Gen10 1'!$D$47=$W$39,'Lotto5 DL560 Gen10 1'!$C$47*$X$15,0) -> 0 | Y39: =IF('Lotto5 DL560 Gen10 2'!$D$47=$W$39,'Lotto5 DL560 Gen10 2'!$C$47*$Y$15,0) -> 0 | Z39: =IF('Lotto5 DL560 Gen10 3'!$D$47=$W$39,'Lotto5 DL560 Gen10 3'!$C$47*$Z$15,0) -> 0 | AG39: 0 | AH39: 0 | AI39: 0 | AT39: 0
C40: =IF(AG40=0,"",(VLOOKUP(G40,Codici!B:F,5,FALSE))) ->  | J40: =IF(AG40>0,(VLOOKUP(G40,Codici!B:F,4,FALSE)),"") ->  | R40: =IF(AG40>0,(VLOOKUP(G40,Codici!B:F,2,FALSE)),"") ->  | V40: 0 | W40: TS2L5-LINUX | X40: =IF('Lotto5 DL560 Gen10 1'!$D$46=$W$40,1*$X$15,0) -> 0 | Y40: =IF('Lotto5 DL560 Gen10 2'!$D$46=$W$40,1*$Y$15,0) -> 0 | Z40: =IF('Lotto5 DL560 Gen10 3'!$D$46=$W$40,1*$Z$15,0) -> 0 | AG40: 0 | AH40: 0 | AI40: 0 | AT40: 0
C41: =IF(AG41=0,"",(VLOOKUP(G41,Codici!B:F,5,FALSE))) ->  | J41: =IF(AG41>0,(VLOOKUP(G41,Codici!B:F,4,FALSE)),"") ->  | R41: =IF(AG41>0,(VLOOKUP(G41,Codici!B:F,2,FALSE)),"") ->  | V41: 0 | W41: TS2L5-CALUSER | X41: =IF(($X$36+$X$38)>0,'Lotto5 DL560 Gen10 1'!$C$51*$X$15,0) -> 0 | Y41: =IF(($Y$36+$Y$38)>0,'Lotto5 DL560 Gen10 2'!$C$51*$Y$15,0) -> 0 | Z41: =IF(($Z$36+$Z$38)>0,'Lotto5 DL560 Gen10 3'!$C$51*$Z$15,0) -> 0 | AG41: 0 | AH41: 0 | AI41: 0 | AT41: 0
C42: =IF(AG42=0,"",(VLOOKUP(G42,Codici!B:F,5,FALSE))) ->  | J42: =IF(AG42>0,(VLOOKUP(G42,Codici!B:F,4,FALSE)),"") ->  | R42: =IF(AG42>0,(VLOOKUP(G42,Codici!B:F,2,FALSE)),"") ->  | V42: 0 | W42: TS2L5-CALDEV | X42: =IF(($X$36+$X$38)>0,'Lotto5 DL560 Gen10 1'!$C$53*$X$15,0) -> 0 | Y42: =IF(($Y$36+$Y$38)>0,'Lotto5 DL560 Gen10 2'!$C$53*$Y$15,0) -> 0 | Z42: =IF(($Z$36+$Z$38)>0,'Lotto5 DL560 Gen10 3'!$C$53*$Z$15,0) -> 0 | AG42: 0 | AH42: 0 | AI42: 0 | AT42: 0
B43: =IF(AT43=0,"",AT43) ->  | C43: =IF(AG43=0,"",(VLOOKUP(G43,Codici!B:F,5,FALSE))) ->  | G43: =IF(AT43>0,W43,"") ->  | J43: =IF(AG43>0,(VLOOKUP(G43,Codici!B:F,4,FALSE)),"") ->  | R43: =IF(AG43>0,(VLOOKUP(G43,Codici!B:F,2,FALSE)),"") ->  | V43: 0 | W43: TS2L5-WINDC2COR | X43: =IF('Lotto5 DL560 Gen10 1'!$D$48=$W$43,'Lotto5 DL560 Gen10 1'!$C$48*$X$15,0) -> 0 | Y43: =IF('Lotto5 DL560 Gen10 2'!$D$48=$W$43,'Lotto5 DL560 Gen10 2'!$C$48*$Y$15,0) -> 0 | Z43: =IF('Lotto5 DL560 Gen10 3'!$D$48=$W$43,'Lotto5 DL560 Gen10 3'!$C$48*$Z$15,0) -> 0 | AG43: =SUM(X43:Z43) -> 0 | AT43: 0
C44: =IF(AG44=0,"",(VLOOKUP(G44,Codici!B:F,5,FALSE))) ->  | J44: =IF(AG44>0,(VLOOKUP(G44,Codici!B:F,4,FALSE)),"") ->  | R44: =IF(AG44>0,(VLOOKUP(G44,Codici!B:F,2,FALSE)),"") ->  | V44: 0 | W44: TS2L5-WIN2CORE | X44: =IF('Lotto5 DL560 Gen10 1'!$D$48=Riepilogo!$W$44,'Lotto5 DL560 Gen10 1'!$C$48*$X$15,0) -> 0 | Y44: =IF('Lotto5 DL560 Gen10 2'!$D$48=Riepilogo!$W$44,'Lotto5 DL560 Gen10 2'!$C$48*$Y$15,0) -> 0 | Z44: =IF('Lotto5 DL560 Gen10 3'!$D$48=Riepilogo!$W$44,'Lotto5 DL560 Gen10 3'!$C$48*$Z$15,0) -> 0 | AG44: 0 | AH44: 0 | AI44: 0 | AT44: 0
B45: =IF('RACK, Accessori e Servizi'!J15=0,"",'RACK, Accessori e Servizi'!J15) ->  | C45: =IF(AG45=0,"",(VLOOKUP(G45,Codici!B:F,5,FALSE))) ->  | G45: =IF('RACK, Accessori e Servizi'!J15>0,'RACK, Accessori e Servizi'!K15,"") ->  | J45: =IF(AG45>0,(VLOOKUP(G45,Codici!B:F,4,FALSE)),"") ->  | R45: =IF(AG45>0,(VLOOKUP(G45,Codici!B:F,2,FALSE)),"") ->  | T45: =IF(B45="","",R45*B45) ->  | V45: 0 | W45: TS2L5-RACK | AG45: ='RACK, Accessori e Servizi'!J15 -> 0
B46: =IF('RACK, Accessori e Servizi'!J24=0,"",'RACK, Accessori e Servizi'!J24) ->  | C46: =IF(AG46=0,"",(VLOOKUP(G46,Codici!B:F,5,FALSE))) ->  | G46: =IF('RACK, Accessori e Servizi'!J24>0,'RACK, Accessori e Servizi'!K24,"") ->  | J46: =IF(AG46>0,(VLOOKUP(G46,Codici!B:F,4,FALSE)),"") ->  | R46: =IF(AG46>0,(VLOOKUP(G46,Codici!B:F,2,FALSE)),"") ->  | V46: 0 | W46: TS2L5-GUI | AG46: ='RACK, Accessori e Servizi'!J24 -> 0
B47: =IF('RACK, Accessori e Servizi'!J27=0,"",'RACK, Accessori e Servizi'!J27) ->  | C47: =IF(AG47=0,"",(VLOOKUP(G47,Codici!B:F,5,FALSE))) ->  | G47: =IF('RACK, Accessori e Servizi'!J27>0,'RACK, Accessori e Servizi'!K27,"") ->  | J47: =IF(AG47>0,(VLOOKUP(G47,Codici!B:F,4,FALSE)),"") ->  | R47: =IF(AG47>0,(VLOOKUP(G47,Codici!B:F,2,FALSE)),"") ->  | V47: 0 | W47: TS2L5-KVMIP | AG47: ='RACK, Accessori e Servizi'!J27 -> 0
B48: =IF('RACK, Accessori e Servizi'!J30=0,"",'RACK, Accessori e Servizi'!J30) ->  | C48: =IF(AG48=0,"",(VLOOKUP(G48,Codici!B:F,5,FALSE))) ->  | G48: =IF('RACK, Accessori e Servizi'!J30>0,'RACK, Accessori e Servizi'!K30,"") ->  | J48: =IF(AG48>0,(VLOOKUP(G48,Codici!B:F,4,FALSE)),"") ->  | R48: =IF(AG48>0,(VLOOKUP(G48,Codici!B:F,2,FALSE)),"") ->  | V48: 0 | W48: TS2L5-UPS | AG48: ='RACK, Accessori e Servizi'!J30 -> 0
V49: 0
V50: 0 | X50: =COUNTIF($AI$19:$AI$26,W50)*$X$15 -> 0 | Y50: =COUNTIF($AJ$19:$AJ$26,W50)*$Y$15 -> 0 | Z50: =COUNTIF($AK$19:$AK$26,W50)*$Z$15 -> 0 | AJ50: Moltiplica x il num server
B51: ULTERIORI OPZIONI 20% | V51: =IF(SUM(V52:V117)=0,0,1) -> 0 | X51: DL560 | Y51: DL560 2 | Z51: DL560 3 | AJ51: DL560 | AK51: DL560 2 | AL51: DL560 3 | AT51: SOMMA
B52: =IF(AT52=0,"",AT52) ->  | C52: =IF(AG52=0,"",(VLOOKUP(G52,Codici!B:F,5,FALSE))) ->  | G52: =IF(AT52>0,W52,"") ->  | J52: =IF(AG52>0,(VLOOKUP(G52,Codici!B:F,4,FALSE)),"") ->  | R52: =IF(AG52>0,(VLOOKUP(G52,Codici!B:F,2,FALSE)),"") ->  | T52: =IF(B52="","",R52*B52) ->  | V52: 0 | W52: TS2L5-3MRJ45 | X52: =IF(X15>=1,'Lotto5 DL560 Gen10 1'!$C$188,0)*$X$15 -> 0 | Y52: =IF(Y15>=1,'Lotto5 DL560 Gen10 2'!$C$188,0)*$Y$15 -> 0 | Z52: =IF(Z15>=1,'Lotto5 DL560 Gen10 3'!$C$188,0)*$Z$15 -> 0 | AG52: =SUM(X52:Z52) -> 0 | AH52: =SUM(AA52:AC52) -> 0 | AI52: =SUM(AD52:AF52) -> 0 | AJ52: =X52*$X$15 -> 0 | AK52: =Y52*$Y$15 -> 0 | AL52: =Z52*$Z$15 -> 0 | AM52: =AA52*$X$36 -> 0 | AN52: =AB52*$Y$36 -> 0 | AO52: =AC52*$Z$36 -> 0 | AT52: =AG52 -> 0
C53: =IF(AG53=0,"",(VLOOKUP(G53,Codici!B:F,5,FALSE))) ->  | G53: =IF(AT53>0,W53,"") ->  | J53: =IF(AG53>0,(VLOOKUP(G53,Codici!B:F,4,FALSE)),"") ->  | R53: =IF(AG53>0,(VLOOKUP(G53,Codici!B:F,2,FALSE)),"") ->  | T53: =IF(B53="","",R53*B53) ->  | V53: 0 | W53: TS2L5-E208IA | X53: =IF('Lotto5 DL560 Gen10 1'!$C$77=1,0,1)*$X$15 -> 0 | Y53: =IF('Lotto5 DL560 Gen10 2'!$C$77=1,0,1)*$Y$15 -> 0 | Z53: =IF('Lotto5 DL560 Gen10 3'!$C$77=1,0,1)*$Z$15 -> 0 | AE53: =SUM(X53:AD53) -> 0 | AG53: 0 | AH53: 0 | AI53: 0 | AJ53: 0 | AK53: 0 | AL53: 0 | AM53: 0 | AN53: 0 | AO53: 0 | AT53: =AG53 -> 0
C54: =IF(AG54=0,"",(VLOOKUP(G54,Codici!B:F,5,FALSE))) ->  | J54: =IF(AG54>0,(VLOOKUP(G54,Codici!B:F,4,FALSE)),"") ->  | R54: =IF(AG54>0,(VLOOKUP(G54,Codici!B:F,2,FALSE)),"") ->  | V54: 0 | W54: TS2L5-E208IP | X54: =COUNTIF($AI$19:$AI$26,W54)*$X$15 -> 0 | Y54: =COUNTIF($AJ$19:$AJ$26,W54)*$Y$15 -> 0 | Z54: =COUNTIF($AK$19:$AK$26,W54)*$Z$15 -> 0 | AG54: =SUM(X54:Z54) -> 0 | AH54: =SUM(AA54:AC54) -> 0 | AI54: =SUM(AD54:AF54) -> 0 | AJ54: 0 | AK54: 0 | AL54: 0 | AM54: =AA54*$X$36 -> 0 | AN54: =AB54*$Y$36 -> 0 | AO54: =AC54*$Z$36 -> 0 | AT54: =AG54 -> 0
C55: =IF(AG55=0,"",(VLOOKUP(G55,Codici!B:F,5,FALSE))) ->  | J55: =IF(AG55>0,(VLOOKUP(G55,Codici!B:F,4,FALSE)),"") ->  | R55: =IF(AG55>0,(VLOOKUP(G55,Codici!B:F,2,FALSE)),"") ->  | V55: 0 | W55: TS2L5-HDDBAY | X55: =IF('Lotto5 DL560 Gen10 1'!$C$69+'Lotto5 DL560 Gen10 1'!$C$72=2,1,0)*$X$15 -> 0 | Y55: =IF('Lotto5 DL560 Gen10 2'!$C$69+'Lotto5 DL560 Gen10 2'!$C$72=2,1,0)*$Y$15 -> 0 | Z55: =IF('Lotto5 DL560 Gen10 3'!$C$69+'Lotto5 DL560 Gen10 3'!$C$72=2,1,0)*$Z$15 -> 0 | AG55: =SUM(X55:Z55) -> 0 | AH55: =SUM(AA55:AC55) -> 0 | AI55: =SUM(AD55:AF55) -> 0 | AJ55: =X55*$X$15 -> 0 | AK55: =Y55*$Y$15 -> 0 | AL55: =Z55*$Z$15 -> 0 | AM55: =AA55*$X$36 -> 0 | AN55: =AB55*$Y$36 -> 0 | AO55: =AC55*$Z$36 -> 0 | AT55: =AG55 -> 0
B56: =IF(AT56=0,"",AT56) ->  | C56: =IF(AG56=0,"",(VLOOKUP(G56,Codici!B:F,5,FALSE))) ->  | G56: =IF(AT56>0,W56,"") ->  | J56: =IF(AG56>0,(VLOOKUP(G56,Codici!B:F,4,FALSE)),"") ->  | R56: =IF(AG56>0,(VLOOKUP(G56,Codici!B:F,2,FALSE)),"") ->  | T56: =IF(B56="","",R56*B56) ->  | V56: =IF(B56>="",0,1) -> 0 | W56: TS2L5-SASBAY1 | X56: =IF('Lotto5 DL560 Gen10 1'!$C$79="",0,1)*$X$15 -> 0 | Y56: =IF('Lotto5 DL560 Gen10 2'!$C$79="",0,1)*$Y$15 -> 0 | Z56: =IF('Lotto5 DL560 Gen10 3'!$C$79="",0,1)*$Z$15 -> 0 | AG56: =SUM(X56:Z56) -> 0 | AH56: =SUM(AA56:AC56) -> 0 | AI56: =SUM(AD56:AF56) -> 0 | AJ56: =X56*$X$15 -> 0 | AK56: =Y56*$Y$15 -> 0 | AL56: =Z56*$Z$15 -> 0 | AM56: =AA56*$X$36 -> 0 | AN56: =AB56*$Y$36 -> 0 | AO56: =AC56*$Z$36 -> 0 | AT56: =AG56 -> 0
C57: =IF(AG57=0,"",(VLOOKUP(G57,Codici!B:F,5,FALSE))) ->  | J57: =IF(AG57>0,(VLOOKUP(G57,Codici!B:F,4,FALSE)),"") ->  | R57: =IF(AG57>0,(VLOOKUP(G57,Codici!B:F,2,FALSE)),"") ->  | V57: 0 | W57: TS2L5-M2240 | X57: =IF('Lotto5 DL560 Gen10 1'!$C$185=0,0,1)*$X$15 -> 0 | Y57: =IF('Lotto5 DL560 Gen10 2'!$C$185=0,0,1)*$Y$15 -> 0 | Z57: =IF('Lotto5 DL560 Gen10 3'!$C$185=0,0,1)*$Z$15 -> 0 | AE57: =SUM(X57:AD57) -> 0 | AG57: =SUM(X57:Z57) -> 0 | AH57: =SUM(AA57:AC57) -> 0 | AI57: =SUM(AD57:AF57) -> 0 | AJ57: =X57*$X$15 -> 0 | AK57: =Y57*$Y$15 -> 0 | AL57: =Z57*$Z$15 -> 0 | AM57: =AA57*$X$36 -> 0 | AN57: =AB57*$Y$36 -> 0 | AO57: =AC57*$Z$36 -> 0 | AT57: =AG57 -> 0
C58: =IF(AG58=0,"",(VLOOKUP(G58,Codici!B:F,5,FALSE))) ->  | J58: =IF(AG58>0,(VLOOKUP(G58,Codici!B:F,4,FALSE)),"") ->  | R58: =IF(AG58>0,(VLOOKUP(G58,Codici!B:F,2,FALSE)),"") ->  | V58: 0 | W58: TS2L5-8NVME | X58: =IF('Lotto5 DL560 Gen10 1'!$C$69=0,0,1)*$X$15 -> 0 | Y58: =IF('Lotto5 DL560 Gen10 2'!$C$69=0,0,1)*$Y$15 -> 0 | Z58: =IF('Lotto5 DL560 Gen10 3'!$C$69=0,0,1)*$Z$15 -> 0 | AE58: =SUM(X58:AD58) -> 0 | AG58: =SUM(X58:Z58) -> 0 | AH58: =SUM(AA58:AC58) -> 0 | AI58: =SUM(AD58:AF58) -> 0 | AJ58: =X58*$X$15 -> 0 | AK58: =Y58*$Y$15 -> 0 | AL58: =Z58*$Z$15 -> 0 | AM58: =AA58*$X$36 -> 0 | AN58: =AB58*$Y$36 -> 0 | AO58: =AC58*$Z$36 -> 0 | AT58: =AG58 -> 0
C59: =IF(AG59=0,"",(VLOOKUP(G59,Codici!B:F,5,FALSE))) ->  | J59: =IF(AG59>0,(VLOOKUP(G59,Codici!B:F,4,FALSE)),"") ->  | R59: =IF(AG59>0,(VLOOKUP(G59,Codici!B:F,2,FALSE)),"") ->  | V59: 0 | W59: TS2L5-375NVMEWI | X59: ='Lotto5 DL560 Gen10 1'!$C$108*$X$15 -> 0 | Y59: ='Lotto5 DL560 Gen10 2'!$C$108*$Y$15 -> 0 | Z59: ='Lotto5 DL560 Gen10 3'!$C$108*$Z$15 -> 0 | AG59: 0 | AJ59: 0 | AK59: 0 | AL59: 0 | AT59: 0
C60: =IF(AG60=0,"",(VLOOKUP(G60,Codici!B:F,5,FALSE))) ->  | J60: =IF(AG60>0,(VLOOKUP(G60,Codici!B:F,4,FALSE)),"") ->  | R60: =IF(AG60>0,(VLOOKUP(G60,Codici!B:F,2,FALSE)),"") ->  | V60: 0 | W60: TS2L5-750NVMEWI | X60: ='Lotto5 DL560 Gen10 1'!$C$110*$X$15 -> 0 | Y60: ='Lotto5 DL560 Gen10 2'!$C$110*$Y$15 -> 0 | Z60: ='Lotto5 DL560 Gen10 3'!$C$110*$Z$15 -> 0 | AG60: =SUM(X60:Z60) -> 0 | AJ60: =X60*$X$15 -> 0 | AK60: =Y60*$Y$15 -> 0 | AL60: =Z60*$Z$15 -> 0 | AT60: =AG60 -> 0
C61: =IF(AG61=0,"",(VLOOKUP(G61,Codici!B:F,5,FALSE))) ->  | J61: =IF(AG61>0,(VLOOKUP(G61,Codici!B:F,4,FALSE)),"") ->  | R61: =IF(AG61>0,(VLOOKUP(G61,Codici!B:F,2,FALSE)),"") ->  | V61: 0 | W61: TS2L5-800NVMEMU | X61: ='Lotto5 DL560 Gen10 1'!$C$112*$X$15 -> 0 | Y61: ='Lotto5 DL560 Gen10 2'!$C$112*$Y$15 -> 0 | Z61: ='Lotto5 DL560 Gen10 3'!$C$112*$Z$15 -> 0 | AG61: 0 | AJ61: 0 | AK61: 0 | AL61: 0 | AT61: 0
C62: =IF(AG62=0,"",(VLOOKUP(G62,Codici!B:F,5,FALSE))) ->  | J62: =IF(AG62>0,(VLOOKUP(G62,Codici!B:F,4,FALSE)),"") ->  | R62: =IF(AG62>0,(VLOOKUP(G62,Codici!B:F,2,FALSE)),"") ->  | V62: 0 | W62: TS2L5-2000NVMERI | X62: ='Lotto5 DL560 Gen10 1'!$C$114*$X$15 -> 0 | Y62: ='Lotto5 DL560 Gen10 2'!$C$114*$Y$15 -> 0 | Z62: ='Lotto5 DL560 Gen10 3'!$C$114*$Z$15 -> 0 | AG62: 0 | AJ62: 0 | AK62: 0 | AL62: 0 | AT62: 0
C63: =IF(AG63=0,"",(VLOOKUP(G63,Codici!B:F,5,FALSE))) ->  | J63: =IF(AG63>0,(VLOOKUP(G63,Codici!B:F,4,FALSE)),"") ->  | R63: =IF(AG63>0,(VLOOKUP(G63,Codici!B:F,2,FALSE)),"") ->  | V63: 0 | W63: TS2L5-SSD3840RI | X63: ='Lotto5 DL560 Gen10 1'!$C$103*$X$15 -> 0 | Y63: ='Lotto5 DL560 Gen10 2'!$C$103*$Y$15 -> 0 | Z63: ='Lotto5 DL560 Gen10 3'!$C$103*$Z$15 -> 0 | AG63: 0 | AJ63: 0 | AK63: 0 | AL63: 0 | AT63: 0
C64: =IF(AG64=0,"",(VLOOKUP(G64,Codici!B:F,5,FALSE))) ->  | J64: =IF(AG64>0,(VLOOKUP(G64,Codici!B:F,4,FALSE)),"") ->  | R64: =IF(AG64>0,(VLOOKUP(G64,Codici!B:F,2,FALSE)),"") ->  | V64: 0 | W64: TS2L5-4000NVMERI | X64: ='Lotto5 DL560 Gen10 1'!$C$118*$X$15 -> 0 | Y64: ='Lotto5 DL560 Gen10 2'!$C$118*$Y$15 -> 0 | Z64: ='Lotto5 DL560 Gen10 3'!$C$118*$Z$15 -> 0 | AG64: 0 | AJ64: 0 | AK64: 0 | AL64: 0 | AT64: 0
C65: =IF(AG65=0,"",(VLOOKUP(G65,Codici!B:F,5,FALSE))) ->  | J65: =IF(AG65>0,(VLOOKUP(G65,Codici!B:F,4,FALSE)),"") ->  | R65: =IF(AG65>0,(VLOOKUP(G65,Codici!B:F,2,FALSE)),"") ->  | V65: 0 | W65: TS2L5-1600NVMEMU | X65: ='Lotto5 DL560 Gen10 1'!$C$120*$X$15 -> 0 | Y65: ='Lotto5 DL560 Gen10 2'!$C$120*$Y$15 -> 0 | Z65: ='Lotto5 DL560 Gen10 3'!$C$120*$Z$15 -> 0 | AG65: 0 | AJ65: 0 | AK65: 0 | AL65: 0 | AT65: 0
C66: =IF(AG66=0,"",(VLOOKUP(G66,Codici!B:F,5,FALSE))) ->  | J66: =IF(AG66>0,(VLOOKUP(G66,Codici!B:F,4,FALSE)),"") ->  | R66: =IF(AG66>0,(VLOOKUP(G66,Codici!B:F,2,FALSE)),"") ->  | V66: 0 | W66: TS2L5-3200NVMEMU | X66: ='Lotto5 DL560 Gen10 1'!$C$122*$X$15 -> 0 | Y66: ='Lotto5 DL560 Gen10 2'!$C$122*$Y$15 -> 0 | Z66: ='Lotto5 DL560 Gen10 3'!$C$122*$Z$15 -> 0 | AG66: 0 | AJ66: 0 | AK66: 0 | AL66: 0 | AT66: 0
C67: =IF(AG67=0,"",(VLOOKUP(G67,Codici!B:F,5,FALSE))) ->  | J67: =IF(AG67>0,(VLOOKUP(G67,Codici!B:F,4,FALSE)),"") ->  | R67: =IF(AG67>0,(VLOOKUP(G67,Codici!B:F,2,FALSE)),"") ->  | V67: 0 | W67: TS2L5-750NVMEWIHH | X67: =COUNTIF($AI$19:$AI$26,W67)*$X$15 -> 0 | Y67: =COUNTIF($AJ$19:$AJ$26,W67)*$Y$15 -> 0 | Z67: =COUNTIF($AK$19:$AK$26,W67)*$Z$15 -> 0 | AG67: =SUM(X67:Z67) -> 0 | AH67: =SUM(AA67:AC67) -> 0 | AI67: =SUM(AD67:AF67) -> 0 | AJ67: =X67*$X$15 -> 0 | AK67: =Y67*$Y$15 -> 0 | AL67: =Z67*$Z$15 -> 0 | AM67: =AA67*$X$36 -> 0 | AN67: =AB67*$Y$36 -> 0 | AO67: =AC67*$Z$36 -> 0 | AT67: =AG67 -> 0
C68: =IF(AG68=0,"",(VLOOKUP(G68,Codici!B:F,5,FALSE))) ->  | J68: =IF(AG68>0,(VLOOKUP(G68,Codici!B:F,4,FALSE)),"") ->  | R68: =IF(AG68>0,(VLOOKUP(G68,Codici!B:F,2,FALSE)),"") ->  | V68: 0 | W68: TS2L5-1600NVMEMUHH | X68: =COUNTIF($AI$19:$AI$26,W68)*$X$15 -> 0 | Y68: 0 | Z68: 0 | AG68: 0 | AH68: 0 | AI68: 0 | AJ68: 0 | AK68: 0 | AL68: 0 | AM68: 0 | AN68: 0 | AO68: 0 | AT68: 0
C69: =IF(AG69=0,"",(VLOOKUP(G69,Codici!B:F,5,FALSE))) ->  | J69: =IF(AG69>0,(VLOOKUP(G69,Codici!B:F,4,FALSE)),"") ->  | R69: =IF(AG69>0,(VLOOKUP(G69,Codici!B:F,2,FALSE)),"") ->  | V69: 0 | W69: TS2L5-3200NVMEMUHH | X69: =COUNTIF($AI$19:$AI$26,W69)*$X$15 -> 0 | Y69: 0 | Z69: 0 | AG69: 0 | AH69: 0 | AI69: 0 | AJ69: 0 | AK69: 0 | AL69: 0 | AM69: 0 | AN69: 0 | AO69: 0 | AT69: 0
C70: =IF(AG70=0,"",(VLOOKUP(G70,Codici!B:F,5,FALSE))) ->  | J70: =IF(AG70>0,(VLOOKUP(G70,Codici!B:F,4,FALSE)),"") ->  | R70: =IF(AG70>0,(VLOOKUP(G70,Codici!B:F,2,FALSE)),"") ->  | V70: 0 | W70: TS2L5-6400NVMEMUHH | X70: =COUNTIF($AI$19:$AI$26,W70)*$X$15 -> 0 | Y70: 0 | Z70: 0 | AG70: 0 | AH70: 0 | AI70: 0 | AJ70: 0 | AK70: 0 | AL70: 0 | AM70: 0 | AN70: 0 | AO70: 0 | AT70: 0
B71: =IF(AT71=0,"",AT71) ->  | C71: =IF(AG71=0,"",(VLOOKUP(G71,Codici!B:F,5,FALSE))) ->  | G71: =IF(AT71>0,W71,"") ->  | J71: =IF(AG71>0,(VLOOKUP(G71,Codici!B:F,4,FALSE)),"") ->  | R71: =IF(AG71>0,(VLOOKUP(G71,Codici!B:F,2,FALSE)),"") ->  | T71: =IF(B71="","",R71*B71) ->  | V71: =IF(B71>="",0,1) -> 0 | W71: TS2L5-SSD400MU | X71: ='Lotto5 DL560 Gen10 1'!$C$91*$X$15 -> 0 | Y71: ='Lotto5 DL560 Gen10 2'!$C$91*$Y$15 -> 0 | Z71: ='Lotto5 DL560 Gen10 3'!$C$91*$Z$15 -> 0 | AG71: =SUM(X71:Z71) -> 0 | AJ71: =X71*$X$15 -> 0 | AK71: =Y71*$Y$15 -> 0 | AL71: =Z71*$Z$15 -> 0 | AT71: =AG71 -> 0
B72: =IF(AT72=0,"",AT72) ->  | C72: =IF(AG72=0,"",(VLOOKUP(G72,Codici!B:F,5,FALSE))) ->  | G72: =IF(AT72>0,W72,"") ->  | J72: =IF(AG72>0,(VLOOKUP(G72,Codici!B:F,4,FALSE)),"") ->  | R72: =IF(AG72>0,(VLOOKUP(G72,Codici!B:F,2,FALSE)),"") ->  | T72: =IF(B72="","",R72*B72) ->  | V72: =IF(B72>="",0,1) -> 0 | W72: TS2L5-SSD400WIB | X72: ='Lotto5 DL560 Gen10 1'!$C$93*$X$15 -> 0 | Y72: ='Lotto5 DL560 Gen10 2'!$C$93*$Y$15 -> 0 | Z72: ='Lotto5 DL560 Gen10 3'!$C$93*$Z$15 -> 0 | AG72: =SUM(X72:Z72) -> 0 | AJ72: =X72*$X$15 -> 0 | AK72: =Y72*$Y$15 -> 0 | AL72: =Z72*$Z$15 -> 0 | AT72: =AG72 -> 0
B73: =IF(AT73=0,"",AT73) ->  | C73: =IF(AG73=0,"",(VLOOKUP(G73,Codici!B:F,5,FALSE))) ->  | G73: =IF(AT73>0,W73,"") ->  | J73: =IF(AG73>0,(VLOOKUP(G73,Codici!B:F,4,FALSE)),"") ->  | R73: =IF(AG73>0,(VLOOKUP(G73,Codici!B:F,2,FALSE)),"") ->  | T73: =IF(B73="","",R73*B73) ->  | V73: =IF(B73>="",0,1) -> 0 | W73: TS2L5-SSD800MU | X73: ='Lotto5 DL560 Gen10 1'!$C$95*$X$15 -> 0 | Y73: ='Lotto5 DL560 Gen10 2'!$C$95*$Y$15 -> 0 | Z73: ='Lotto5 DL560 Gen10 3'!$C$95*$Z$15 -> 0 | AG73: =SUM(X73:Z73) -> 0 | AJ73: =X73*$X$15 -> 0 | AK73: =Y73*$Y$15 -> 0 | AL73: =Z73*$Z$15 -> 0 | AT73: =AG73 -> 0
B74: =IF(AT74=0,"",AT74) ->  | C74: =IF(AG74=0,"",(VLOOKUP(G74,Codici!B:F,5,FALSE))) ->  | G74: =IF(AT74>0,W74,"") ->  | J74: =IF(AG74>0,(VLOOKUP(G74,Codici!B:F,4,FALSE)),"") ->  | R74: =IF(AG74>0,(VLOOKUP(G74,Codici!B:F,2,FALSE)),"") ->  | T74: =IF(B74="","",R74*B74) ->  | V74: =IF(B74>="",0,1) -> 0 | W74: TS2L5-SSD960MU | X74: ='Lotto5 DL560 Gen10 1'!$C$97*$X$15 -> 0 | Y74: ='Lotto5 DL560 Gen10 2'!$C$97*$Y$15 -> 0 | Z74: ='Lotto5 DL560 Gen10 3'!$C$97*$Z$15 -> 0 | AG74: =SUM(X74:Z74) -> 0 | AJ74: =X74*$X$15 -> 0 | AK74: =Y74*$Y$15 -> 0 | AL74: =Z74*$Z$15 -> 0 | AT74: =AG74 -> 0
C75: =IF(AG75=0,"",(VLOOKUP(G75,Codici!B:F,5,FALSE))) ->  | G75: =IF(AT75>0,W75,"") ->  | J75: =IF(AG75>0,(VLOOKUP(G75,Codici!B:F,4,FALSE)),"") ->  | R75: =IF(AG75>0,(VLOOKUP(G75,Codici!B:F,2,FALSE)),"") ->  | V75: 0 | W75: TS2L5-530T | X75: =COUNTIF($AI$19:$AI$26,W75)*$X$15 -> 0 | Y75: =COUNTIF($AJ$19:$AJ$26,W75)*$Y$15 -> 0 | Z75: =COUNTIF($AK$19:$AK$26,W75)*$Z$15 -> 0 | AG75: 0 | AH75: 0 | AI75: 0 | AJ75: =X75*$X$15 -> 0 | AK75: =Y75*$Y$15 -> 0 | AL75: =Z75*$Z$15 -> 0 | AM75: 0 | AN75: 0 | AO75: 0 | AT75: =AG75 -> 0
C76: =IF(AG76=0,"",(VLOOKUP(G76,Codici!B:F,5,FALSE))) ->  | J76: =IF(AG76>0,(VLOOKUP(G76,Codici!B:F,4,FALSE)),"") ->  | R76: =IF(AG76>0,(VLOOKUP(G76,Codici!B:F,2,FALSE)),"") ->  | T76: =IF(B76="","",R76*B76) ->  | V76: 0 | W76: TS2L5-521T | X76: =COUNTIF($AI$19:$AI$26,W76)*$X$15 -> 0 | Y76: 0 | Z76: 0 | AG76: 0 | AH76: 0 | AI76: 0 | AJ76: 0 | AK76: 0 | AL76: 0 | AM76: 0 | AN76: 0 | AO76: 0 | AT76: 0
C77: =IF(AG77=0,"",(VLOOKUP(G77,Codici!B:F,5,FALSE))) ->  | J77: =IF(AG77>0,(VLOOKUP(G77,Codici!B:F,4,FALSE)),"") ->  | R77: =IF(AG77>0,(VLOOKUP(G77,Codici!B:F,2,FALSE)),"") ->  | T77: =IF(B77="","",R77*B77) ->  | V77: 0 | W77: TS2L5-536FLR | X77: 0 | Y77: 0 | Z77: 0 | AG77: 0 | AH77: 0 | AI77: 0 | AJ77: 0 | AK77: 0 | AL77: 0 | AM77: 0 | AN77: 0 | AO77: 0 | AT77: 0
C78: =IF(AG78=0,"",(VLOOKUP(G78,Codici!B:F,5,FALSE))) ->  | J78: =IF(AG78>0,(VLOOKUP(G78,Codici!B:F,4,FALSE)),"") ->  | R78: =IF(AG78>0,(VLOOKUP(G78,Codici!B:F,2,FALSE)),"") ->  | T78: =IF(B78="","",R78*B78) ->  | V78: 0 | W78: TS2L5-562SFP | X78: 0 | Y78: 0 | Z78: 0 | AG78: 0 | AH78: 0 | AI78: 0 | AJ78: 0 | AK78: 0 | AL78: 0 | AM78: 0 | AN78: 0 | AO78: 0 | AT78: 0
C79: =IF(AG79=0,"",(VLOOKUP(G79,Codici!B:F,5,FALSE))) ->  | J79: =IF(AG79>0,(VLOOKUP(G79,Codici!B:F,4,FALSE)),"") ->  | R79: =IF(AG79>0,(VLOOKUP(G79,Codici!B:F,2,FALSE)),"") ->  | V79: 0 | W79: TS2L5-10OTSR | X79: =IF('Lotto5 DL560 Gen10 1'!$C$213>=1,'Lotto5 DL560 Gen10 1'!$C$213,0)*Riepilogo!$X$15 -> 0 | Y79: =IF('Lotto5 DL560 Gen10 2'!$C$213>=1,'Lotto5 DL560 Gen10 2'!$C$213,0)*Riepilogo!$Y$15 -> 0 | Z79: =IF('Lotto5 DL560 Gen10 3'!$C$213>=1,'Lotto5 DL560 Gen10 3'!$C$213,0)*Riepilogo!$Z$15 -> 0 | AG79: 0 | AH79: 0 | AI79: 0 | AJ79: 0 | AK79: 0 | AL79: 0 | AM79: 0 | AN79: 0 | AO79: 0 | AT79: 0
C80: =IF(AG80=0,"",(VLOOKUP(G80,Codici!B:F,5,FALSE))) ->  | J80: =IF(AG80>0,(VLOOKUP(G80,Codici!B:F,4,FALSE)),"") ->  | R80: =IF(AG80>0,(VLOOKUP(G80,Codici!B:F,2,FALSE)),"") ->  | V80: 0 | W80: TS2L5-10OTLR | X80: =IF('Lotto5 DL560 Gen10 1'!$C$215>=1,'Lotto5 DL560 Gen10 1'!$C$215,0)*Riepilogo!$X$15 -> 0 | Y80: =IF('Lotto5 DL560 Gen10 2'!$C$215>=1,'Lotto5 DL560 Gen10 2'!$C$215,0)*Riepilogo!$Y$15 -> 0 | Z80: =IF('Lotto5 DL560 Gen10 3'!$C$215>=1,'Lotto5 DL560 Gen10 3'!$C$215,0)*Riepilogo!$Z$15 -> 0 | AG80: 0 | AH80: 0 | AI80: 0 | AJ80: 0 | AK80: 0 | AL80: 0 | AM80: 0 | AN80: 0 | AO80: 0 | AT80: 0
C81: =IF(AG81=0,"",(VLOOKUP(G81,Codici!B:F,5,FALSE))) ->  | J81: =IF(AG81>0,(VLOOKUP(G81,Codici!B:F,4,FALSE)),"") ->  | R81: =IF(AG81>0,(VLOOKUP(G81,Codici!B:F,2,FALSE)),"") ->  | V81: 0 | W81: TS2L5-GPURSRKIT | X81: =IF('Lotto5 DL560 Gen10 1'!$C$147=0,0,1)*$X$15 -> 0 | Y81: =IF('Lotto5 DL560 Gen10 2'!$C$147=0,0,1)*$Y$15 -> 0 | Z81: =IF('Lotto5 DL560 Gen10 3'!$C$147=0,0,1)*$Z$15 -> 0 | AG81: 0 | AH81: 0 | AI81: 0 | AJ81: 0 | AK81: 0 | AL81: 0 | AM81: 0 | AN81: 0 | AO81: 0 | AT81: 0
C82: =IF(AG82=0,"",(VLOOKUP(G82,Codici!B:F,5,FALSE))) ->  | J82: =IF(AG82>0,(VLOOKUP(G82,Codici!B:F,4,FALSE)),"") ->  | R82: =IF(AG82>0,(VLOOKUP(G82,Codici!B:F,2,FALSE)),"") ->  | V82: 0 | W82: TS2L5-P2000GPU | X82: =COUNTIF($AI$19:$AI$26,W82)*$X$15 -> 0 | Y82: =COUNTIF($AJ$19:$AJ$26,W82)*$Y$15 -> 0 | Z82: =COUNTIF($AK$19:$AK$26,W82)*$Z$15 -> 0 | AG82: 0 | AH82: 0 | AI82: 0 | AJ82: 0 | AK82: 0 | AL82: 0 | AM82: 0 | AN82: 0 | AO82: 0 | AT82: 0
C83: =IF(AG83=0,"",(VLOOKUP(G83,Codici!B:F,5,FALSE))) ->  | J83: =IF(AG83>0,(VLOOKUP(G83,Codici!B:F,4,FALSE)),"") ->  | R83: =IF(AG83>0,(VLOOKUP(G83,Codici!B:F,2,FALSE)),"") ->  | T83: =IF(B83="","",R83*B83) ->  | V83: 0 | W83: TS2L5-841QSFP28 | X83: 0 | Y83: =COUNTIF($AJ$19:$AJ$26,W83)*$Y$15 -> 0 | Z83: =COUNTIF($AK$19:$AK$26,W83)*$Z$15 -> 0 | AG83: 0 | AH83: 0 | AI83: 0 | AJ83: 0 | AK83: 0 | AL83: 0 | AM83: 0 | AN83: 0 | AO83: 0 | AT83: 0
C84: =IF(AG84=0,"",(VLOOKUP(G84,Codici!B:F,5,FALSE))) ->  | J84: =IF(AG84>0,(VLOOKUP(G84,Codici!B:F,4,FALSE)),"") ->  | R84: =IF(AG84>0,(VLOOKUP(G84,Codici!B:F,2,FALSE)),"") ->  | T84: =IF(B84="","",R84*B84) ->  | V84: 0 | W84: TS2L5-OP101 | X84: 0 | Y84: 0 | Z84: 0 | AG84: =SUM(X84:Z84) -> 0 | AH84: 0 | AI84: 0 | AJ84: 0 | AK84: 0 | AL84: 0 | AM84: 0 | AN84: 0 | AO84: 0 | AT84: 0
C85: =IF(AG85=0,"",(VLOOKUP(G85,Codici!B:F,5,FALSE))) ->  | J85: =IF(AG85>0,(VLOOKUP(G85,Codici!B:F,4,FALSE)),"") ->  | R85: =IF(AG85>0,(VLOOKUP(G85,Codici!B:F,2,FALSE)),"") ->  | T85: =IF(B85="","",R85*B85) ->  | V85: 0 | W85: TS2L5-547FLR | X85: =IF('Lotto5 DL560 Gen10 1'!$G$152>0,1,0)*$X$15 -> 0 | Y85: =IF('Lotto5 DL560 Gen10 2'!$G$152>0,1,0)*$Y$15 -> 0 | Z85: =IF('Lotto5 DL560 Gen10 3'!$G$152>0,1,0)*$Z$15 -> 0 | AG85: 0 | AH85: 0 | AI85: 0 | AJ85: 0 | AK85: 0 | AL85: 0 | AM85: 0 | AN85: 0 | AO85: 0 | AT85: 0
C86: =IF(AG86=0,"",(VLOOKUP(G86,Codici!B:F,5,FALSE))) ->  | J86: =IF(AG86>0,(VLOOKUP(G86,Codici!B:F,4,FALSE)),"") ->  | R86: =IF(AG86>0,(VLOOKUP(G86,Codici!B:F,2,FALSE)),"") ->  | T86: =IF(B86="","",R86*B86) ->  | V86: 0 | W86: TS2L5-VMWSTD1P5Y | X86: =IF('Lotto5 DL560 Gen10 1'!$D$56=Riepilogo!W86,'Lotto5 DL560 Gen10 1'!$C$56,0)*$X$15 -> 0 | Y86: =IF('Lotto5 DL560 Gen10 2'!$D$56=Riepilogo!X86,'Lotto5 DL560 Gen10 2'!$C$56,0)*$Y$15 -> 0 | Z86: =IF('Lotto5 DL560 Gen10 3'!$D$56=Riepilogo!Y86,'Lotto5 DL560 Gen10 3'!$C$56,0)*$Z$15 -> 0 | AG86: 0 | AH86: 0 | AI86: 0 | AJ86: 0 | AK86: 0 | AL86: 0 | AM86: 0 | AN86: 0 | AO86: 0 | AT86: 0
C87: =IF(AG87=0,"",(VLOOKUP(G87,Codici!B:F,5,FALSE))) ->  | J87: =IF(AG87>0,(VLOOKUP(G87,Codici!B:F,4,FALSE)),"") ->  | R87: =IF(AG87>0,(VLOOKUP(G87,Codici!B:F,2,FALSE)),"") ->  | T87: =IF(B87="","",R87*B87) ->  | V87: 0 | W87: TS2L5-VMWEP1P5Y | X87: =IF('Lotto5 DL560 Gen10 1'!$D$56=Riepilogo!W87,'Lotto5 DL560 Gen10 1'!$C$56,0)*$X$15 -> 0 | Y87: =IF('Lotto5 DL560 Gen10 2'!$D$56=Riepilogo!X87,'Lotto5 DL560 Gen10 2'!$C$56,0)*$Y$15 -> 0 | Z87: =IF('Lotto5 DL560 Gen10 3'!$D$56=Riepilogo!Y87,'Lotto5 DL560 Gen10 3'!$C$56,0)*$Z$15 -> 0 | AG87: 0 | AH87: 0 | AI87: 0 | AJ87: 0 | AK87: 0 | AL87: 0 | AM87: 0 | AN87: 0 | AO87: 0 | AT87: 0
C88: =IF(AG88=0,"",(VLOOKUP(G88,Codici!B:F,5,FALSE))) ->  | J88: =IF(AG88>0,(VLOOKUP(G88,Codici!B:F,4,FALSE)),"") ->  | R88: =IF(AG88>0,(VLOOKUP(G88,Codici!B:F,2,FALSE)),"") ->  | T88: =IF(B88="","",R88*B88) ->  | V88: 0 | W88: TS2L5-VMWSTD1P3Y | X88: =IF('Lotto5 DL560 Gen10 1'!$D$56=Riepilogo!$W$88,'Lotto5 DL560 Gen10 1'!$C$56,0)*$X$15 -> 0 | Y88: =IF('Lotto5 DL560 Gen10 2'!$D$56=Riepilogo!$W$88,'Lotto5 DL560 Gen10 2'!$C$56,0)*$Y$15 -> 0 | Z88: =IF('Lotto5 DL560 Gen10 3'!$D$56=Riepilogo!$W$88,'Lotto5 DL560 Gen10 3'!$C$56,0)*$Z$15 -> 0 | AG88: 0 | AH88: 0 | AI88: 0 | AJ88: 0 | AK88: 0 | AL88: 0 | AM88: 0 | AN88: 0 | AO88: 0 | AT88: 0
C89: =IF(AG89=0,"",(VLOOKUP(G89,Codici!B:F,5,FALSE))) ->  | J89: =IF(AG89>0,(VLOOKUP(G89,Codici!B:F,4,FALSE)),"") ->  | R89: =IF(AG89>0,(VLOOKUP(G89,Codici!B:F,2,FALSE)),"") ->  | V89: 0 | W89: TS2L5-VMWEP1P3Y | X89: =IF('Lotto5 DL560 Gen10 1'!$D$56=Riepilogo!$W$89,'Lotto5 DL560 Gen10 1'!$C$56,0)*$X$15 -> 0 | Y89: =IF('Lotto5 DL560 Gen10 2'!$D$56=Riepilogo!$W$89,'Lotto5 DL560 Gen10 2'!$C$56,0)*$Y$15 -> 0 | Z89: =IF('Lotto5 DL560 Gen10 3'!$D$56=Riepilogo!$W$89,'Lotto5 DL560 Gen10 3'!$C$56,0)*$Z$15 -> 0 | AG89: 0 | AH89: 0 | AI89: 0 | AJ89: 0 | AK89: 0 | AL89: 0 | AM89: 0 | AN89: 0 | AO89: 0 | AT89: 0
C90: =IF(AG90=0,"",(VLOOKUP(G90,Codici!B:F,5,FALSE))) ->  | J90: =IF(AG90>0,(VLOOKUP(G90,Codici!B:F,4,FALSE)),"") ->  | R90: =IF(AG90>0,(VLOOKUP(G90,Codici!B:F,2,FALSE)),"") ->  | V90: 0 | W90: TS2L5-VMWKIT6P3Y | X90: =IF('Lotto5 DL560 Gen10 1'!$D$58=Riepilogo!W90,'Lotto5 DL560 Gen10 1'!$C$58,0)*$X$15 -> 0 | AG90: 0 | AH90: 0 | AI90: 0 | AJ90: 0 | AK90: 0 | AL90: 0 | AM90: 0 | AN90: 0 | AO90: 0 | AT90: 0
C91: =IF(AG91=0,"",(VLOOKUP(G91,Codici!B:F,5,FALSE))) ->  | J91: =IF(AG91>0,(VLOOKUP(G91,Codici!B:F,4,FALSE)),"") ->  | R91: =IF(AG91>0,(VLOOKUP(G91,Codici!B:F,2,FALSE)),"") ->  | V91: 0 | W91: TS2L5-VMWKIT6P5Y | X91: =IF('Lotto5 DL560 Gen10 1'!$D$58=Riepilogo!W91,'Lotto5 DL560 Gen10 1'!$C$58,0)*$X$15 -> 0 | AG91: 0 | AH91: 0 | AI91: 0 | AJ91: 0 | AK91: 0 | AL91: 0 | AM91: 0 | AN91: 0 | AO91: 0 | AT91: 0
C92: =IF(AG92=0,"",(VLOOKUP(G92,Codici!B:F,5,FALSE))) ->  | J92: =IF(AG92>0,(VLOOKUP(G92,Codici!B:F,4,FALSE)),"") ->  | R92: =IF(AG92>0,(VLOOKUP(G92,Codici!B:F,2,FALSE)),"") ->  | V92: 0 | W92: TS2L5-VMWVCSTD3Y | X92: =IF('Lotto5 DL560 Gen10 1'!$D$60=Riepilogo!W92,'Lotto5 DL560 Gen10 1'!$C$60,0)*$X$15 -> 0 | AG92: 0 | AH92: 0 | AI92: 0 | AJ92: 0 | AK92: 0 | AL92: 0 | AM92: 0 | AN92: 0 | AO92: 0 | AT92: 0
C93: =IF(AG93=0,"",(VLOOKUP(G93,Codici!B:F,5,FALSE))) ->  | J93: =IF(AG93>0,(VLOOKUP(G93,Codici!B:F,4,FALSE)),"") ->  | R93: =IF(AG93>0,(VLOOKUP(G93,Codici!B:F,2,FALSE)),"") ->  | V93: 0 | W93: TS2L5-VMWVCSTD5Y | X93: =IF('Lotto5 DL560 Gen10 1'!$D$60=Riepilogo!W93,'Lotto5 DL560 Gen10 1'!$C$60,0)*$X$15 -> 0 | AG93: 0 | AH93: 0 | AI93: 0 | AJ93: 0 | AK93: 0 | AL93: 0 | AM93: 0 | AN93: 0 | AO93: 0 | AT93: 0
C94: =IF(AG94=0,"",(VLOOKUP(G94,Codici!B:F,5,FALSE))) ->  | J94: =IF(AG94>0,(VLOOKUP(G94,Codici!B:F,4,FALSE)),"") ->  | R94: =IF(AG94>0,(VLOOKUP(G94,Codici!B:F,2,FALSE)),"") ->  | V94: 0 | W94: TS2L5-OV3YILO | X94: =IF('Lotto5 DL560 Gen10 1'!$C$66=0,0,1)*$X$15 -> 0 | Y94: =IF('Lotto5 DL560 Gen10 2'!$C$66=0,0,1)*$Y$15 -> 0 | Z94: =IF('Lotto5 DL560 Gen10 3'!$C$66=0,0,1)*$Z$15 -> 0 | AE94: =SUM(X94:AD94) -> 0 | AG94: 0 | AH94: 0 | AI94: 0 | AJ94: 0 | AK94: 0 | AL94: 0 | AM94: 0 | AN94: 0 | AO94: 0 | AT94: 0
C95: =IF(AG95=0,"",(VLOOKUP(G95,Codici!B:F,5,FALSE))) ->  | J95: =IF(AG95>0,(VLOOKUP(G95,Codici!B:F,4,FALSE)),"") ->  | R95: =IF(AG95>0,(VLOOKUP(G95,Codici!B:F,2,FALSE)),"") ->  | V95: 0 | W95: TS2L5-DACQSFPM2 | X95: =IF('Lotto5 DL560 Gen10 1'!$C$198>=1,'Lotto5 DL560 Gen10 1'!$C$198,0)*Riepilogo!$X$15 -> 0 | Y95: =IF('Lotto5 DL560 Gen10 2'!$C$198>=1,'Lotto5 DL560 Gen10 2'!$C$198,0)*Riepilogo!$Y$15 -> 0 | Z95: =IF('Lotto5 DL560 Gen10 3'!$C$198>=1,'Lotto5 DL560 Gen10 3'!$C$198,0)*Riepilogo!$Z$15 -> 0 | AG95: 0 | AJ95: 0 | AK95: 0 | AL95: 0 | AT95: 0
C96: =IF(AG96=0,"",(VLOOKUP(G96,Codici!B:F,5,FALSE))) ->  | J96: =IF(AG96>0,(VLOOKUP(G96,Codici!B:F,4,FALSE)),"") ->  | R96: =IF(AG96>0,(VLOOKUP(G96,Codici!B:F,2,FALSE)),"") ->  | T96: =IF(B96="","",R96*B96) ->  | V96: 0 | W96: TS2L5-DAC100M2 | X96: =IF('Lotto5 DL560 Gen10 1'!$C$201>=1,'Lotto5 DL560 Gen10 1'!$C$201,0)*Riepilogo!$X$15 -> 0 | Y96: =IF('Lotto5 DL560 Gen10 2'!$C$201>=1,'Lotto5 DL560 Gen10 2'!$C$201,0)*Riepilogo!$Y$15 -> 0 | Z96: =IF('Lotto5 DL560 Gen10 3'!$C$201>=1,'Lotto5 DL560 Gen10 3'!$C$201,0)*Riepilogo!$Z$15 -> 0 | AG96: 0 | AJ96: 0 | AK96: 0 | AL96: 0 | AT96: 0
C97: =IF(AG97=0,"",(VLOOKUP(G97,Codici!B:F,5,FALSE))) ->  | J97: =IF(AG97>0,(VLOOKUP(G97,Codici!B:F,4,FALSE)),"") ->  | R97: =IF(AG97>0,(VLOOKUP(G97,Codici!B:F,2,FALSE)),"") ->  | T97: =IF(B97="","",R97*B97) ->  | V97: 0 | W97: TS2L5-DAC100M3 | X97: =IF('Lotto5 DL560 Gen10 1'!$C$203>=1,'Lotto5 DL560 Gen10 1'!$C$203,0)*Riepilogo!$X$15 -> 0 | Y97: =IF('Lotto5 DL560 Gen10 2'!$C$203>=1,'Lotto5 DL560 Gen10 2'!$C$203,0)*Riepilogo!$Y$15 -> 0 | Z97: =IF('Lotto5 DL560 Gen10 3'!$C$203>=1,'Lotto5 DL560 Gen10 3'!$C$203,0)*Riepilogo!$Z$15 -> 0 | AG97: 0 | AJ97: 0 | AK97: 0 | AL97: 0 | AT97: 0
C98: =IF(AG98=0,"",(VLOOKUP(G98,Codici!B:F,5,FALSE))) ->  | J98: =IF(AG98>0,(VLOOKUP(G98,Codici!B:F,4,FALSE)),"") ->  | R98: =IF(AG98>0,(VLOOKUP(G98,Codici!B:F,2,FALSE)),"") ->  | T98: =IF(B98="","",R98*B98) ->  | V98: 0 | W98: TS2L5-DACAOCM3 | X98: =IF('Lotto5 DL560 Gen10 1'!$C$206>=1,'Lotto5 DL560 Gen10 1'!$C$206,0)*Riepilogo!$X$15 -> 0 | Y98: =IF('Lotto5 DL560 Gen10 2'!$C$206>=1,'Lotto5 DL560 Gen10 2'!$C$206,0)*Riepilogo!$Y$15 -> 0 | Z98: =IF('Lotto5 DL560 Gen10 3'!$C$206>=1,'Lotto5 DL560 Gen10 3'!$C$206,0)*Riepilogo!$Z$15 -> 0 | AG98: 0 | AJ98: 0 | AK98: 0 | AL98: 0 | AT98: 0
C99: =IF(AG99=0,"",(VLOOKUP(G99,Codici!B:F,5,FALSE))) ->  | J99: =IF(AG99>0,(VLOOKUP(G99,Codici!B:F,4,FALSE)),"") ->  | R99: =IF(AG99>0,(VLOOKUP(G99,Codici!B:F,2,FALSE)),"") ->  | T99: =IF(B99="","",R99*B99) ->  | V99: =IF(B99>="",0,1) -> 0 | W99: TS2L5-DACAOCM5 | X99: =IF('Lotto5 DL560 Gen10 1'!$C$208>=1,'Lotto5 DL560 Gen10 1'!$C$208,0)*Riepilogo!$X$15 -> 0 | Y99: =IF('Lotto5 DL560 Gen10 2'!$C$208>=1,'Lotto5 DL560 Gen10 2'!$C$208,0)*Riepilogo!$Y$15 -> 0 | Z99: =IF('Lotto5 DL560 Gen10 3'!$C$208>=1,'Lotto5 DL560 Gen10 3'!$C$208,0)*Riepilogo!$Z$15 -> 0 | AG99: 0 | AJ99: 0 | AK99: 0 | AL99: 0 | AT99: 0
C100: =IF(AG100=0,"",(VLOOKUP(G100,Codici!B:F,5,FALSE))) ->  | J100: =IF(AG100>0,(VLOOKUP(G100,Codici!B:F,4,FALSE)),"") ->  | R100: =IF(AG100>0,(VLOOKUP(G100,Codici!B:F,2,FALSE)),"") ->  | T100: =IF(B100="","",R100*B100) ->  | V100: =IF(B100>="",0,1) -> 0 | W100: TS2L5-DACAOCM7 | X100: =IF('Lotto5 DL560 Gen10 1'!$C$210>=1,'Lotto5 DL560 Gen10 1'!$C$210,0)*Riepilogo!$X$15 -> 0 | Y100: =IF('Lotto5 DL560 Gen10 2'!$C$210>=1,'Lotto5 DL560 Gen10 2'!$C$210,0)*Riepilogo!$Y$15 -> 0 | Z100: =IF('Lotto5 DL560 Gen10 3'!$C$210>=1,'Lotto5 DL560 Gen10 3'!$C$210,0)*Riepilogo!$Z$15 -> 0 | AG100: 0 | AJ100: 0 | AK100: 0 | AL100: 0 | AT100: 0
C101: =IF(AG101=0,"",(VLOOKUP(G101,Codici!B:F,5,FALSE))) ->  | J101: =IF(AG101>0,(VLOOKUP(G101,Codici!B:F,4,FALSE)),"") ->  | R101: =IF(AG101>0,(VLOOKUP(G101,Codici!B:F,2,FALSE)),"") ->  | V101: 0 | W101: TS2L5-VSANSTD3Y | X101: =IF('Lotto5 DL560 Gen10 1'!$D$62=Riepilogo!$W$101,'Lotto5 DL560 Gen10 1'!$C$62,0)*$X$15 -> 0 | Y101: =IF('Lotto5 DL560 Gen10 2'!$D$62=Riepilogo!$W$101,'Lotto5 DL560 Gen10 2'!$C$62,0)*$Y$15 -> 0 | Z101: =IF('Lotto5 DL560 Gen10 3'!$D$62=Riepilogo!$W$101,'Lotto5 DL560 Gen10 3'!$C$62,0)*$Z$15 -> 0 | AG101: 0 | AJ101: =X101*$X$15 -> 0 | AK101: =Y101*$Y$15 -> 0 | AL101: =Z101*$Z$15 -> 0 | AT101: 0
C102: =IF(AG102=0,"",(VLOOKUP(G102,Codici!B:F,5,FALSE))) ->  | J102: =IF(AG102>0,(VLOOKUP(G102,Codici!B:F,4,FALSE)),"") ->  | R102: =IF(AG102>0,(VLOOKUP(G102,Codici!B:F,2,FALSE)),"") ->  | V102: 0 | W102: TS2L5-VSANADV3Y | X102: =IF('Lotto5 DL560 Gen10 1'!$D$62=Riepilogo!$W$102,'Lotto5 DL560 Gen10 1'!$C$62,0)*$X$15 -> 0 | Y102: =IF('Lotto5 DL560 Gen10 2'!$D$62=Riepilogo!$W$102,'Lotto5 DL560 Gen10 2'!$C$62,0)*$Y$15 -> 0 | Z102: =IF('Lotto5 DL560 Gen10 3'!$D$62=Riepilogo!$W$102,'Lotto5 DL560 Gen10 3'!$C$62,0)*$Z$15 -> 0 | AG102: 0 | AJ102: 0 | AK102: 0 | AL102: 0 | AT102: 0
C103: =IF(AG103=0,"",(VLOOKUP(G103,Codici!B:F,5,FALSE))) ->  | J103: =IF(AG103>0,(VLOOKUP(G103,Codici!B:F,4,FALSE)),"") ->  | R103: =IF(AG103>0,(VLOOKUP(G103,Codici!B:F,2,FALSE)),"") ->  | T103: =IF(B103="","",R103*B103) ->  | V103: 0 | W103: TS2L5-DUAL32GB | X103: =IF('Lotto5 DL560 Gen10 1'!$C$137=0,0,1)*$X$15 -> 0 | Y103: =IF('Lotto5 DL560 Gen10 2'!$C$137=0,0,1)*$Y$15 -> 0 | Z103: =IF('Lotto5 DL560 Gen10 3'!$C$137=0,0,1)*$Z$15 -> 0 | AG103: 0 | AJ103: 0 | AK103: 0 | AL103: 0 | AT103: 0
C104: =IF(AG104=0,"",(VLOOKUP(G104,Codici!B:F,5,FALSE))) ->  | J104: =IF(AG104>0,(VLOOKUP(G104,Codici!B:F,4,FALSE)),"") ->  | R104: =IF(AG104>0,(VLOOKUP(G104,Codici!B:F,2,FALSE)),"") ->  | V104: 0 | W104: TS2L5-DACX240M3 | X104: =IF('Lotto5 DL560 Gen10 1'!$C$191>=1,'Lotto5 DL560 Gen10 1'!$C$191,0)*Riepilogo!$X$15 -> 0 | Y104: =IF('Lotto5 DL560 Gen10 2'!$C$191>=1,'Lotto5 DL560 Gen10 2'!$C$191,0)*Riepilogo!$Y$15 -> 0 | Z104: =IF('Lotto5 DL560 Gen10 3'!$C$191>=1,'Lotto5 DL560 Gen10 3'!$C$191,0)*Riepilogo!$Z$15 -> 0 | AG104: 0 | AJ104: 0 | AK104: 0 | AL104: 0 | AT104: 0
C105: =IF(AG105=0,"",(VLOOKUP(G105,Codici!B:F,5,FALSE))) ->  | J105: =IF(AG105>0,(VLOOKUP(G105,Codici!B:F,4,FALSE)),"") ->  | R105: =IF(AG105>0,(VLOOKUP(G105,Codici!B:F,2,FALSE)),"") ->  | V105: 0 | W105: TS2L5-DACX240M5 | X105: =IF('Lotto5 DL560 Gen10 1'!$C$193>=1,'Lotto5 DL560 Gen10 1'!$C$193,0)*Riepilogo!$X$15 -> 0 | Y105: =IF('Lotto5 DL560 Gen10 2'!$C$193>=1,'Lotto5 DL560 Gen10 2'!$C$193,0)*Riepilogo!$Y$15 -> 0 | Z105: =IF('Lotto5 DL560 Gen10 3'!$C$193>=1,'Lotto5 DL560 Gen10 3'!$C$193,0)*Riepilogo!$Z$15 -> 0 | AG105: 0 | AJ105: 0 | AK105: 0 | AL105: 0 | AT105: 0
B106: =IF(AT106=0,"",AT106) ->  | C106: =IF(AG106=0,"",(VLOOKUP(G106,Codici!B:F,5,FALSE))) ->  | G106: =IF(AT106>0,W106,"") ->  | J106: =IF(AG106>0,(VLOOKUP(G106,Codici!B:F,4,FALSE)),"") ->  | R106: =IF(AG106>0,(VLOOKUP(G106,Codici!B:F,2,FALSE)),"") ->  | T106: =IF(B106="","",R106*B106) ->  | V106: =IF(B106>="",0,1) -> 0 | W106: TS2L5-DACX240M7 | X106: =IF('Lotto5 DL560 Gen10 1'!$C$195>=1,'Lotto5 DL560 Gen10 1'!$C$195,0)*Riepilogo!$X$15 -> 0 | Y106: =IF('Lotto5 DL560 Gen10 2'!$C$195>=1,'Lotto5 DL560 Gen10 2'!$C$195,0)*Riepilogo!$Y$15 -> 0 | Z106: =IF('Lotto5 DL560 Gen10 3'!$C$195>=1,'Lotto5 DL560 Gen10 3'!$C$195,0)*Riepilogo!$Z$15 -> 0 | AG106: =SUM(X106:Z106) -> 0 | AJ106: =X106*$X$15 -> 0 | AK106: =Y106*$Y$15 -> 0 | AL106: =Z106*$Z$15 -> 0 | AT106: =AG106 -> 0
B107: =IF(AT107=0,"",AT107) ->  | C107: =IF(AG107=0,"",(VLOOKUP(G107,Codici!B:F,5,FALSE))) ->  | J107: =IF(AG107>0,(VLOOKUP(G107,Codici!B:F,4,FALSE)),"") ->  | R107: =IF(AG107>0,(VLOOKUP(G107,Codici!B:F,2,FALSE)),"") ->  | V107: 0 | W107: TS2L5-RACKPDU32 | X107: ='RACK, Accessori e Servizi'!J39 -> 0 | AG107: =SUM(X107:Z107) -> 0 | AH107: =SUM(AA107:AC107) -> 0 | AI107: =SUM(AD107:AF107) -> 0 | AJ107: =X107*$X$15 -> 0 | AK107: =Y107*$Y$15 -> 0 | AL107: =Z107*$Z$15 -> 0 | AM107: =AA107*$X$36 -> 0 | AN107: =AB107*$Y$36 -> 0 | AO107: =AC107*$Z$36 -> 0 | AT107: =AG107 -> 0
C108: =IF(AG108=0,"",(VLOOKUP(G108,Codici!B:F,5,FALSE))) ->  | G108: =IF(AT108>0,W108,"") ->  | J108: =IF(AG108>0,(VLOOKUP(G108,Codici!B:F,4,FALSE)),"") ->  | R108: =IF(AG108>0,(VLOOKUP(G108,Codici!B:F,2,FALSE)),"") ->  | T108: =IF(B108="","",R108*B108) ->  | V108: 0 | W108: TS2L5-RACK3PH | X108: ='RACK, Accessori e Servizi'!J36 -> 0 | AG108: 0 | AH108: 0 | AI108: 0 | AJ108: 0 | AK108: 0 | AL108: 0 | AM108: 0 | AN108: 0 | AO108: 0 | AT108: 0
C109: =IF(AG109=0,"",(VLOOKUP(G109,Codici!B:F,5,FALSE))) ->  | J109: =IF(AG109>0,(VLOOKUP(G109,Codici!B:F,4,FALSE)),"") ->  | R109: =IF(AG109>0,(VLOOKUP(G109,Codici!B:F,2,FALSE)),"") ->  | V109: 0 | W109: TS2L5-PDU32A | X109: ='RACK, Accessori e Servizi'!J33 -> 0 | AG109: 0 | AH109: 0 | AI109: 0 | AJ109: 0 | AK109: 0 | AL109: 0 | AM109: 0 | AN109: 0 | AO109: 0 | AT109: 0
C110: =IF(AG110=0,"",(VLOOKUP(G110,Codici!B:F,5,FALSE))) ->  | J110: =IF(AG110>0,(VLOOKUP(G110,Codici!B:F,4,FALSE)),"") ->  | R110: =IF(AG110>0,(VLOOKUP(G110,Codici!B:F,2,FALSE)),"") ->  | V110: 0 | W110: TS2L5-NECPUSFF
C111: =IF(AG111=0,"",(VLOOKUP(G111,Codici!B:F,5,FALSE))) ->  | J111: =IF(AG111>0,(VLOOKUP(G111,Codici!B:F,4,FALSE)),"") ->  | R111: =IF(AG111>0,(VLOOKUP(G111,Codici!B:F,2,FALSE)),"") ->  | V111: 0 | W111: TS2L5-NECPUSHY
C112: =IF(AG112=0,"",(VLOOKUP(G112,Codici!B:F,5,FALSE))) ->  | J112: =IF(AG112>0,(VLOOKUP(G112,Codici!B:F,4,FALSE)),"") ->  | R112: =IF(AG112>0,(VLOOKUP(G112,Codici!B:F,2,FALSE)),"") ->  | V112: 0 | W112: TS2L5-CVLT10
C113: =IF(AG113=0,"",(VLOOKUP(G113,Codici!B:F,5,FALSE))) ->  | J113: =IF(AG113>0,(VLOOKUP(G113,Codici!B:F,4,FALSE)),"") ->  | R113: =IF(AG113>0,(VLOOKUP(G113,Codici!B:F,2,FALSE)),"") ->  | V113: 0 | W113: TS2L5-BR1CPU
C114: =IF(AG114=0,"",(VLOOKUP(G114,Codici!B:F,5,FALSE))) ->  | J114: =IF(AG114>0,(VLOOKUP(G114,Codici!B:F,4,FALSE)),"") ->  | R114: =IF(AG114>0,(VLOOKUP(G114,Codici!B:F,2,FALSE)),"") ->  | V114: 0 | W114: TS2L5-NECSHY
C115: =IF(AG115=0,"",(VLOOKUP(G115,Codici!B:F,5,FALSE))) ->  | J115: =IF(AG115>0,(VLOOKUP(G115,Codici!B:F,4,FALSE)),"") ->  | R115: =IF(AG115>0,(VLOOKUP(G115,Codici!B:F,2,FALSE)),"") ->  | V115: 0 | W115: TS2L5-NECSFF
C116: =IF(AG116=0,"",(VLOOKUP(G116,Codici!B:F,5,FALSE))) ->  | J116: =IF(AG116>0,(VLOOKUP(G116,Codici!B:F,4,FALSE)),"") ->  | R116: =IF(AG116>0,(VLOOKUP(G116,Codici!B:F,2,FALSE)),"") ->  | V116: 0 | W116: TS2L5-VSA4TB
B117: =IF(AT117=0,"",AT117) ->  | C117: =IF(AG117=0,"",(VLOOKUP(G117,Codici!B:F,5,FALSE))) ->  | J117: =IF(AG117>0,(VLOOKUP(G117,Codici!B:F,4,FALSE)),"") ->  | R117: =IF(AG117>0,(VLOOKUP(G117,Codici!B:F,2,FALSE)),"") ->  | V117: 0 | W117: TS2L5-VSA1TB
B118: TOTALE PRODOTTI CONVENZIONE (I.V.A. Esclusa) | R118: =SUM(T15:U50) -> 0 | V118: =IF(R118>0,1,0) -> 0
B119: TOTALE ULTERIORI OPZIONI (I.V.A. Esclusa) | R119: =SUM(T52:U117) -> 0 | V119: 1
B120: TOTALE (I.V.A. Esclusa) | R120: =R119+R118 -> 0 | V120: 1
B121: I.V.A. | R121: =R120*22% -> 0 | V121: 1
B122: TOTALE ORDINE | R122: =SUM(R120:U121) -> 0 | V122: 1
V123: 1
V124: 1
V125: 1
D126: =IF(G6>0,"DETTAGLIO CONFIGURAZIONI SERVER LOTTO 5 ","") ->  | V126: 1
V127: 1
V128: 1
V129: =IF($B$15>="",0,1) -> 0
B130: Proliant DL560 Gen10 Conf.1 | E130: =SRV_A -> 0 | F130: Server | I130: Proliant DL560 Gen10 Conf.2 | L130: =SRV_AA -> 0 | M130: Server | P130: Proliant DL560 Gen10 Conf.3 | S130: =SRV_AAA -> 0 | T130: Server | V130: =IF($B$15>="",0,1) -> 0
V131: =IF($B$15>="",0,1) -> 0
B132: =IF(SRV_A>0,"1","-") -> - | C132: =IF(B132="-","-",CONCATENATE(MID($C$15,1,21)," - ",$G$15)) -> - | I132: =IF(SRV_AA>0,"1","-") -> - | J132: =IF(I132="-","-",CONCATENATE(MID($C$15,1,21)," - ",$G$15)) -> - | P132: =IF(SRV_AAA>0,"1","-") -> - | Q132: =IF(P132="-","-",CONCATENATE(MID($C$15,1,21)," - ",$G$15)) -> - | V132: =IF($B$15>="",0,1) -> 0
B133: =IF(X16=0,"-",X16/$E$130) -> - | C133: =IF(B133="-","-",CONCATENATE(MID($C$16,1,21)," - ",$G$16)) -> - | I133: =IF(Y16=0,"-",Y16/$L$130) -> - | J133: =IF(I133="-","-",CONCATENATE(MID(C16,1,21)," - ",G16)) -> - | P133: =IF(Z16=0,"-",Z16/$S$130) -> - | Q133: =IF(P133="-","-",CONCATENATE(MID(C16,1,21)," - ",G16)) -> - | V133: =Z133 -> 0 | W133: =IF(B133="-",0,B133) -> 0 | X133: =IF(I133="-",0,I133) -> 0 | Y133: =IF(P133="-",0,P133) -> 0 | Z133: =IF(X133+W133+Y133>0,1,0) -> 0
B134: - | C134: =IF(B134="-","-",CONCATENATE(MID($C$17,1,21)," - ",$G$17)) -> - | I134: - | J134: - | P134: - | Q134: - | V134: =Z134 -> 0 | W134: =IF(B134="-",0,B134) -> 0 | X134: =IF(I134="-",0,I134) -> 0 | Y134: =IF(P134="-",0,P134) -> 0 | Z134: =IF(X134+W134+Y134>0,1,0) -> 0
B135: - | C135: =IF(B135="-","-",CONCATENATE(MID($C$18,1,21)," - ",$G$18)) -> - | I135: - | J135: - | P135: - | Q135: - | V135: 0 | W135: 0 | X135: 0 | Y135: 0 | Z135: 0
B136: - | C136: =IF(B136="-","-",CONCATENATE(MID(C19,1,21)," - ",G19)) -> - | I136: - | J136: - | P136: - | Q136: - | V136: 0 | W136: 0 | X136: 0 | Y136: 0 | Z136: 0
B137: - | C137: - | I137: - | J137: - | P137: - | Q137: - | V137: 0 | W137: 0 | X137: 0 | Y137: 0 | Z137: 0
B138: - | C138: - | I138: - | J138: - | P138: - | Q138: - | V138: 0 | W138: 0 | X138: 0 | Y138: 0 | Z138: 0
B139: - | C139: - | I139: - | J139: - | P139: - | Q139: - | V139: 0 | W139: 0 | X139: 0 | Y139: 0 | Z139: 0
B140: - | C140: - | I140: - | J140: - | P140: - | Q140: - | V140: 0 | W140: 0 | X140: 0 | Y140: 0 | Z140: 0
B141: - | C141: - | I141: - | J141: - | P141: - | Q141: - | V141: 0 | W141: 0 | X141: 0 | Y141: 0 | Z141: 0
B142: - | C142: - | I142: - | J142: - | P142: - | Q142: - | V142: 0 | W142: 0 | X142: 0 | Y142: 0 | Z142: 0
B143: - | C143: - | I143: - | J143: - | P143: - | Q143: - | V143: 0 | W143: 0 | X143: 0 | Y143: 0 | Z143: 0
B144: - | C144: - | I144: - | J144: - | P144: - | Q144: - | V144: 0 | W144: 0 | X144: 0 | Y144: 0 | Z144: 0
B145: - | C145: - | I145: - | J145: - | P145: - | Q145: - | V145: 0 | W145: 0 | X145: 0 | Y145: 0 | Z145: 0
B146: - | C146: - | I146: - | J146: - | P146: - | Q146: - | V146: 0 | W146: 0 | X146: 0 | Y146: 0 | Z146: 0
B147: - | C147: - | I147: - | J147: - | P147: - | Q147: - | V147: 0 | W147: 0 | X147: 0 | Y147: 0 | Z147: 0
B148: - | C148: - | I148: - | J148: - | P148: - | Q148: - | V148: 0 | W148: =IF(B148="-",0,B148) -> 0 | X148: =IF(I148="-",0,I148) -> 0 | Y148: =IF(P148="-",0,P148) -> 0 | Z148: =IF(X148+W148+Y148>0,1,0) -> 0
B149: - | C149: - | I149: - | J149: - | P149: - | Q149: - | V149: 0 | W149: =IF(B149="-",0,B149) -> 0 | X149: =IF(I149="-",0,I149) -> 0 | Y149: =IF(P149="-",0,P149) -> 0 | Z149: =IF(X149+W149+Y149>0,1,0) -> 0
B150: - | C150: - | I150: - | J150: - | P150: - | Q150: - | V150: 0 | W150: 0 | X150: 0 | Y150: 0 | Z150: 0
B151: - | C151: - | I151: - | J151: - | P151: - | Q151: - | V151: 0 | W151: 0 | X151: 0 | Y151: 0 | Z151: 0
B152: =IF(X36=0,"-",X36/$E$130) -> - | C152: =IF(B152="-","-",CONCATENATE(MID(C36,1,21)," - ",G36)) -> - | I152: =IF(Y36=0,"-",Y36/$L$130) -> - | J152: =IF(I152="-","-",CONCATENATE(MID(C36,1,21)," - ",G36)) -> - | P152: =IF(Z36=0,"-",Z36/$S$130) -> - | Q152: =IF(P152="-","-",CONCATENATE(MID(C36,1,21)," - ",G36)) -> - | V152: 0 | W152: 0 | X152: 0 | Y152: 0 | Z152: 0
B153: - | C153: - | I153: - | J153: - | P153: - | Q153: - | V153: 0 | W153: 0 | X153: 0 | Y153: 0 | Z153: 0
B154: - | C154: - | I154: - | J154: - | P154: - | Q154: - | V154: 0 | W154: 0 | X154: 0 | Y154: 0 | Z154: 0
B155: - | C155: - | I155: - | J155: - | P155: - | Q155: - | V155: 0 | W155: 0 | X155: 0 | Y155: 0 | Z155: 0
B156: - | C156: - | I156: - | J156: - | P156: - | Q156: - | V156: 0 | W156: 0 | X156: 0 | Y156: 0 | Z156: 0
B157: - | C157: - | I157: - | J157: - | P157: - | Q157: - | V157: =Z157 -> 0 | W157: 0 | X157: 0 | Y157: 0 | Z157: 0
B158: - | C158: - | I158: - | J158: - | P158: - | Q158: - | V158: 0 | W158: 0 | X158: 0 | Y158: 0 | Z158: 0
B159: - | C159: - | I159: - | J159: - | P159: - | Q159: - | V159: 0 | W159: 0 | X159: 0 | Y159: 0 | Z159: 0
B160: - | C160: - | I160: - | J160: - | P160: - | Q160: - | V160: 0 | W160: 0 | X160: 0 | Y160: 0 | Z160: 0
B161: =IF(X52=0,"-",X52/$E$130) -> - | C161: =IF(B161="-","-",CONCATENATE(MID(C52,1,21)," - ",G52)) -> - | I161: =IF(Y52=0,"-",Y52/$L$130) -> - | J161: =IF(I161="-","-",CONCATENATE(MID(C52,1,24)," - ",G52)) -> - | P161: =IF(Z52=0,"-",Z52/$S$130) -> - | Q161: =IF(P161="-","-",CONCATENATE(MID(C52,1,24)," - ",G52)) -> - | V161: 0 | W161: 0 | X161: 0 | Y161: 0 | Z161: 0
B162: =IF(X53=0,"-",X53/$E$130) -> - | C162: =IF(B162="-","-",CONCATENATE(MID(C53,1,21)," - ",G53)) -> - | I162: =IF(Y53=0,"-",Y53/$L$130) -> - | J162: =IF(I162="-","-",CONCATENATE(MID(C53,1,24)," - ",G53)) -> - | P162: =IF(Z53=0,"-",Z53/$S$130) -> - | Q162: =IF(P162="-","-",CONCATENATE(MID(C53,1,24)," - ",G53)) -> - | V162: =Z162 -> 0 | W162: 0 | X162: 0 | Y162: 0 | Z162: 0
B163: - | C163: - | I163: - | J163: - | P163: - | Q163: - | V163: 0 | W163: 0 | X163: 0 | Y163: 0 | Z163: 0
B164: - | C164: - | I164: - | J164: - | P164: - | Q164: - | V164: 0 | W164: 0 | X164: 0 | Y164: 0 | Z164: 0
B165: - | C165: - | I165: - | J165: - | P165: - | Q165: - | V165: 0 | W165: 0 | X165: 0 | Y165: 0 | Z165: 0
B166: - | C166: - | I166: - | J166: - | P166: - | Q166: - | V166: 0 | W166: 0 | X166: 0 | Y166: 0 | Z166: 0
B167: - | C167: - | I167: - | J167: - | P167: - | Q167: - | V167: 0 | W167: 0 | X167: 0 | Y167: 0 | Z167: 0
B168: - | C168: - | I168: - | J168: - | P168: - | Q168: - | V168: 0 | W168: 0 | X168: 0 | Y168: 0 | Z168: 0
B169: - | C169: - | I169: - | J169: - | P169: - | Q169: - | V169: 0 | W169: 0 | X169: 0 | Y169: 0 | Z169: 0
B170: - | C170: - | I170: - | J170: - | P170: - | Q170: - | V170: 0 | W170: 0 | X170: 0 | Y170: 0 | Z170: 0
B171: - | C171: - | I171: - | J171: - | P171: - | Q171: - | V171: 0 | W171: 0 | X171: 0 | Y171: 0 | Z171: 0
B172: - | C172: - | I172: - | J172: - | P172: - | Q172: - | V172: 0 | W172: 0 | X172: 0 | Y172: 0 | Z172: 0
B173: - | C173: - | I173: - | J173: - | P173: - | Q173: - | V173: 0 | W173: 0 | X173: 0 | Y173: 0 | Z173: 0
B174: - | C174: - | I174: - | J174: - | P174: - | Q174: - | V174: 0 | W174: 0 | X174: 0 | Y174: 0 | Z174: 0
B175: - | C175: - | I175: - | J175: - | P175: - | Q175: - | V175: 0 | W175: 0 | X175: 0 | Y175: 0 | Z175: 0
B176: - | C176: - | I176: - | J176: - | P176: - | Q176: - | V176: 0 | W176: 0 | X176: 0 | Y176: 0 | Z176: 0
B177: - | C177: - | I177: - | J177: - | P177: - | Q177: - | V177: 0 | W177: 0 | X177: 0 | Y177: 0 | Z177: 0
B178: - | C178: - | I178: - | J178: - | P178: - | Q178: - | V178: 0 | W178: 0 | X178: 0 | Y178: 0 | Z178: 0
B179: - | C179: - | I179: - | J179: - | P179: - | Q179: =IF(P179="-","-",CONCATENATE(MID(C70,1,24)," - ",G70)) -> - | V179: 0 | W179: 0 | X179: 0 | Y179: 0 | Z179: 0
B180: - | C180: - | I180: - | J180: - | P180: - | Q180: - | V180: 0 | W180: 0 | X180: 0 | Y180: 0 | Z180: 0
B181: - | C181: - | I181: - | J181: - | P181: - | Q181: - | V181: 0 | W181: 0 | X181: 0 | Y181: 0 | Z181: 0
B182: - | C182: - | I182: - | J182: - | P182: - | Q182: - | V182: 0 | W182: 0 | X182: 0 | Y182: 0 | Z182: 0
B183: - | C183: - | I183: - | J183: - | P183: - | Q183: - | V183: 0 | W183: 0 | X183: 0 | Y183: 0 | Z183: 0
B184: - | C184: - | I184: - | J184: - | P184: - | Q184: - | V184: 0 | W184: 0 | X184: 0 | Y184: 0 | Z184: 0
B185: - | C185: - | I185: - | J185: - | P185: - | Q185: - | V185: 0 | W185: 0 | X185: 0 | Y185: 0 | Z185: 0
B186: - | C186: - | I186: - | J186: - | P186: - | Q186: - | V186: 0 | W186: 0 | X186: 0 | Y186: 0 | Z186: 0
B187: - | C187: - | I187: - | J187: - | P187: - | Q187: - | V187: 0 | W187: 0 | X187: 0 | Y187: 0 | Z187: 0
B188: - | C188: - | I188: - | J188: - | P188: - | Q188: - | V188: 0 | W188: 0 | X188: 0 | Y188: 0 | Z188: 0
B189: - | C189: - | I189: - | J189: - | P189: - | Q189: - | V189: 0 | W189: 0 | X189: 0 | Y189: 0 | Z189: 0
B190: - | C190: - | I190: - | J190: - | P190: - | Q190: - | V190: 0 | W190: 0 | X190: 0 | Y190: 0 | Z190: 0
B191: - | C191: - | I191: - | J191: - | P191: - | Q191: - | V191: 0 | W191: 0 | X191: 0 | Y191: 0 | Z191: 0
B192: - | C192: - | I192: - | J192: - | P192: - | Q192: - | V192: 0 | W192: 0 | X192: 0 | Y192: 0 | Z192: 0
B193: - | C193: - | I193: - | J193: - | P193: - | Q193: - | V193: 0 | W193: 0 | X193: 0 | Y193: 0 | Z193: 0
B194: - | C194: - | I194: - | J194: - | P194: - | Q194: - | V194: 0 | W194: 0 | X194: 0 | Y194: 0 | Z194: 0
B195: - | C195: - | I195: - | J195: - | P195: - | Q195: - | V195: 0 | W195: 0 | X195: 0 | Y195: 0 | Z195: 0
B196: - | C196: - | I196: - | J196: - | P196: - | Q196: - | V196: 0 | W196: 0 | X196: 0 | Y196: 0 | Z196: 0
B197: - | C197: - | I197: - | J197: - | P197: - | Q197: - | V197: 0 | W197: 0 | X197: 0 | Y197: 0 | Z197: 0
B198: - | C198: - | I198: - | J198: - | P198: - | Q198: - | V198: 0 | W198: 0 | X198: 0 | Y198: 0 | Z198: 0
B199: - | C199: - | I199: - | J199: - | P199: - | Q199: - | V199: 0 | W199: 0 | X199: 0 | Y199: 0 | Z199: 0
B200: - | C200: - | I200: - | J200: - | P200: - | Q200: - | V200: 0 | W200: 0 | X200: 0 | Y200: 0 | Z200: 0
... 48 more rows

Sheet Codici (hidden)
A1: CODICE CONVERGE | B1: CODICE CONVENZIONE | C1: Prezzo vendita da Converge a CONSIP tot. | D1: Qty Bundle | E1: Description | F1: CODICE CONVERGE
A2: TS2L5-SRV-U | B2: TS2L5-SRV-U | C2: 6078 | D2: 1 | E2: HPE ProLiant DL560 Gen10 Server PRESTAZIONALE (2CPU Intel Xeon Gold 5220) | F2: TS2L5-SRV-U
D3: 1 | E3: Manutenzione Server Base - via Day 1 contract
D4: 1 | E4: HPE Mobile USB DVDRW Drive
A6: TS2L5-CPU-U | B6: TS2L5-CPU-U | C6: 3289 | D6: 2 | E6: HPE DL560 Gen10 Intel Xeon-Gold 5220 (2.2GHz/18-core/125W) | F6: TS2L5-CPU-U
D7: 1 | E7: HPE DL5x0 Gen10 CPU Mezzanine Board Kit
A9: TS2H-RAM16-U | B9: TS2L5-RAM16-U | C9: 136 | D9: 1 | E9: HPE 16GB 1Rx4 PC4-2933 Smart Kit | F9: TS2H-RAM16-U
A10: TS2H-RAM32-U | B10: TS2L5-RAM32-U | C10: 397 | D10: 1 | E10: HPE 32GB 2Rx4 PC4-2933 Smart Kit | F10: TS2H-RAM32-U
A11: TS2H-RAM64-U | B11: TS2L5-RAM64-U | C11: 705 | D11: 1 | E11: HPE 64GB 4Rx4 PC4-2933 Smart Kit | F11: TS2H-RAM64-U
A13: TS2H-15K300 | B13: TS2L5-15K300 | C13: 137 | D13: 1 | E13: HPE 300GB SAS 15K SFF SC DS HDD | F13: TS2H-15K300
A14: TS2H-10K1200 | B14: TS2L5-10K1200 | C14: 146 | D14: 1 | E14: HPE 1.2TB SAS 10K SFF SC DS HDD | F14: TS2H-10K1200
A15: TS2H-10K1800 | B15: TS2L5-10K1800 | C15: 190 | D15: 1 | E15: HPE 1.8TB SAS 10K SFF SC 512e DS HDD | F15: TS2H-10K1800
A16: TS2H-SSDR960 | B16: TS2L5-SSDR960 | C16: 664 | D16: 1 | E16: HPE 960GB SAS RI SFF SC DS SSD | F16: TS2H-SSDR960
A17: TS2H-SSDR1920 | B17: TS2L5-SSDR1920 | C17: 1313 | D17: 1 | E17: HPE 1.92TB SAS 12G Read Intensive SFF | F17: TS2H-SSDR1920
A19: TS2H-LAN1 | B19: TS2L5-LAN1 | C19: 33 | D19: 1 | E19: HPE Ethernet 1Gb 2P 332T Adptr | F19: TS2H-LAN1
A20: TS2H-LAN10 | B20: TS2L5-LAN10 | C20: 344 | D20: 1 | E20: HPE Ethernet 10Gb 2P 530SFP+ Adptr | F20: TS2H-LAN10
D21: 2 | E21: HPE BLc 10G SFP+ SR Transceiver
A22: TS2H-CNA10 | B22: TS2L5-CNA10 | C22: 723 | D22: 1 | E22: HPE CN1100R 2P Converged Network Adapter | F22: TS2H-CNA10
D23: 2 | E23: HPE BLc 10G SFP+ SR Transceiver
A24: TS2H-FC16 | B24: TS2L5-FC16 | C24: 356 | D24: 1 | E24: HPE SN1100Q 16Gb 2p FC HBA | F24: TS2H-FC16
A26: TS2H-4Y | B26: TS2L5-4Y | C26: 300 | D26: 1 | E26: Estensione della manutenzione in garanzia per ulteriori 12 mesi | F26: TS2H-4Y
D27: 1 | E27: Onsite Labor CRU, 1Year
A28: TS2H-5Y | B28: TS2L5-5Y | C28: 600 | D28: 1 | E28: Estensione della manutenzione in garanzia per ulteriori 24 mesi | F28: TS2H-5Y
D29: 2 | E29: Onsite Labor CRU, 1Year
A31: TS2H-WIN1 | B31: TS2L5-WIN1 | C31: 551 | D31: 1 | E31: Microsoft Windows Server 2019 Standard Edition ROK 16 Core | F31: TS2H-WIN1
A32: TS2H-WIN2 | B32: TS2L5-WIN2 | C32: 551 | D32: 1 | E32: Microsoft Windows Server 2019 Standard Edition Additional License 16 Core | F32: TS2H-WIN2
A33: TS2H-CALDEV | B33: TS2L5-CALDEV | C33: 21 | D33: 1 | E33: Microsoft Windows Server 2019 1 Device CAL | F33: TS2H-CALDEV
A34: TS2H-CALUSER | B34: TS2L5-CALUSER | C34: 21 | D34: 1 | E34: Microsoft Windows Server 2019 User CAL | F34: TS2H-CALUSER
A35: TS2H-WIN2CORE | B35: TS2L5-WIN2CORE | C35: 54 | D35: 1 | E35: Microsoft Windows Server 2019 Standard Edition Additional License 2 Core | F35: TS2H-WIN2CORE
A36: TS2H-WINDC1 | B36: TS2L5-WINDC1 | C36: 2159 | D36: 1 | E36: Microsoft Windows Server 2019 Datacenter Edition ROK 16 Core | F36: TS2H-WINDC1
A37: TS2H-WINDC2 | B37: TS2L5-WINDC2 | C37: 2159 | D37: 1 | E37: Microsoft Windows Server 2019 Datacenter Edition Additional License 16 Core | F37: TS2H-WINDC2
A38: TS2H-WINDC2COR | B38: TS2L5-WINDC2COR | C38: 399 | D38: 1 | E38: Microsoft Windows Server 2019 Datacenter Edition Additional License 2 Core | F38: TS2H-WINDC2COR
A39: TS2H-LINUX | B39: TS2L5-LINUX | C39: 49 | D39: 1 | E39: CentOS 7.x | F39: TS2H-LINUX
A41: TS2-UPS | B41: TS2L5-UPS | C41: 387 | D41: 1 | E41: UPS MSR 3000VA + staffe | F41: TS2-UPS
C42: =B42*#REF! ->  | D42: 1 | E42: Kit 2 Guide universali per UPS
A43: TS2-GUI | B43: TS2L5-GUI | C43: 448 | D43: 1 | E43: Console KVM GUI da rack | F43: TS2-GUI
A44: TS2-RACK | B44: TS2L5-RACK | C44: 504 | D44: 1 | E44: Armadio Rack 42U | F44: TS2-RACK
A45: TS2-KVMIP | B45: TS2L5-KVMIP | C45: 495 | D45: 1 | E45: KVM Switch IP per GUI 16P con cavi | F45: TS2-KVMIP
A47: TS2-3MRJ45 | B47: TS2L5-3MRJ45 | C47: 2 | E47: Cavo Rete UTP cat. 5e 3 metri A20 | F47: TS2-3MRJ45
A48: TS2H-SASBAY1 | B48: TS2L5-SASBAY1 | C48: 800 | D48: 1 | E48: Kit per ulteriori 8 HDD (HPE DL560 Gen10 8SFF HDD Bay1) comprensivo di SAS Expander | F48: TS2H-SASBAY1
D49: 1 | E49: HPE DL5x0 Gen10 12Gb SAS Expander
A50: TS2H-530T | B50: TS2L5-530T | C50: 298 | D50: 1 | E50: HPE Ethernet 10Gb 2-port 530T Adapter | F50: TS2H-530T
A51: TS2H-521T | B51: TS2L5-521T | C51: 298 | D51: 1 | E51: HPE Ethernet 10Gb 2-port 521T Adapter | F51: TS2H-521T
A52: TS2H-536FLR | B52: TS2L5-536FLR | C52: 610 | D52: 1 | E52: HPE FlexFabric 10Gb 4-port 536FLR-T Adapter | F52: TS2H-536FLR
A53: TS2H-562SFP | B53: TS2L5-562SFP | C53: 380 | D53: 1 | E53: HPE Ethernet 10Gb 2-port 562SFP+ Adapter | F53: TS2H-562SFP
A54: TS2H-10OTSR | B54: TS2L5-10OTSR | C54: 230 | D54: 1 | E54: HPE 10Gb SFP+ SR Transceiver | F54: TS2H-10OTSR
A55: TS2H-10OTLR | B55: TS2L5-10OTLR | C55: 481 | D55: 1 | E55: HPE 10G SFP+ LR Transceiver | F55: TS2H-10OTLR
A56: TS2H-GPURSRKIT | B56: TS2L5-GPURSRKIT | C56: 87 | D56: 1 | E56: HPE DL Gen10 x16 x16 GPU Rsr Kit | F56: TS2H-GPURSRKIT
A57: TS2H-P2000GPU | B57: TS2L5-P2000GPU | C57: 690 | D57: 1 | E57: HPE NVIDIA Quadro P2000 GPU Module | F57: TS2H-P2000GPU
A58: TS2H-841QSFP28 | B58: TS2L5-841QSFP28 | C58: 2699 | D58: 1 | E58: HPE InfiniBand EDR 100Gb 1-port 841QSFP28 Adapter | F58: TS2H-841QSFP28
A59: TS2H-OP101 | B59: TS2L5-OP101 | C59: 554 | D59: 1 | E59: HPE 100Gb 1-port OP101 QSFP28 x16 PCIe Gen3 with Intel Omni-Path Architecture Adapter | F59: TS2H-OP101
A60: TS2H-547FLR | B60: TS2L5-547FLR | C60: 461 | D60: 1 | E60: HPE InfiniBand FDR/Ethernet 40/50Gb 2-port 547FLR-QSFP Adapter | F60: TS2H-547FLR
A61: TS2H-VMWSTD1P5Y | B61: TS2L5-VMWSTD1P5Y | C61: 1933 | D61: 1 | E61: VMware vSphere Standard 1 Processor 5yr Software | F61: TS2H-VMWSTD1P5Y
A62: TS2H-VMWEP1P5Y | B62: TS2L5-VMWEP1P5Y | C62: 5889 | D62: 1 | E62: VMware vSphere Enterprise Plus 1 Processor 5yr Software | F62: TS2H-VMWEP1P5Y
A63: TS2H-VMWSTD1P3Y | B63: TS2L5-VMWSTD1P3Y | C63: 1506 | D63: 1 | E63: VMware vSphere Standard 1 Processor 3yr Software | F63: TS2H-VMWSTD1P3Y
A64: TS2H-VMWEP1P3Y | B64: TS2L5-VMWEP1P3Y | C64: 4734 | D64: 1 | E64: VMware vSphere Enterprise Plus 1 Processor 3yr Software | F64: TS2H-VMWEP1P3Y
A65: TS2H-VMWKIT6P3Y | B65: TS2L5-VMWKIT6P3Y | C65: 5052 | D65: 1 | E65: VMware vSphere Essentials Plus Kit 6 Processor 3yr | F65: TS2H-VMWKIT6P3Y
A66: TS2H-VMWKIT6P5Y | B66: TS2L5-VMWKIT6P5Y | C66: 6284 | D66: 1 | E66: VMware vSphere Essentials Plus Kit 6 Processor 5yr | F66: TS2H-VMWKIT6P5Y
A67: TS2H-VMWVCSTD3Y | B67: TS2L5-VMWVCSTD3Y | C67: 8240 | D67: 1 | E67: VMw vCenter Server Std for vSph 3yr SW | F67: TS2H-VMWVCSTD3Y
A68: TS2H-VMWVCSTD5Y | B68: TS2L5-VMWVCSTD5Y | C68: 10251 | D68: 1 | E68: VMw vCenter Server Std for vSph 5yr SW | F68: TS2H-VMWVCSTD5Y
A69: TS2H-OV3YILO | B69: TS2L5-OV3YILO | C69: 480 | D69: 1 | E69: HPE OV 3yr 24x7 Supp Phys 1 Svr Lic | F69: TS2H-OV3YILO
A70: TS2H-DACQSFPM2 | B70: TS2L5-DACQSFPM2 | C70: 147 | D70: 1 | E70: HPE 2M FDR Quad Small Form Factor Pluggable InfiniBand Copper Cable | F70: TS2H-DACQSFPM2
A71: TS2H-DAC100M2 | B71: TS2L5-DAC100M2 | C71: 117 | D71: 1 | E71: HPE 2M 100Gb QSFP28 Omni-Path Architecture Copper Cable | F71: TS2H-DAC100M2
A72: TS2H-DAC100M3 | B72: TS2L5-DAC100M3 | C72: 147 | D72: 1 | E72: HPE 3M 100Gb QSFP28 Omni-Path Architecture Copper Cable | F72: TS2H-DAC100M3
A73: TS2H-DACAOCM3 | B73: TS2L5-DACAOCM3 | C73: 612 | D73: 1 | E73: HPE 3M 100Gb QSFP28 Omni-Path Architecture Optical Power Class 2 Cable | F73: TS2H-DACAOCM3
A74: TS2H-DACAOCM5 | B74: TS2L5-DACAOCM5 | C74: 619 | D74: 1 | E74: HPE 5M 100Gb QSFP28 Omni-Path Architecture Optical Power Class 2 Cable | F74: TS2H-DACAOCM5
A75: TS2H-DACAOCM7 | B75: TS2L5-DACAOCM7 | C75: 627 | D75: 1 | E75: HPE 7M 100Gb QSFP28 Omni-Path Architecture Optical Power Class 2 Cable | F75: TS2H-DACAOCM7
A76: TS2H-VSANSTD3Y | B76: TS2L5-VSANSTD3Y | C76: 3611 | D76: 1 | E76: VMware vSAN Standard OEM 1 Processor 3yr Software A20 | F76: TS2H-VSANSTD3Y
A77: TS2H-VSANADV3Y | B77: TS2L5-VSANADV3Y | C77: 5543 | D77: 1 | E77: VMware vSAN Advanced OEM 1 Processor 3yr Software A20 | F77: TS2H-VSANADV3Y
A78: TS2H-SSD400MU | B78: TS2L5-SSD400MU | C78: 622 | D78: 1 | E78: HPE 400GB SAS 12G Mixed Use SFF (2.5in) SC DS SSD | F78: TS2H-SSD400MU
A79: TS2H-SSD400WIB | B79: TS2L5-SSD400WIB | C79: 959 | D79: 1 | E79: HPE 400GB SAS 12G Write Intensive SFF (2.5in) SC DS SSD | F79: TS2H-SSD400WIB
A80: TS2H-SSD800MU | B80: TS2L5-SSD800MU | C80: 980 | D80: 1 | E80: HPE 800GB SAS 12G Mixed Use SFF (2.5in) SC DS SSD | F80: TS2H-SSD800MU
A81: TS2H-SSD960MU | B81: TS2L5-SSD960MU | C81: 864 | D81: 1 | E81: HPE 960GB SAS 12G Mixed Use SC 3yr Wty Value SAS DS SSD | F81: TS2H-SSD960MU
A82: TS2H-DUAL32GB | B82: TS2L5-DUAL32GB | C82: 306 | D82: 1 | E82: HPE 32GB Dual microSD USB Flash Drive | F82: TS2H-DUAL32GB
A83: TS2H-E208IA | B83: TS2L5-E208IA | C83: 180 | D83: 1 | E83: HPE Smart Array E208i-a SR Gen10 12G SAS Modular LH Controller | F83: TS2H-E208IA
A84: TS2H-E208IP | B84: TS2L5-E208IP | C84: 180 | D84: 1 | E84: HPE Smart Array E208i-p SR Gen10 12G SAS PCIe Plug-in Controller | F84: TS2H-E208IP
A85: TS2H-HDDBAY | B85: TS2L5-HDDBAY | C85: 191 | D85: 1 | E85: HPE DL560 Gen10 8SFF HDD Bay1 only | F85: TS2H-HDDBAY
A86: TS2H-M2240 | B86: TS2L5-M2240 | C86: 175 | D86: 1 | E86: HPE 240GB SATA 6G Mixed Use M.2 2280 3yr Wty DS SSD | F86: TS2H-M2240
A87: TS2H-8NVME | B87: TS2L5-8NVME | C87: 1036 | D87: 1 | E87: HPE DL560 Gen10 NVMe 8 SSD Express Bay Kit | F87: TS2H-8NVME
A88: TS2H-375NVMEWI | B88: TS2L5-375NVMEWI | C88: 2398 | D88: 1 | E88: HPE 375GB NVMe x4 WI SFF SCN DS SSD | F88: TS2H-375NVMEWI
A89: TS2H-750NVMEWI | B89: TS2L5-750NVMEWI | C89: 4797 | D89: 1 | E89: HPE 750GB NVMe x4 WI SFF SCN DS SSD | F89: TS2H-750NVMEWI
A90: TS2H-800NVMEMU | B90: TS2L5-800NVMEMU | C90: 900 | D90: 1 | E90: HPE 800GB NVMe x4 MU SFF SCN DS SSD | F90: TS2H-800NVMEMU
A91: TS2H-2000NVMERI | B91: TS2L5-2000NVMERI | C91: 1912 | D91: 1 | E91: HPE 2TB NVMe x4 RI SFF SCN DS SSD | F91: TS2H-2000NVMERI
A92: TS2H-4000NVMERI | B92: TS2L5-4000NVMERI | C92: 3748 | D92: 1 | E92: HPE 4TB NVMe x4 RI SFF SCN DS SSD | F92: TS2H-4000NVMERI
A93: TS2H-1600NVMEMU | B93: TS2L5-1600NVMEMU | C93: 1569 | D93: 1 | E93: HPE 1.6TB NVMe x4 MU SFF SCN DS SSD | F93: TS2H-1600NVMEMU
A94: TS2H-3200NVMEMU | B94: TS2L5-3200NVMEMU | C94: 3452 | D94: 1 | E94: HPE 3.2TB NVMe x4 MU SFF SCN DS SSD | F94: TS2H-3200NVMEMU
A95: TS2H-SSD3840RI | B95: TS2L5-SSD3840RI | C95: 2066 | D95: 1 | E95: HPE 3.84TB SAS RI SFF SC DS SSD | F95: TS2H-SSD3840RI
A96: TS2H-750NVMEWIHH | B96: TS2L5-750NVMEWIHH | C96: 4795 | D96: 1 | E96: HPE 750GB PCIe x4 WI HH DS Card | F96: TS2H-750NVMEWIHH
A97: TS2H-1600NVMEMUHH | B97: TS2L5-1600NVMEMUHH | C97: 1571 | D97: 1 | E97: HPE 1.6TB NVMe x8 MU HH DS Card | F97: TS2H-1600NVMEMUHH
A98: TS2H-3200NVMEMUHH | B98: TS2L5-3200NVMEMUHH | C98: 2849 | D98: 1 | E98: HPE 3.2TB NVMe x8 MU HH DS Card | F98: TS2H-3200NVMEMUHH
A99: TS2H-6400NVMEMUHH | B99: TS2L5-6400NVMEMUHH | C99: 6518 | D99: 1 | E99: HPE 6.4TB NVMe x8 MU HH DS Card | F99: TS2H-6400NVMEMUHH
A100: TS2-RACKPDU32 | B100: TS2L5-RACKPDU32 | C100: 2200 | D100: 1 | E100: Armadio Rack 42U profonità 120cm con coppia di PDU 32A monofase | F100: TS2-RACKPDU32
A101: TS2-RACK3PH | B101: TS2L5-RACK3PH | C101: 2177 | D101: 1 | E101: Armadio Rack 42U 600 x1200 con coppia di PDU 32A Trifase 12C19+30C13 | F101: TS2-RACK3PH
A102: TS2-PDU32A | B102: TS2L5-PDU32A | C102: 436 | D102: 1 | E102: Coppia di PDU Vertical 1Ph-32A-18xC13-6xC19 - 0U Base | F102: TS2-PDU32A
A103: TS2H-NECPUSFF | B103: TS2L5-NECPUSFF | C103: 5764 | D103: 1 | E103: HPE NECS FullFlash CPU sbr 3yr | F103: TS2H-NECPUSFF
A104: TS2H-NECPUSHY | B104: TS2L5-NECPUSHY | C104: 4236 | D104: 1 | E104: HPE NECS Hybrid CPU sbr 3yr | F104: TS2H-NECPUSHY
A105: TS2H-CVLT10 | B105: TS2L5-CVLT10 | C105: 3381 | D105: 1 | E105: HPE 10-Pack CVLT Bur Virtual Env VM Perp LTU | F105: TS2H-CVLT10
A106: TS2H-BR1CPU | B106: TS2L5-BR1CPU | C106: 1107 | D106: 1 | E106: Backup and Recovery 1 CPU socket E-LTU 3 years for HPE server | F106: TS2H-BR1CPU
A107: TS2H-NECSHY | B107: TS2L5-NECSHY | C107: 389 | D107: 1 | E107: HPE NECS Hybrid CPU core sbr 3yr | F107: TS2H-NECSHY
A108: TS2H-NECSFF | B108: TS2L5-NECSFF | C108: 532 | D108: 1 | E108: HPE NECS FullFlash CPU core sbr 3yr | F108: TS2H-NECSFF
A109: TS2H-VSA4TB | B109: TS2L5-VSA4TB | C109: 2157 | D109: 1 | E109: HPE StoreOnce VSA 4TB Base E-LTU SD | F109: TS2H-VSA4TB
A110: TS2H-VSA1TB | B110: TS2L5-VSA1TB | C110: 523 | D110: 1 | E110: HPE StoreOnce VSA Stackable 1TB ELTU | F110: TS2H-VSA1TB
A111: TS2H-DACX240M3 | B111: TS2L5-DACX240M3 | C111: 81 | D111: 1 | E111: HPE X240 10G SFP+ SFP+ 3m DAC Cable | F111: TS2H-DACX240M3
A112: TS2H-DACX240M5 | B112: TS2L5-DACX240M5 | C112: 95 | D112: 1 | E112: HPE X240 10G SFP+ SFP+ 5m DAC Cable | F112: TS2H-DACX240M5
A113: TS2H-DACX240M7 | B113: TS2L5-DACX240M7 | C113: 106 | D113: 1 | E113: HPE X240 10G SFP+ SFP+ 7m DAC Cable | F113: TS2H-DACX240M7

Sheet Operating System (hidden)
A1: Operating System
A2: DL560
A3: No Operating System | B3: ="" ->  | C3: ="" ->  | D3: ="" ->  | E3: ="" ->  | F3: ="" ->  | G3: None | H3: ="" ->  | I3: ="" ->  | J3: ="" ->  | K3: ="" ->  | L3: 0 | M3: None | N3: ="" ->  | O3: ="" ->  | P3: ="" ->  | Q3: ="" ->  | R3: 0 | S3: ="" ->  | T3: 0 | U3: ="" ->  | V3: ="" ->  | W3: ="" ->  | X3: 0 | Y3: ="" ->  | Z3: 0 | AA3: ="" ->  | AB3: ="" ->  | AC3: ="" ->  | AD3: 0
A4: Microsoft Windows Server 2019 Standard Edition ROK 16 Core | B4: 1 | C4: TS2L5-WIN1 | D4: TS2L5-WIN1 | E4: P00487-B21 | F4: 551 | G4: 1-pack of Windows Server 2019 User CALs | I4: TS2L5-CALUSER | J4: TS2L5-CALUSER | K4: 871175-A21 | L4: 21 | M4: 1-pack of Windows Server 2019 Device CALs | O4: TS2L5-CALDEV | P4: TS2L5-CALDEV | Q4: 871176-A21 | R4: 21 | S4: Microsoft Windows Server 2019 Standard Edition Additional License 16 Core | T4: 1 | U4: TS2L5-WIN2 | V4: TS2L5-WIN2 | W4: 871159-A21 | X4: 551 | Y4: Microsoft Windows Server 2019 Standard Edition Additional License 2 Core | Z4: 2 | AA4: TS2L5-WIN2CORE | AB4: TS2L5-WIN2CORE | AC4: 871159-A21 | AD4: 54
A5: Microsoft Windows Server 2019 Datacenter Edition ROK 16 Core | B5: 1 | C5: TS2L5-WINDC1 | D5: TS2L5-WINDC1 | E5: P00488-B21 | F5: 2159 | G5: 1-pack of Windows Server 2019 User CALs | I5: TS2L5-CALUSER | J5: TS2L5-CALUSER | K5: 871175-A21 | L5: 21 | M5: 1-pack of Windows Server 2019 Device CALs | O5: TS2L5-CALDEV | P5: TS2L5-CALDEV | Q5: 871176-A21 | R5: 21 | S5: Microsoft Windows Server 2019 Datacenter Edition Additional License 16 Core | T5: 1 | U5: TS2L5-WINDC2 | V5: TS2L5-WINDC2 | W5: 871166-A21 | X5: 2159 | Y5: Microsoft Windows Server 2019 Datacenter Edition Additional License 2 Core | Z5: 2 | AA5: TS2L5-WINDC2COR | AB5: TS2L5-WINDC2COR | AC5: 871168-A21 | AD5: 399
A6: CentOS 7.0 | B6: 1 | C6: TS2L5-LINUX | D6: TS2L5-LINUX | F6: 49 | G6: None | H6: ="" ->  | I6: ="" ->  | J6: ="" ->  | K6: ="" ->  | L6: 0 | M6: None | N6: ="" ->  | O6: ="" ->  | P6: ="" ->  | Q6: ="" ->  | R6: 0 | S6: ="" ->  | T6: 0 | U6: ="" ->  | V6: ="" ->  | W6: ="" ->  | X6: 0 | Y6: ="" ->  | Z6: 0 | AA6: ="" ->  | AB6: ="" ->  | AC6: ="" ->  | AD6: 0
A8: DL560 2CPU
A9: No Operating System | B9: ="" ->  | C9: ="" ->  | D9: ="" ->  | E9: ="" ->  | F9: ="" ->  | G9: None | H9: ="" ->  | I9: ="" ->  | J9: ="" ->  | K9: ="" ->  | L9: 0 | M9: None | N9: ="" ->  | O9: ="" ->  | P9: ="" ->  | Q9: ="" ->  | R9: 0 | S9: ="" ->  | T9: 0 | U9: ="" ->  | V9: ="" ->  | W9: ="" ->  | X9: 0 | Y9: ="" ->  | Z9: 0 | AA9: ="" ->  | AB9: ="" ->  | AC9: ="" ->  | AD9: 0
A10: Microsoft Windows Server 2019 Standard Edition ROK 16 Core | B10: 1 | C10: TS2L5-WIN1 | D10: TS2L5-WIN1 | E10: P00487-B21 | F10: 551 | G10: 1-pack of Windows Server 2019 User CALs | I10: TS2L5-CALUSER | J10: TS2L5-CALUSER | K10: 871175-A21 | L10: 21 | M10: 1-pack of Windows Server 2019 Device CALs | O10: TS2L5-CALDEV | P10: TS2L5-CALDEV | Q10: 871176-A21 | R10: 21 | S10: Microsoft Windows Server 2019 Standard Edition Additional License 16 Core | T10: 3 | U10: TS2L5-WIN2 | V10: TS2L5-WIN2 | W10: 871157-A21 | X10: 551 | Y10: Microsoft Windows Server 2019 Standard Edition Additional License 2 Core | Z10: 4 | AA10: TS2L5-WIN2CORE | AB10: TS2L5-WIN2CORE | AC10: 871159-A21 | AD10: 54
A11: Microsoft Windows Server 2019 Datacenter Edition ROK 16 Core | B11: 1 | C11: TS2L5-WINDC1 | D11: TS2L5-WINDC1 | E11: P00488-B21 | F11: 2159 | G11: 1-pack of Windows Server 2019 User CALs | I11: TS2L5-CALUSER | J11: TS2L5-CALUSER | K11: 871175-A21 | L11: 21 | M11: 1-pack of Windows Server 2019 Device CALs | O11: TS2L5-CALDEV | P11: TS2L5-CALDEV | Q11: 871176-A21 | R11: 21 | S11: Microsoft Windows Server 2019 Datacenter Edition Additional License 16 Core | T11: 3 | U11: TS2L5-WINDC2 | V11: TS2L5-WINDC2 | W11: 871166-A21 | X11: 2159 | Y11: Microsoft Windows Server 2019 Datacenter Edition Additional License 2 Core | Z11: 4 | AA11: TS2L5-WINDC2COR | AB11: TS2L5-WINDC2COR | AC11: 871168-A21 | AD11: 399
A12: CentOS 7.0 | B12: 1 | C12: TS2L5-LINUX | D12: TS2L5-LINUX | F12: 49 | G12: None | H12: ="" ->  | I12: ="" ->  | J12: ="" ->  | K12: ="" ->  | L12: 0 | M12: None | N12: ="" ->  | O12: ="" ->  | P12: ="" ->  | Q12: ="" ->  | R12: 0 | S12: ="" ->  | T12: 0 | U12: ="" ->  | V12: ="" ->  | W12: ="" ->  | X12: 0 | Y12: ="" ->  | Z12: 0 | AA12: ="" ->  | AB12: ="" ->  | AC12: ="" ->  | AD12: 0
A15: DL580 ALTERNATIVO
A16: No Operating System | B16: ="" ->  | C16: ="" ->  | D16: ="" ->  | E16: ="" ->  | F16: ="" ->  | G16: None | H16: ="" ->  | I16: ="" ->  | J16: ="" ->  | K16: ="" ->  | L16: 0 | M16: None | N16: ="" ->  | O16: ="" ->  | P16: ="" ->  | Q16: ="" ->  | R16: 0 | S16: ="" ->  | T16: 0 | U16: ="" ->  | V16: ="" ->  | W16: ="" ->  | X16: 0 | Y16: ="" ->  | Z16: 0 | AA16: ="" ->  | AB16: ="" ->  | AC16: ="" ->  | AD16: 0
A17: Microsoft Windows Server 2016 Standard Edition ROK 16 Core | B17: 1 | C17: TS2L5-WIN1 | D17: TS2L5-WIN1 | E17: 871148-B21 | F17: 556 | G17: Microsoft Windows Server 2016 1 User CAL | I17: TS2L5-CALUSER | J17: TS2L5-CALUSER | K17: 871175-A21 | L17: 22 | M17: Microsoft Windows Server 2016 1 Device CAL | O17: TS2L5-CALDEV | P17: TS2L5-CALDEV | Q17: 871176-A21 | R17: 22 | S17: Microsoft Windows Server 2016 Standard Edition Additional License 2 Core | T17: 4 | U17: TS2L5-WIN2CORE | V17: TS2L5-WIN2CORE | W17: 871159-A21 | X17: 56 | Y17: ="" ->  | Z17: 0 | AA17: ="" ->  | AB17: ="" ->  | AC17: ="" ->  | AD17: 0
A18: Microsoft Windows Server 2016 Datacenter Edition ROK 16 Core | B18: 1 | C18: TS2L5-WINDC1 | D18: TS2L5-WINDC1 | E18: 871153-B21 | F18: 2174 | G18: Microsoft Windows Server 2016 1 User CAL | I18: TS2L5-CALUSER | J18: TS2L5-CALUSER | K18: 871175-A21 | L18: 22 | M18: Microsoft Windows Server 2016 1 Device CAL | O18: TS2L5-CALDEV | P18: TS2L5-CALDEV | Q18: 871176-A21 | R18: 22 | S18: Microsoft Windows Server 2016 Datacenter Edition Additional License 16 Core | T18: 1 | U18: TS2L5-WINDC2 | V18: TS2L5-WINDC2 | W18: 871166-A21 | X18: 2105 | Y18: ="" ->  | Z18: 0 | AA18: ="" ->  | AB18: ="" ->  | AC18: ="" ->  | AD18: 0
A19: CentOS 7.0 | B19: 1 | C19: TS2L5-LINUX | D19: TS2L5-LINUX | F19: 50 | G19: None | H19: ="" ->  | I19: ="" ->  | J19: ="" ->  | K19: ="" ->  | L19: 0 | M19: None | N19: ="" ->  | O19: ="" ->  | P19: ="" ->  | Q19: ="" ->  | R19: 0 | S19: ="" ->  | T19: 0 | U19: ="" ->  | V19: ="" ->  | W19: ="" ->  | X19: 0 | Y19: ="" ->  | Z19: 0 | AA19: ="" ->  | AB19: ="" ->  | AC19: ="" ->  | AD19: 0
A21: DL580 ALTERNATIVO 2CPU
A22: No Operating System | B22: ="" ->  | C22: ="" ->  | D22: ="" ->  | E22: ="" ->  | F22: ="" ->  | G22: None | H22: ="" ->  | I22: ="" ->  | J22: ="" ->  | K22: ="" ->  | L22: 0 | M22: None | N22: ="" ->  | O22: ="" ->  | P22: ="" ->  | Q22: ="" ->  | R22: 0 | S22: ="" ->  | T22: 0 | U22: ="" ->  | V22: ="" ->  | W22: ="" ->  | X22: 0 | Y22: ="" ->  | Z22: 0 | AA22: ="" ->  | AB22: ="" ->  | AC22: ="" ->  | AD22: 0
A23: Microsoft Windows Server 2016 Standard Edition ROK 16 Core | B23: 1 | C23: TS2L5-WIN1 | D23: TS2L5-WIN1 | E23: 871148-B21 | F23: 556 | G23: Microsoft Windows Server 2016 1 User CAL | I23: TS2L5-CALUSER | J23: TS2L5-CALUSER | K23: 871175-A21 | L23: 22 | M23: Microsoft Windows Server 2016 1 Device CAL | O23: TS2L5-CALDEV | P23: TS2L5-CALDEV | Q23: 871176-A21 | R23: 22 | S23: Microsoft Windows Server 2016 Standard Edition Additional License 16 Core | T23: 2 | U23: TS2L5-WIN2 | V23: TS2L5-WIN2 | W23: 871157-A21 | X23: 526 | Y23: ="" ->  | Z23: 0 | AA23: ="" ->  | AB23: ="" ->  | AC23: ="" ->  | AD23: 0
A24: Microsoft Windows Server 2016 Datacenter Edition ROK 16 Core | B24: 1 | C24: TS2L5-WINDC1 | D24: TS2L5-WINDC1 | E24: 871153-B21 | F24: 2174 | G24: Microsoft Windows Server 2016 1 User CAL | I24: TS2L5-CALUSER | J24: TS2L5-CALUSER | K24: 871175-A21 | L24: 22 | M24: Microsoft Windows Server 2016 1 Device CAL | O24: TS2L5-CALDEV | P24: TS2L5-CALDEV | Q24: 871176-A21 | R24: 22 | S24: Microsoft Windows Server 2016 Datacenter Edition Additional License 16 Core | T24: 2 | U24: TS2L5-WINDC2 | V24: TS2L5-WINDC2 | W24: 871166-A21 | X24: 2105 | Y24: ="" ->  | Z24: 0 | AA24: ="" ->  | AB24: ="" ->  | AC24: ="" ->  | AD24: 0
A25: CentOS 7.0 | B25: 1 | C25: TS2L5-LINUX | D25: TS2L5-LINUX | F25: 50 | G25: None | H25: ="" ->  | I25: ="" ->  | J25: ="" ->  | K25: ="" ->  | L25: 0 | M25: None | N25: ="" ->  | O25: ="" ->  | P25: ="" ->  | Q25: ="" ->  | R25: 0 | S25: ="" ->  | T25: 0 | U25: ="" ->  | V25: ="" ->  | W25: ="" ->  | X25: 0 | Y25: ="" ->  | Z25: 0 | AA25: ="" ->  | AB25: ="" ->  | AC25: ="" ->  | AD25: 0
A27: Dl580 PREST
A28: No Operating System | B28: ="" ->  | C28: ="" ->  | D28: ="" ->  | E28: ="" ->  | F28: ="" ->  | G28: None | H28: ="" ->  | I28: ="" ->  | J28: ="" ->  | K28: ="" ->  | L28: 0 | M28: None | N28: ="" ->  | O28: ="" ->  | P28: ="" ->  | Q28: ="" ->  | R28: 0 | S28: ="" ->  | T28: 0 | U28: ="" ->  | V28: ="" ->  | W28: ="" ->  | X28: 0 | Y28: ="" ->  | Z28: 0 | AA28: ="" ->  | AB28: ="" ->  | AC28: ="" ->  | AD28: 0
A29: Microsoft Windows Server 2016 Standard Edition ROK 16 Core | B29: 1 | C29: TS2L5-WIN1 | D29: TS2L5-WIN1 | E29: 871148-B21 | F29: 556 | G29: Microsoft Windows Server 2016 1 User CAL | I29: TS2L5-CALUSER | J29: TS2L5-CALUSER | K29: 871175-A21 | L29: 22 | M29: Microsoft Windows Server 2016 1 Device CAL | O29: TS2L5-CALDEV | P29: TS2L5-CALDEV | Q29: 871176-A21 | R29: 22 | S29: Microsoft Windows Server 2016 Standard Edition Additional License 16 Core | T29: 1 | U29: TS2L5-WIN2 | V29: 2+Y23:AD23 | W29: 871157-A21 | X29: 526 | Y29: Microsoft Windows Server 2016 Standard Edition Additional License 2 Core | Z29: 2 | AA29: TS1L2-WIN2CORE | AB29: TS1L2-WIN2CORE | AC29: 871159-A21 | AD29: 56
A30: Microsoft Windows Server 2016 Datacenter Edition ROK 16 Core | B30: 1 | C30: TS2L5-WINDC1 | D30: TS2L5-WINDC1 | E30: 871153-B21 | F30: 2174 | G30: Microsoft Windows Server 2016 1 User CAL | I30: TS2L5-CALUSER | J30: TS2L5-CALUSER | K30: 871175-A21 | L30: 22 | M30: Microsoft Windows Server 2016 1 Device CAL | O30: TS2L5-CALDEV | P30: TS2L5-CALDEV | Q30: 871176-A21 | R30: 22 | S30: Microsoft Windows Server 2016 Datacenter Edition Additional License 16 Core | T30: 1 | U30: TS2L5-WINDC2 | V30: TS2L5-WINDC2 | W30: 871166-A21 | X30: 2105 | Y30: Microsoft Windows Server 2016 Datacenter Edition Additional License 2 Core | Z30: 2 | AA30: S2-871168-A21 | AB30: S2-871168-A21 | AC30: ="" ->  | AD30: 530
A31: CentOS 7.0 | B31: 1 | C31: TS2L5-LINUX | D31: TS2L5-LINUX | F31: 50 | G31: None | H31: ="" ->  | I31: ="" ->  | J31: ="" ->  | K31: ="" ->  | L31: 0 | M31: None | N31: ="" ->  | O31: ="" ->  | P31: ="" ->  | Q31: ="" ->  | R31: 0 | S31: ="" ->  | T31: 0 | U31: ="" ->  | V31: ="" ->  | W31: ="" ->  | X31: 0 | Y31: ="" ->  | Z31: 0 | AA31: ="" ->  | AB31: ="" ->  | AC31: ="" ->  | AD31: 0
A32: Dl580 PREST 2CPU
A33: No Operating System | B33: ="" ->  | C33: ="" ->  | D33: ="" ->  | E33: ="" ->  | F33: ="" ->  | G33: None | H33: ="" ->  | I33: ="" ->  | J33: ="" ->  | K33: ="" ->  | L33: 0 | M33: None | N33: ="" ->  | O33: ="" ->  | P33: ="" ->  | Q33: ="" ->  | R33: 0 | S33: ="" ->  | T33: 0 | U33: ="" ->  | V33: ="" ->  | W33: ="" ->  | X33: 0 | Y33: ="" ->  | Z33: 0 | AA33: ="" ->  | AB33: ="" ->  | AC33: ="" ->  | AD33: 0
A34: Microsoft Windows Server 2016 Standard Edition ROK 16 Core | B34: 1 | C34: TS2L5-WIN1 | D34: TS2L5-WIN1 | E34: 871148-B21 | F34: 556 | G34: Microsoft Windows Server 2016 1 User CAL | I34: TS2L5-CALUSER | J34: TS2L5-CALUSER | K34: 871175-A21 | L34: 22 | M34: Microsoft Windows Server 2016 1 Device CAL | O34: TS2L5-CALDEV | P34: TS2L5-CALDEV | Q34: 871176-A21 | R34: 22 | S34: Microsoft Windows Server 2016 Standard Edition Additional License 16 Core | T34: 4 | U34: TS2L5-WIN2 | V34: TS2L5-WIN2 | W34: 871157-A21 | X34: 526 | Y34: Microsoft Windows Server 2016 Standard Edition Additional License 2 Core | Z34: 4 | AA34: TS1L2-WIN2CORE | AB34: TS1L2-WIN2CORE | AC34: 871159-A21 | AD34: 56
A35: Microsoft Windows Server 2016 Datacenter Edition ROK 16 Core | B35: 1 | C35: TS2L5-WINDC1 | D35: TS2L5-WINDC1 | E35: 871153-B21 | F35: 2174 | G35: Microsoft Windows Server 2016 1 User CAL | I35: TS2L5-CALUSER | J35: TS2L5-CALUSER | K35: 871175-A21 | L35: 22 | M35: Microsoft Windows Server 2016 1 Device CAL | O35: TS2L5-CALDEV | P35: TS2L5-CALDEV | Q35: 871176-A21 | R35: 22 | S35: Microsoft Windows Server 2016 Datacenter Edition Additional License 16 Core | T35: 4 | U35: TS2L5-WINDC2 | V35: TS2L5-WINDC2 | W35: 871166-A21 | X35: 2105 | Y35: ="" ->  | Z35: 0 | AA35: ="" ->  | AB35: ="" ->  | AC35: ="" ->  | AD35: 0
A36: CentOS 7.0 | B36: 1 | C36: TS2L5-LINUX | D36: TS2L5-LINUX | F36: 50 | G36: None | H36: ="" ->  | I36: ="" ->  | J36: ="" ->  | K36: ="" ->  | L36: 0 | M36: None | N36: ="" ->  | O36: ="" ->  | P36: ="" ->  | Q36: ="" ->  | R36: 0 | S36: ="" ->  | T36: 0 | U36: ="" ->  | V36: ="" ->  | W36: ="" ->  | X36: 0 | Y36: ="" ->  | Z36: 0 | AA36: ="" ->  | AB36: ="" ->  | AC36: ="" ->  | AD36: 0
A41: Microsoft Windows Server 2016 Standard Edition ROK 16 Core | C41: TS2L5-WIN1 | D41: TS2L5-WIN1 | E41: 871148-B21 | F41: 551 | G41: Microsoft Windows Server 2016 1 User CAL | I41: TS2L5-CALUSER | J41: TS2L5-CALUSER | K41: 871175-A21 | L41: 22 | M41: Microsoft Windows Server 2016 1 Device CAL | O41: TS2L5-CALDEV | P41: TS2L5-CALDEV | Q41: 871176-A21 | R41: 22
A42: Microsoft Windows Server 2016 Standard Edition Additional License 16 Core | C42: TS2L5-WIN2 | D42: TS2L5-WIN2 | E42: 871157-A21 | F42: 551
A43: Microsoft Windows Server 2016 Standard Edition Additional License 2 Core | C43: TS2L5-WIN2CORE | D43: TS2L5-WIN2CORE | E43: 871159-A21 | F43: 54
A45: Microsoft Windows Server 2016 Datacenter Edition ROK 16 Core | C45: TS2L5-WINDC1 | D45: TS2L5-WINDC1 | E45: 871153-B21 | F45: 2159 | G45: Microsoft Windows Server 2016 1 User CAL | I45: TS2L5-CALUSER | J45: TS2L5-CALUSER | K45: 871175-A21 | L45: 22 | M45: Microsoft Windows Server 2016 1 Device CAL | O45: TS2L5-CALDEV | P45: TS2L5-CALDEV | Q45: 871176-A21 | R45: 22
A46: Microsoft Windows Server 2016 Datacenter Edition Additional License 16 Core | C46: TS2L5-WINDC2 | D46: TS2L5-WINDC2 | E46: 871166-A21 | F46: 2159
A48: CentOS 7.0 | C48: TS2L5-LINUX | D48: TS2L5-LINUX | F48: 49
A52: None | B52: ="" ->  | C52: ="" ->  | D52: ="" ->  | E52: ="" ->  | F52: 0
A53: VMware vSphere Standard 1 Processor 3yr Software | B53: 1 | C53: TS2L5-VMWSTD1P3Y | D53: TS2L5-VMWSTD1P3Y | E53: BD711A | F53: 1506
A54: VMware vSphere Enterprise Plus 1 Processor 3yr Software | B54: 1 | C54: TS2L5-VMWEP1P3Y | D54: TS2L5-VMWEP1P3Y | E54: BD715A | F54: 4734
A55: VMware vSphere Standard 1 Processor 5yr Software | B55: 1 | C55: TS2L5-VMWSTD1P5Y | D55: TS2L5-VMWSTD1P5Y | E55: BD512A | F55: 1933
A56: VMware vSphere Enterprise Plus 1 Processor 5yr Software | B56: 1 | C56: TS2L5-VMWEP1P5Y | D56: TS2L5-VMWEP1P5Y | E56: BD514A | F56: 5889
A57: None | B57: 0 | C57: ="" ->  | D57: ="" ->  | E57: ="" ->  | F57: 0
A58: VMware vSphere Essentials Plus Kit 6 Processor 3yr | B58: 1 | C58: TS2L5-VMWKIT6P3Y | D58: TS2L5-VMWKIT6P3Y | E58: F6M49A | F58: 5052
A59: VMware vSphere Essentials Plus Kit 6 Processor 5yr | B59: 1 | C59: TS2L5-VMWKIT6P5Y | D59: TS2L5-VMWKIT6P5Y | E59: F6M50A | F59: 6284
A60: None | B60: 0 | C60: ="" ->  | D60: ="" ->  | E60: ="" ->  | F60: 0
A61: VMw vCenter Server Std for vSph 3yr SW | B61: 1 | C61: TS2L5-VMWVCSTD3Y | D61: TS2L5-VMWVCSTD3Y | E61: P9U41A | F61: 8240
A62: VMw vCenter Server Std for vSph 5yr SW | B62: 1 | C62: TS2L5-VMWVCSTD5Y | D62: TS2L5-VMWVCSTD5Y | E62: P9U42A | F62: 10251
A64: None | B64: 0 | C64: ="" ->  | D64: ="" ->  | E64: ="" ->  | F64: 0
A65: VMware vSAN Standard OEM 1 Processor 3yr Software A20 | B65: 1 | C65: TS2L5-VSANSTD3Y | D65: TS2L5-VSANSTD3Y | E65: G4Y18AAE | F65: 3611
A66: VMware vSAN Advanced OEM 1 Processor 3yr Software A20 | B66: 1 | C66: TS2L5-VSANADV3Y | D66: TS2L5-VSANADV3Y | E66: P9H45AAE | F66: 5543
A68: None | B68: 0 | C68: ="" ->  | D68: ="" ->  | E68: ="" ->  | F68: 0
A69: HPE 32GB Dual microSD USB Flash Drive A20 | B69: 1 | C69: TS2L5-DUAL32GB | D69: TS2L5-DUAL32GB | F69: 306
A72: _SavePDFon
A73: _SavePDFoff

Sheet PCI (hidden)
A2: HDD Bay2 | C2: 0 | D2: ="" ->  | E2: ="" ->  | F2: ="" ->  | G2: 0
C3: 1 | D3: S2-872235-B21 | E3: 872235-B21 | F3: ="" ->  | G3: 230
A4: HDD Bay1 | C4: 0 | D4: ="" ->  | E4: ="" ->  | F4: 0 | G4: 0
C5: 1 | D5: TS2L5-SASBAY1 | E5: 872233-B21 ; 873444-B21 | F5: 1 | G5: 800
A7: Secondary Riser | C7: 0 | D7: ="" ->  | E7: ="" ->  | F7: ="" ->  | G7: 0
C8: 1 | D8: S2-870548-B21 | E8: 870548-B21 | F8: ="" ->  | G8: 109
A9: Secondary Riser (for GPU) | C9: 0 | D9: ="" ->  | E9: ="" ->  | F9: ="" ->  | G9: 0
C10: 1 | D10: TS2L5-GPURSRKIT | E10: 826704-B21 | F10: ="" ->  | G10: 87
A11: Tertiary riser | C11: 0 | D11: ="" ->  | E11: ="" ->  | F11: ="" ->  | G11: 0
C12: 1 | D12: S2-872253-B21 | E12: 872253-B21 | F12: ="" ->  | G12: 285
A13: 9-slot Sec Riser | C13: 0 | D13: ="" ->  | E13: ="" ->  | F13: ="" ->  | G13: 0
C14: 1 | D14: S2-9SlotRiser | E14: 872340 830272 | F14: ="" ->  | G14: 671 | L14: [TS2L5-536FLR] HPE FlexFabric 10Gb 4-port 536FLR-T Adapter
A15: Additional Card for PCIe Slot 1 | L15: [TS2L5-10OTSR] HPE 10Gb SFP+ SR Transceiver
A16: DL560 | L16: [TS2L5-10OTLR] HPE 10G SFP+ LR Transceiver
A17: None | H17: 0
A18: [TS2L5-LAN1] HPE Ethernet 1Gb 2-port 332T Adapter | B18: 1 | C18: TS2L5-LAN1 | D18: TS2L5-LAN1 | E18: 615732-B21 | F18: 33 | H18: 0 | L18: [TS2L5-GPURSRKIT] HPE DL Gen10 x16 x16 GPU Rsr Kit
A19: [TS2L5-LAN10] HPE Ethernet 10Gb 2-port 530SFP Adapter | B19: 1 | C19: TS2L5-LAN10 | D19: TS2L5-LAN10 | E19: 652503-B21 | F19: 344 | G19: HPE BLc 10G SFP+ SR Transceiver | H19: 2 | J19: 455883-B21 | L19: [TS2L5-P2000GPU] HPE NVIDIA Quadro P2000 GPU Module
A20: [TS2L5-CNA10] HPE CN1100R 2P Converged Network Adapter | B20: 1 | C20: TS2L5-CNA10 | D20: TS2L5-CNA10 | E20: QW990A | F20: 723 | G20: HPE BLc 10G SFP+ SR Transceiver | H20: 2 | J20: 455883-B21
A21: [TS2L5-FC16] HPE StoreFabric SN1100Q 16Gb Dual Port Fibre Channel HBA | B21: 1 | C21: TS2L5-FC16 | D21: TS2L5-FC16 | E21: P9D94A | F21: 356 | H21: 0
A22: ="" ->  | B22: ="" ->  | C22: ="" ->  | D22: ="" ->  | E22: ="" ->  | F22: ="" ->  | G22: ="" ->  | H22: ="" ->  | I22: ="" ->  | J22: ="" -> 
A23: :._.:.:*~*:._.:*~*:._.:*~*:._.: Componenti 20% .:*~*:._.:*~*:._.:*~*:._.:*~*:._.: | B23: ="" ->  | C23: ="" ->  | D23: ="" ->  | E23: ="" ->  | F23: ="" ->  | G23: ="" ->  | H23: ="" ->  | I23: ="" ->  | J23: ="" ->  | L23: [TS2L5-530T] HPE Ethernet 10Gb 2-port 530T Adapter
A24: [TS2L5-530T] HPE Ethernet 10Gb 2-port 530T Adapter | B24: 1 | C24: TS2L5-530T | D24: TS2H-530T | E24: 656596-B21 | I24: 298 | J24: ="" ->  | L24: [TS2L5-521T] HPE Ethernet 10Gb 2-port 521T Adapter
A25: [TS2L5-521T] HPE Ethernet 10Gb 2-port 521T Adapter | B25: 1 | C25: TS2L5-521T | D25: TS2H-521T | E25: 867707-B21 | I25: 298 | J25: ="" ->  | L25: [TS2L5-562SFP] HPE Ethernet 10Gb 2-port 562SFP+ Adapter
A26: [TS2L5-562SFP] HPE Ethernet 10Gb 2-port 562SFP+ Adapter | B26: 1 | C26: TS2L5-562SFP | D26: TS2H-562SFP | E26: 727055-B21 | I26: 380 | J26: ="" ->  | L26: [TS2L5-841QSFP28] HPE InfiniBand EDR 100Gb 1-port 841QSFP28 Adapter
A27: [TS2L5-841QSFP28] HPE InfiniBand EDR 100Gb 1-port 841QSFP28 Adapter | B27: 1 | C27: TS2L5-841QSFP28 | D27: TS2H-841QSFP28 | E27: 872725-B21 | I27: 2699 | J27: ="" ->  | L27: [TS2L5-OP101] HPE 100Gb 1-port OP101 QSFP28 x16 PCIe Gen3 with Intel Omni-Path Architecture Adapter
A28: [TS2L5-OP101] HPE 100Gb 1-port OP101 QSFP28 x16 PCIe Gen3 with Intel Omni-Path Architecture Adapter | B28: 1 | C28: TS2L5-OP101 | D28: TS2H-OP101 | E28: 829335-B21 | I28: 554 | J28: ="" ->  | L28: [TS2L5-547FLR] HPE InfiniBand FDR/Ethernet 40/50Gb 2-port 547FLR-QSFP Adapter
A29: [TS2L5-750NVMEWIHH] HPE 750GB PCIe x4 Lanes Write Intensive HHHL | B29: 1 | C29: TS2L5-750NVMEWIHH | D29: TS2H-750NVMEWIHH | E29: 878038-B21 | I29: 4795
A30: [TS2L5-1600NVMEMUHH] HPE 1.6TB NVMe x8 Lanes Mixed Use HHHL | B30: 1 | C30: TS2L5-1600NVMEMUHH | D30: TS2H-1600NVMEMUHH | E30: P10264-B21 | I30: 1571
A31: [TS2L5-3200NVMEMUHH] HPE 3.2TB NVMe x8 Lanes Mixed Use HHHL | B31: 1 | C31: TS2L5-3200NVMEMUHH | D31: TS2H-3200NVMEMUHH | E31: P10266-B21 | I31: 2849
A32: [TS2L5-6400NVMEMUHH] HPE 6.4TB NVMe x8 Lanes Mixed Use HHHL | B32: 1 | C32: TS2L5-6400NVMEMUHH | D32: TS2H-6400NVMEMUHH | E32: P10268-B21 | I32: 6518
A33: HPE DL5x0 Gen10 12Gb SAS Expander Card Kit with Cables | B33: 1 | C33: TS2L5-SASBAY1 | D33: TS2L5-SASBAY1 | E33: 873444-B21
A34: Additional Card for PCIe Slot 2/3
A35: DL560
A36: None | H36: 0
A37: [TS2L5-LAN1] HPE Ethernet 1Gb 2-port 332T Adapter | B37: 1 | C37: TS2L5-LAN1 | D37: TS2L5-LAN1 | E37: 615732-B21 | F37: 33 | H37: 0
A38: [TS2L5-LAN10] HPE Ethernet 10Gb 2-port 530SFP Adapter | B38: 1 | C38: TS2L5-LAN10 | D38: TS2L5-LAN10 | E38: 652503-B21 | F38: 344 | G38: HPE BLc 10G SFP+ SR Transceiver | H38: 2 | J38: 455883-B21
A39: [TS2L5-CNA10] HPE CN1100R 2P Converged Network Adapter | B39: 1 | C39: TS2L5-CNA10 | D39: TS2L5-CNA10 | E39: QW990A | F39: 723 | G39: HPE BLc 10G SFP+ SR Transceiver | H39: 2 | J39: 455883-B21
A40: [TS2L5-FC16] HPE StoreFabric SN1100Q 16Gb Dual Port Fibre Channel HBA | B40: 1 | C40: TS2L5-FC16 | D40: TS2L5-FC16 | E40: P9D94A | F40: 356 | H40: 0
A41: ="" ->  | B41: ="" ->  | C41: ="" ->  | D41: ="" ->  | E41: ="" ->  | F41: ="" ->  | G41: ="" ->  | H41: ="" ->  | I41: ="" ->  | J41: ="" -> 
A42: :._.:.:*~*:._.:*~*:._.:*~*:._.: Componenti 20% .:*~*:._.:*~*:._.:*~*:._.:*~*:._.: | B42: ="" ->  | C42: ="" ->  | D42: ="" ->  | E42: ="" ->  | F42: ="" ->  | G42: ="" ->  | H42: ="" ->  | I42: ="" ->  | J42: ="" -> 
A43: [TS2L5-530T] HPE Ethernet 10Gb 2-port 530T Adapter | B43: 1 | C43: TS2L5-530T | D43: TS2H-530T | E43: 656596-B21 | I43: 298 | J43: ="" -> 
A44: [TS2L5-521T] HPE Ethernet 10Gb 2-port 521T Adapter | B44: 1 | C44: TS2L5-521T | D44: TS2H-521T | E44: 867707-B21 | I44: 298 | J44: ="" -> 
A45: [TS2L5-562SFP] HPE Ethernet 10Gb 2-port 562SFP+ Adapter | B45: 1 | C45: TS2L5-562SFP | D45: TS2H-562SFP | E45: 727055-B21 | I45: 380 | J45: ="" -> 
A46: [TS2L5-841QSFP28] HPE InfiniBand EDR 100Gb 1-port 841QSFP28 Adapter | B46: 1 | C46: TS2L5-841QSFP28 | D46: TS2H-841QSFP28 | E46: 872725-B21 | I46: 2699 | J46: ="" -> 
A47: [TS2L5-OP101] HPE 100Gb 1-port OP101 QSFP28 x16 PCIe Gen3 with Intel Omni-Path Architecture Adapter | B47: 1 | C47: TS2L5-OP101 | D47: TS2H-OP101 | E47: 829335-B21 | I47: 554 | J47: ="" -> 
A48: [TS2L5-750NVMEWIHH] HPE 750GB PCIe x4 Lanes Write Intensive HHHL | B48: 1 | C48: TS2L5-750NVMEWIHH | D48: TS2H-750NVMEWIHH | E48: 878038-B21 | I48: 4795
A49: [TS2L5-1600NVMEMUHH] HPE 1.6TB NVMe x8 Lanes Mixed Use HHHL | B49: 1 | C49: TS2L5-1600NVMEMUHH | D49: TS2H-1600NVMEMUHH | E49: P10264-B21 | I49: 1571
A50: [TS2L5-3200NVMEMUHH] HPE 3.2TB NVMe x8 Lanes Mixed Use HHHL | B50: 1 | C50: TS2L5-3200NVMEMUHH | D50: TS2H-3200NVMEMUHH | E50: P10266-B21 | I50: 2849
A51: [TS2L5-6400NVMEMUHH] HPE 6.4TB NVMe x8 Lanes Mixed Use HHHL | B51: 1 | C51: TS2L5-6400NVMEMUHH | D51: TS2H-6400NVMEMUHH | E51: P10268-B21 | I51: 6518
A53: Additional Card for PCIe Slot 3
A54: DL560
A55: None | H55: 0
A56: [TS2L5-LAN1] HPE Ethernet 1Gb 2-port 332T Adapter | B56: 1 | C56: TS2L5-LAN1 | D56: TS2L5-LAN1 | E56: 615732-B21 | F56: 33 | H56: 0
A57: [TS2L5-LAN10] HPE Ethernet 10Gb 2-port 530SFP Adapter | B57: 1 | C57: TS2L5-LAN10 | D57: TS2L5-LAN10 | E57: 652503-B21 | F57: 344 | G57: HPE BLc 10G SFP+ SR Transceiver | H57: 2 | J57: 455883-B21
A58: [TS2L5-CNA10] HPE CN1100R 2P Converged Network Adapter | B58: 1 | C58: TS2L5-CNA10 | D58: TS2L5-CNA10 | E58: QW990A | F58: 723 | G58: HPE BLc 10G SFP+ SR Transceiver | H58: 2 | J58: 455883-B21
A59: [TS2L5-FC16] HPE StoreFabric SN1100Q 16Gb Dual Port Fibre Channel HBA | B59: 1 | C59: TS2L5-FC16 | D59: TS2L5-FC16 | E59: P9D94A | F59: 356 | H59: 0
A60: ="" ->  | B60: ="" ->  | C60: ="" ->  | D60: ="" ->  | E60: ="" ->  | F60: ="" ->  | G60: ="" ->  | H60: ="" ->  | I60: ="" ->  | J60: ="" -> 
A61: :._.:.:*~*:._.:*~*:._.:*~*:._.: Componenti 20% .:*~*:._.:*~*:._.:*~*:._.:*~*:._.: | B61: ="" ->  | C61: ="" ->  | D61: ="" ->  | E61: ="" ->  | F61: ="" ->  | G61: ="" ->  | H61: ="" ->  | I61: ="" ->  | J61: ="" -> 
A62: [TS2L5-E208IP] HPE Smart Array E208i-p SR Gen10 (8 Internal Lanes/No Cache) 12G SAS PCIe Plug-in Controller | B62: 1 | C62: TS2L5-E208IP | D62: TS2H-E208IP | E62: 804394-B21 | I62: 180
A63: [TS2L5-530T] HPE Ethernet 10Gb 2-port 530T Adapter | B63: 1 | C63: TS2L5-530T | D63: TS2H-530T | E63: 656596-B21 | I63: 298 | J63: ="" -> 
A64: [TS2L5-521T] HPE Ethernet 10Gb 2-port 521T Adapter | B64: 1 | C64: TS2L5-521T | D64: TS2H-521T | E64: 867707-B21 | I64: 298 | J64: ="" -> 
A65: [TS2L5-562SFP] HPE Ethernet 10Gb 2-port 562SFP+ Adapter | B65: 1 | C65: TS2L5-562SFP | D65: TS2H-562SFP | E65: 727055-B21 | I65: 380 | J65: ="" -> 
A66: [TS2L5-841QSFP28] HPE InfiniBand EDR 100Gb 1-port 841QSFP28 Adapter | B66: 1 | C66: TS2L5-841QSFP28 | D66: TS2H-841QSFP28 | E66: 872725-B21 | I66: 2699 | J66: ="" -> 
A67: [TS2L5-OP101] HPE 100Gb 1-port OP101 QSFP28 x16 PCIe Gen3 with Intel Omni-Path Architecture Adapter | B67: 1 | C67: TS2L5-OP101 | D67: TS2H-OP101 | E67: 829335-B21 | I67: 554 | J67: ="" -> 
A68: [TS2L5-750NVMEWIHH] HPE 750GB PCIe x4 Lanes Write Intensive HHHL | B68: 1 | C68: TS2L5-750NVMEWIHH | D68: TS2H-750NVMEWIHH | E68: 878038-B21 | I68: 4795
A69: [TS2L5-1600NVMEMUHH] HPE 1.6TB NVMe x8 Lanes Mixed Use HHHL | B69: 1 | C69: TS2L5-1600NVMEMUHH | D69: TS2H-1600NVMEMUHH | E69: P10264-B21 | I69: 1571
A70: [TS2L5-3200NVMEMUHH] HPE 3.2TB NVMe x8 Lanes Mixed Use HHHL | B70: 1 | C70: TS2L5-3200NVMEMUHH | D70: TS2H-3200NVMEMUHH | E70: P10266-B21 | I70: 2849
A71: [TS2L5-6400NVMEMUHH] HPE 6.4TB NVMe x8 Lanes Mixed Use HHHL | B71: 1 | C71: TS2L5-6400NVMEMUHH | D71: TS2H-6400NVMEMUHH | E71: P10268-B21 | I71: 6518
A73: Additional Card for PCIe Slot 4/5/6
A74: DL560
A75: None | H75: 0
A76: :._.:.:*~*:._.:*~*:._.:*~*:._.: Componenti 20% .:*~*:._.:*~*:._.:*~*:._.:*~*:._.: | B76: ="" ->  | C76: ="" ->  | D76: ="" ->  | E76: ="" ->  | F76: ="" ->  | G76: ="" ->  | H76: ="" ->  | I76: ="" ->  | J76: ="" -> 
A77: [TS2L5-530T] HPE Ethernet 10Gb 2-port 530T Adapter | B77: 1 | C77: TS2L5-530T | D77: TS2L5-530T | E77: 656596-B21 | I77: 298
A78: [TS2L5-521T] HPE Ethernet 10Gb 2-port 521T Adapter | B78: 1 | C78: TS2L5-521T | D78: TS2L5-521T | E78: 867707-B21 | I78: 298
A79: [TS2L5-536FLR] HPE FlexFabric 10Gb 4-port 536FLR-T Adapter | B79: 1 | C79: TS2L5-536FLR | D79: TS2L5-536FLR | E79: 764302-B21 | I79: 610
A80: [TS2L5-562SFP] HPE Ethernet 10Gb 2-port 562SFP+ Adapter | B80: 1 | C80: TS2L5-562SFP | D80: TS2L5-562SFP | E80: 727055-B21 | I80: 380
A81: [TS2L5-841QSFP28] HPE InfiniBand EDR 100Gb 1-port 841QSFP28 Adapter | B81: 1 | C81: TS2L5-841QSFP28 | D81: TS2L5-841QSFP28 | E81: 872725-B21 | I81: 481
A83: Additional Card for PCIe Slot 5
A84: DL560
A85: None | H85: 0
A86: [TS2L5-LAN1] HPE Ethernet 1Gb 2-port 332T Adapter | B86: 1 | C86: TS2L5-LAN1 | D86: TS2L5-LAN1 | E86: 615732-B21 | F86: 33 | H86: 0
A87: [TS2L5-LAN10] HPE Ethernet 10Gb 2-port 530SFP Adapter | B87: 1 | C87: TS2L5-LAN10 | D87: TS2L5-LAN10 | E87: 652503-B21 | F87: 344 | G87: HPE BLc 10G SFP+ SR Transceiver | H87: 2 | J87: 455883-B21
A88: [TS2L5-CNA10] HPE CN1100R 2P Converged Network Adapter | B88: 1 | C88: TS2L5-CNA10 | D88: TS2L5-CNA10 | E88: QW990A | F88: 723 | G88: HPE BLc 10G SFP+ SR Transceiver | H88: 2 | J88: 455883-B21
A89: [TS2L5-FC16] HPE StoreFabric SN1100Q 16Gb Dual Port Fibre Channel HBA | B89: 1 | C89: TS2L5-FC16 | D89: TS2L5-FC16 | E89: P9D94A | F89: 356 | H89: 0
A90: ="" ->  | B90: ="" ->  | C90: ="" ->  | D90: ="" ->  | E90: ="" ->  | F90: ="" ->  | G90: ="" ->  | H90: ="" ->  | I90: ="" ->  | J90: ="" -> 
A91: :._.:.:*~*:._.:*~*:._.:*~*:._.: Componenti 20% .:*~*:._.:*~*:._.:*~*:._.:*~*:._.: | B91: ="" ->  | C91: ="" ->  | D91: ="" ->  | E91: ="" ->  | F91: ="" ->  | G91: ="" ->  | H91: ="" ->  | I91: ="" ->  | J91: ="" -> 
A92: [TS2L5-P2000GPU] HPE NVIDIA Quadro P2000 GPU Module | B92: 1 | C92: TS2L5-P2000GPU | D92: TS2H-P2000GPU | E92: Q0V77A | I92: 690
A93: [TS2L5-530T] HPE Ethernet 10Gb 2-port 530T Adapter | B93: 1 | C93: TS2L5-530T | D93: TS2H-530T | E93: 656596-B21 | I93: 298 | J93: ="" -> 
A94: [TS2L5-521T] HPE Ethernet 10Gb 2-port 521T Adapter | B94: 1 | C94: TS2L5-521T | D94: TS2H-521T | E94: 867707-B21 | I94: 298 | J94: ="" -> 
A95: [TS2L5-562SFP] HPE Ethernet 10Gb 2-port 562SFP+ Adapter | B95: 1 | C95: TS2L5-562SFP | D95: TS2H-562SFP | E95: 727055-B21 | I95: 380 | J95: ="" -> 
A96: [TS2L5-841QSFP28] HPE InfiniBand EDR 100Gb 1-port 841QSFP28 Adapter | B96: 1 | C96: TS2L5-841QSFP28 | D96: TS2H-841QSFP28 | E96: 872725-B21 | I96: 2699 | J96: ="" -> 
A97: [TS2L5-OP101] HPE 100Gb 1-port OP101 QSFP28 x16 PCIe Gen3 with Intel Omni-Path Architecture Adapter | B97: 1 | C97: TS2L5-OP101 | D97: TS2H-OP101 | E97: 829335-B21 | I97: 554 | J97: ="" -> 
A98: [TS2L5-750NVMEWIHH] HPE 750GB PCIe x4 Lanes Write Intensive HHHL | B98: 1 | C98: TS2L5-750NVMEWIHH | D98: TS2H-750NVMEWIHH | E98: 878038-B21 | I98: 4795
A99: [TS2L5-1600NVMEMUHH] HPE 1.6TB NVMe x8 Lanes Mixed Use HHHL | B99: 1 | C99: TS2L5-1600NVMEMUHH | D99: TS2H-1600NVMEMUHH | E99: P10264-B21 | I99: 1571
A100: [TS2L5-3200NVMEMUHH] HPE 3.2TB NVMe x8 Lanes Mixed Use HHHL | B100: 1 | C100: TS2L5-3200NVMEMUHH | D100: TS2H-3200NVMEMUHH | E100: P10266-B21 | I100: 2849
A101: [TS2L5-6400NVMEMUHH] HPE 6.4TB NVMe x8 Lanes Mixed Use HHHL | B101: 1 | C101: TS2L5-6400NVMEMUHH | D101: TS2H-6400NVMEMUHH | E101: P10268-B21 | I101: 6518
A103: Additional Card for PCIe Slot 6
A104: DL560
A105: None | H105: 0
A106: [TS2L5-LAN1] HPE Ethernet 1Gb 2-port 332T Adapter | B106: 1 | C106: TS2L5-LAN1 | D106: TS2L5-LAN1 | E106: 615732-B21 | F106: 33 | H106: 0
A107: [TS2L5-LAN10] HPE Ethernet 10Gb 2-port 530SFP Adapter | B107: 1 | C107: TS2L5-LAN10 | D107: TS2L5-LAN10 | E107: 652503-B21 | F107: 344 | G107: HPE BLc 10G SFP+ SR Transceiver | H107: 2 | J107: 455883-B21
A108: [TS2L5-CNA10] HPE CN1100R 2P Converged Network Adapter | B108: 1 | C108: TS2L5-CNA10 | D108: TS2L5-CNA10 | E108: QW990A | F108: 723 | G108: HPE BLc 10G SFP+ SR Transceiver | H108: 2 | J108: 455883-B21
A109: [TS2L5-FC16] HPE StoreFabric SN1100Q 16Gb Dual Port Fibre Channel HBA | B109: 1 | C109: TS2L5-FC16 | D109: TS2L5-FC16 | E109: P9D94A | F109: 356 | H109: 0
A110: :._.:.:*~*:._.:*~*:._.:*~*:._.: Componenti 20% .:*~*:._.:*~*:._.:*~*:._.:*~*:._.: | B110: ="" ->  | C110: ="" ->  | D110: ="" ->  | E110: ="" ->  | F110: ="" ->  | G110: ="" ->  | H110: ="" ->  | I110: ="" ->  | J110: ="" -> 
A111: [TS2L5-530T] HPE Ethernet 10Gb 2-port 530T Adapter | B111: 1 | C111: TS2L5-530T | D111: TS2L5-530T | E111: 656596-B21 | I111: 298
A112: [TS2L5-521T] HPE Ethernet 10Gb 2-port 521T Adapter | B112: 1 | C112: TS2L5-521T | D112: TS2L5-521T | E112: 867707-B21 | I112: 298
A113: [TS2L5-536FLR] HPE FlexFabric 10Gb 4-port 536FLR-T Adapter | B113: 1 | C113: TS2L5-536FLR | D113: TS2L5-536FLR | E113: 764302-B21 | I113: 610
A114: [TS2L5-562SFP] HPE Ethernet 10Gb 2-port 562SFP+ Adapter | B114: 1 | C114: TS2L5-562SFP | D114: TS2L5-562SFP | E114: 727055-B21 | I114: 380
A115: [TS2L5-841QSFP28] HPE InfiniBand EDR 100Gb 1-port 841QSFP28 Adapter | B115: 1 | C115: TS2L5-841QSFP28 | D115: TS2L5-841QSFP28 | E115: 872725-B21 | I115: 481
A117: Additional Card for PCIe Slot 7/8
A118: DL560
A119: None | H119: 0
A120: [TS2L5-LAN1] HPE Ethernet 1Gb 2-port 332T Adapter | B120: 1 | C120: TS2L5-LAN1 | D120: TS2L5-LAN1 | E120: 615732-B21 | F120: 33 | H120: 0
A121: [TS2L5-LAN10] HPE Ethernet 10Gb 2-port 530SFP Adapter | B121: 1 | C121: TS2L5-LAN10 | D121: TS2L5-LAN10 | E121: 652503-B21 | F121: 344 | G121: HPE BLc 10G SFP+ SR Transceiver | H121: 2 | J121: 455883-B21
A122: [TS2L5-CNA10] HPE CN1100R 2P Converged Network Adapter | B122: 1 | C122: TS2L5-CNA10 | D122: TS2L5-CNA10 | E122: QW990A | F122: 723 | G122: HPE BLc 10G SFP+ SR Transceiver | H122: 2 | J122: 455883-B21
A123: [TS2L5-FC16] HPE StoreFabric SN1100Q 16Gb Dual Port Fibre Channel HBA | B123: 1 | C123: TS2L5-FC16 | D123: TS2L5-FC16 | E123: P9D94A | F123: 356 | H123: 0
A124: :._.:.:*~*:._.:*~*:._.:*~*:._.: Componenti 20% .:*~*:._.:*~*:._.:*~*:._.:*~*:._.: | B124: ="" ->  | C124: ="" ->  | D124: ="" ->  | E124: ="" ->  | F124: ="" ->  | G124: ="" ->  | H124: ="" ->  | I124: ="" ->  | J124: ="" -> 
A125: [TS2L5-530T] HPE Ethernet 10Gb 2-port 530T Adapter | B125: 1 | C125: TS2L5-530T | D125: TS2L5-530T | E125: 656596-B21 | I125: 298
A126: [TS2L5-521T] HPE Ethernet 10Gb 2-port 521T Adapter | B126: 1 | C126: TS2L5-521T | D126: TS2L5-521T | E126: 867707-B21 | I126: 298
A127: [TS2L5-536FLR] HPE FlexFabric 10Gb 4-port 536FLR-T Adapter | B127: 1 | C127: TS2L5-536FLR | D127: TS2L5-536FLR | E127: 764302-B21 | I127: 610
A128: [TS2L5-562SFP] HPE Ethernet 10Gb 2-port 562SFP+ Adapter | B128: 1 | C128: TS2L5-562SFP | D128: TS2L5-562SFP | E128: 727055-B21 | I128: 380
A129: [TS2L5-841QSFP28] HPE InfiniBand EDR 100Gb 1-port 841QSFP28 Adapter | B129: 1 | C129: TS2L5-841QSFP28 | D129: TS2L5-841QSFP28 | E129: 872725-B21 | I129: 481
A131: NVME Bay
C132: 0 | D132: ="" ->  | E132: ="" ->  | F132: 0 | G132: 0
C133: 1 | D133: TS2L5-8NVME | E133: 872225-B21 ; 874633-B21 | F133: 2 | G133: 1036
C135: 0 | D135: ="" ->  | E135: ="" ->  | F135: ="" ->  | G135: 0
C136: 1 | D136: TS2L5-M2240 | E136: 875488-B21 | F136: ="" ->  | G136: 175
A141: HPE Smart Array P816i-a SR Gen10 | B141: 1 | C141: ="" ->  | D141: ="" ->  | E141: 869083-B21 | F141: ="" ->  | G141: HPE 96W Smart Storage Battery with 145mm Cable Kit | H141: 1 | I141: ="" ->  | J141: P01366-B21
A142: HPE Smart Array E208i-a SR Gen10 (8 Internal Lanes/No Cache) 12G SAS Modular LH Controller | B142: 1 | C142: TS2L5-E208IA | D142: TS2H-E208IA | E142: 869079-B21 | F142: 180 | G142: ="" ->  | H142: ="" ->  | I142: ="" ->  | J142: ="" -> 
A145: HPE Ethernet 1Gb 4-port 331FLR Adapter | B145: 1 | C145: ="" ->  | D145: 629135-B22 | E145: ="" ->  | F145: ="" ->  | G145: ="" ->  | H145: ="" ->  | I145: 0 | J145: ="" -> 
A146: [TS2L5-547FLR] HPE InfiniBand FDR/Ethernet 40/50Gb 2-port 547FLR-QSFP Adapter | B146: 1 | C146: TS2L5-547FLR | D146: TS2H-547FLR | E146: 879482-B21 | I146: 461 | J146: ="" -> 
A303: Additional Card for PCIe Slot 9 OCCUPATO
A304: DL580
A305: None | H305: 0
A306: HPE Ethernet 1Gb 2P 332T Adptr | B306: 1 | C306: 10L2-LAN1GB | D306: S10L1-DL560-LAN1 | E306: 615732-B21 | F306: 35 | H306: 0
A307: HPE Ethernet 10Gb 2P 530SFP+ Adptr | B307: 1 | C307: 10L2-LAN10GB | D307: S10L1-DL560-LAN10 | E307: 652503-B21 | F307: 716 | G307: HPE BLc 10G SFP+ SR Transceiver | H307: 2 | J307: 455883-B21
A308: HPE StoreFabric CN1200E 10Gb CNA | B308: 1 | C308: 10L2-CNA10 | D308: S10L1-DL560-CNA10 | E308: E7Y06A | F308: 778 | G308: HPE BLc 10G SFP+ SR Transceiver | H308: 2 | J308: 455883-B21
A309: HPE 82Q 8Gb Dual Port PCI-e FC HBA | B309: 1 | C309: 10L2-FC | D309: S10L1-DL560-FC | E309: AJ764A | F309: 889 | H309: 0
A311: Additional Card for PCIe Slot 8 | L311: 1671 | M311: =L311/100 -> 16.71 | N311: =M311*25 -> 417.75 | O311: =N311+L311 -> 2088.75 | P311: 2100
A312: DL580
A313: None | H313: 0
A314: HPE Ethernet 1Gb 2-port 332T Adapter | B314: 1 | C314: TS2L5-1GB | D314: TS2L5-1GB | E314: 615732-B21 | F314: 29 | H314: 0
A315: HPE Ethernet 10Gb 2-port 530SFP Adapter | B315: 1 | C315: TS2L5-10GB | D315: TS2L5-10GB | E315: 652503-B21 | F315: 259 | G315: HPE BLc 10G SFP+ SR Transceiver | H315: 2 | J315: 455883-B21
A316: HPE StoreFabric CN1200E 10Gb Converged Network Adapter | B316: 1 | C316: TS2L5-CNA | D316: TS2L5-CNA | E316: E7Y06A | F316: 720 | G316: HPE BLc 10G SFP+ SR Transceiver | H316: 2 | J316: 455883-B21
A317: HPE Ethernet 10Gb 2P 530T Adapter | B317: 1 | C317: TS1-656596 | D317: TS1-656596 | E317: 656596-B21 | I317: 298
A318: HPE Ethernet 10Gb 2-port 521T Adapter | B318: 1 | C318: TS1-867707 | D318: TS1-867707 | E318: 867707-B21 | I318: 298
A319: HPE 82Q 8Gb 2-port PCIe Fibre Channel Host Bus Adapter | B319: 1 | C319: TS2L5-FC | D319: TS2L5-FC | E319: AJ764A | F319: 356 | H319: 0
A320: HPE StoreFabric SN1100Q 16Gb Dual Port Fibre Channel Host Bus Adapter | B320: 1 | C320: S2-P9D94A | D320: S2-P9D94A | E320: P9D94A | F320: 0 | H320: 0 | I320: 584
A322: Additional Card for PCIe Slot 7
A323: DL580
A324: None | H324: 0
A325: HPE Ethernet 1Gb 2-port 332T Adapter | B325: 1 | C325: TS2L5-1GB | D325: TS2L5-1GB-ALT | E325: 615732-B21 | F325: 29 | H325: 0
A326: HPE Ethernet 10Gb 2-port 530SFP Adapter | B326: 1 | C326: TS2L5-10GB | D326: TS2L5-10GB-ALT | E326: 652503-B21 | F326: 259 | G326: HPE BLc 10G SFP+ SR Transceiver | H326: 2 | J326: 455883-B21
A327: HPE StoreFabric CN1200E 10Gb Converged Network Adapter | B327: 1 | C327: TS2L5-CNA | D327: TS2L5-CNA-ALT | E327: E7Y06A | F327: 720 | G327: HPE BLc 10G SFP+ SR Transceiver | H327: 2 | J327: 455883-B21
A328: HPE Ethernet 10Gb 2P 530T Adapter | B328: 1 | C328: TS1-656596 | D328: TS1-656596 | E328: 656596-B21 | I328: 298
A329: HPE Ethernet 10Gb 2-port 521T Adapter | B329: 1 | C329: TS1-867707 | D329: TS1-867707 | E329: 867707-B21 | I329: 298
A330: HPE 82Q 8Gb 2-port PCIe Fibre Channel Host Bus Adapter | B330: 1 | C330: TS2L5-FC | D330: TS2L5-FC | E330: AJ764A | F330: 356 | H330: 0
A331: HPE StoreFabric SN1100Q 16Gb Dual Port Fibre Channel Host Bus Adapter | B331: 1 | C331: S2-P9D94A | D331: S2-P9D94A-ALT | E331: P9D94A | F331: 0 | H331: 0 | I331: 584
A333: Additional Card for PCIe Slot 6
A334: DL580 Slot 48HDD
A335: None | H335: 0
A336: HPE Ethernet 1Gb 2-port 332T Adapter | B336: 1 | C336: TS2L5-1GB | D336: TS2L5-1GB-ALT | E336: 615732-B21 | F336: 29 | H336: 0
A337: HPE DL580 Gen10 12G 24-port SAS Expander | B337: 1 | E337: 881101-B21
A338: HPE Smart Array P408i-p SR Gen10 Ctrlr | B338: 1 | E338: 830824-B21
A339: HPE Ethernet 10Gb 2-port 530SFP Adapter | B339: 1 | C339: TS2L5-10GB | D339: TS2L5-10GB-ALT | E339: 652503-B21 | F339: 259 | G339: HPE BLc 10G SFP+ SR Transceiver | H339: 2 | J339: 455883-B21
A340: HPE StoreFabric CN1200E 10Gb Converged Network Adapter | B340: 1 | C340: TS2L5-CNA | D340: TS2L5-CNA-ALT | E340: E7Y06A | F340: 720 | G340: HPE BLc 10G SFP+ SR Transceiver | H340: 2 | J340: 455883-B21
A341: HPE Ethernet 10Gb 2P 530T Adapter | B341: 1 | C341: TS1-656596 | D341: TS1-656596 | E341: 656596-B21 | I341: 298
A342: HPE Ethernet 10Gb 2-port 521T Adapter | B342: 1 | C342: TS1-867707 | D342: TS1-867707 | E342: 867707-B21 | I342: 298
A343: HPE 82Q 8Gb 2-port PCIe Fibre Channel Host Bus Adapter | B343: 1 | C343: TS2L5-FC | D343: TS2L5-FC | E343: AJ764A | F343: 356 | H343: 0
A344: HPE StoreFabric SN1100Q 16Gb Dual Port Fibre Channel Host Bus Adapter | B344: 1 | C344: S2-P9D94A | D344: S2-P9D94A-ALT | E344: P9D94A | F344: 0 | H344: 0 | I344: 584
A346: Additional Card for PCIe Slot 5
A347: DL580
A348: None | H348: 0
A349: HPE Ethernet 1Gb 2-port 332T Adapter | B349: 1 | C349: TS2L5-1GB | D349: TS2L5-1GB | E349: 615732-B21 | F349: 29 | H349: 0
A350: HPE Ethernet 10Gb 2-port 530SFP Adapter | B350: 1 | C350: TS2L5-10GB | D350: TS2L5-10GB | E350: 652503-B21 | F350: 259 | G350: HPE BLc 10G SFP+ SR Transceiver | H350: 2 | J350: 455883-B21
A351: HPE StoreFabric CN1200E 10Gb Converged Network Adapter | B351: 1 | C351: TS2L5-CNA | D351: TS2L5-CNA | E351: E7Y06A | F351: 720 | G351: HPE BLc 10G SFP+ SR Transceiver | H351: 2 | J351: 455883-B21
A352: HPE Ethernet 10Gb 2P 530T Adapter | B352: 1 | C352: TS1-656596 | D352: TS1-656596 | E352: 656596-B21 | I352: 298
A353: HPE Ethernet 10Gb 2-port 521T Adapter | B353: 1 | C353: TS1-867707 | D353: TS1-867707 | E353: 867707-B21 | I353: 298
A354: HPE 82Q 8Gb 2-port PCIe Fibre Channel Host Bus Adapter | B354: 1 | C354: TS2L5-FC | D354: TS2L5-FC | E354: AJ764A | F354: 356 | H354: 0
A355: HPE StoreFabric SN1100Q 16Gb Dual Port Fibre Channel Host Bus Adapter | B355: 1 | C355: S2-P9D94A | D355: S2-P9D94A | E355: P9D94A | F355: 0 | H355: 0 | I355: 584
A357: Additional Card for PCIe Slot 4
A358: DL580
A359: None | H359: 0
A360: HPE Ethernet 1Gb 2-port 332T Adapter | B360: 1 | C360: TS2L5-1GB | D360: TS2L5-1GB | E360: 615732-B21 | F360: 29 | H360: 0
A361: HPE Ethernet 10Gb 2-port 530SFP Adapter | B361: 1 | C361: TS2L5-10GB | D361: TS2L5-10GB | E361: 652503-B21 | F361: 259 | G361: HPE BLc 10G SFP+ SR Transceiver | H361: 2 | J361: 455883-B21
A362: HPE StoreFabric CN1200E 10Gb Converged Network Adapter | B362: 1 | C362: TS2L5-CNA | D362: TS2L5-CNA | E362: E7Y06A | F362: 720 | G362: HPE BLc 10G SFP+ SR Transceiver | H362: 2 | J362: 455883-B21
A363: HPE Ethernet 10Gb 2P 530T Adapter | B363: 1 | C363: TS1-656596 | D363: TS1-656596 | E363: 656596-B21 | I363: 298
A364: HPE Ethernet 10Gb 2-port 521T Adapter | B364: 1 | C364: TS1-867707 | D364: TS1-867707 | E364: 867707-B21 | I364: 298
A365: HPE 82Q 8Gb 2-port PCIe Fibre Channel Host Bus Adapter | B365: 1 | C365: TS2L5-FC | D365: TS2L5-FC | E365: AJ764A | F365: 356 | H365: 0
A366: HPE StoreFabric SN1100Q 16Gb Dual Port Fibre Channel Host Bus Adapter | B366: 1 | C366: S2-P9D94A | D366: S2-P9D94A | E366: P9D94A | F366: 0 | H366: 0 | I366: 584
A367: NVIDIA Tesla V100 PCIe 16GB Module | B367: 1 | C367: TS1-Q2N68A | D367: TS1-Q2N68A | E367: Q2N68A | I367: 10583
A368: NVIDIA Tesla P40 24GB Module | B368: 1 | C368: TS1-Q0V80A | D368: TS1-Q0V80A | E368: Q0V80A | I368: 7552
A369: NVIDIA Quadro P6000 GPU Module | B369: 1 | C369: TS1-Q0V76A | D369: TS1-Q0V76A | E369: Q0V76A | F369: 0 | H369: 0 | I369: 5310
A371: Additional Card for PCIe Slot 3
A372: DL580
A373: None | H373: 0
A374: HPE Ethernet 1Gb 2-port 332T Adapter | B374: 1 | C374: TS2L5-1GB | D374: TS2L5-1GB-ALT | E374: 615732-B21 | F374: 29 | H374: 0
A375: HPE Ethernet 10Gb 2-port 530SFP Adapter | B375: 1 | C375: TS2L5-10GB | D375: TS2L5-10GB-ALT | E375: 652503-B21 | F375: 259 | G375: HPE BLc 10G SFP+ SR Transceiver | H375: 2 | J375: 455883-B21
A376: HPE StoreFabric CN1200E 10Gb Converged Network Adapter | B376: 1 | C376: TS2L5-CNA | D376: TS2L5-CNA-ALT | E376: E7Y06A | F376: 720 | G376: HPE BLc 10G SFP+ SR Transceiver | H376: 2 | J376: 455883-B21
A377: HPE Ethernet 10Gb 2P 530T Adapter | B377: 1 | C377: TS1-656596 | D377: TS1-656596 | E377: 656596-B21 | I377: 298
... 93 more rows

Sheet Processor (hidden)
A1: Additional Processor
A2: Server DL560 | C2: CPU-A
A3: No Additional Processor | B3: 0 | C3: ="" ->  | E3: ="" ->  | F3: ="" ->  | G3: ="" ->  | H3: ="" -> 
A4: HPE DL560 Gen10 Intel Xeon-Gold 5220 (2.2GHz/18-core/125W) Processor Kit | B4: 2 | C4: TS2L5-CPU-U | D4: TS2L5-CPU-U | E4: P02983-B21 | F4: HPE DL5x0 Gen10 CPU Version 2 Mezzanine Board Kit | G4: 1 | H4: P07991-B21 | L4: 3289
A6: Server DL580 | C6: CPU-B
A7: No Additional Processor | B7: 0 | C7: ="" ->  | E7: ="" ->  | F7: ="" ->  | G7: ="" ->  | H7: ="" ->  | L7: ="" -> 
A8: HPE DL580 Gen10 Intel® Xeon-Gold 5118 (2.3GHz/12-core/105W) FIO Processor Kit | B8: 2 | C8: TS1L2-CPU-ALT-U | D8: TS1L2-CPU-ALT-U | E8: 878126-L21 | F8: ProLiant HPE DL5x0 Gen10 CPU Mezzanine Board Kit | G8: 1 | H8: 872222-B21 | L8: 2584
A10: Server DL580 Prestazionale
A11: No Additional Processor | B11: 0 | C11: ="" ->  | F11: ="" ->  | G11: ="" ->  | H11: ="" ->  | L11: ="" -> 
A12: HPE DL580 Gen10 Intel® Xeon-Gold 6140M (2.3GHz/18-core/140W) FIO Processor Kit | B12: 2 | C12: TS1L2-CPU-580-U | D12: TS1L2-CPU-580-U | E12: 878138-L21 | F12: ProLiant HPE DL5x0 Gen10 CPU Mezzanine Board Kit | G12: 1 | H12: 872222-B21 | L12: 5056
A19: HPE OneView Advanced standalone licenses
A20: None | B20: 0 | C20: ="" ->  | D20: ="" ->  | E20: ="" ->  | F20: 0 | G20: ="" ->  | H20: ="" ->  | I20: ="" ->  | J20: ="" ->  | K20: ="" ->  | L20: ="" -> 
A21: HPE OneView Advanced with iLO Advanced incl 3yr 24x7 Supp Phys 1 Svr Lic | B21: 1 | C21: TS2L5-OV3YILO | D21: TS2L5-OV3YILO | E21: E5Y34A | F21: 480

Sheet Memory (hidden)
B1: Total Memory
B3: HPE 16GB (1x16GB) Dual Rank x4 DDR4-2400 Registered Memory Kit | C3: 1 | D3: TS2L4-16GB-2400 | E3: TS2L4-16GB-580 | F3: 836220-B21 | G3: 172 | H3: DL580 Gen9
B4: HP 32GB (1x32GB) Dual Rank x4 DDR4-2400 Registered Memory Kit | C4: 1 | D4: TS2L4-32GB-2400 | E4: TS2L4-32GB-580 | F4: 805351-B21 | G4: 344 | H4: DL580 Gen9
B5: HPE 64GB (1x64GB) Quad Rank x4 DDR4-2400 Load Reduced Memory Kit | C5: 1 | D5: TS2L4-64GB-2400 | E5: TS2L4-64GB-580 | F5: 805358-B21 | G5: 750 | H5: DL580 Gen9
B6: HPE 16GB 1Rx4 PC4-2933 Smart Kit | C6: 1 | D6: TS2L5-RAM16-U | E6: TS2L5-RAM16-U | F6: 815098-B21 | G6: 136
B7: HPE 32GB 2Rx4 PC4-2933 Smart Kit | C7: 1 | D7: TS2L5-RAM32-U | E7: TS2L5-RAM32-U | F7: 815100-B21 | G7: 397 | H7: =G7*4 -> 1588
B8: HPE 64GB 4Rx4 PC4-2933 Smart Kit | C8: 1 | D8: TS2L5-RAM64-U | E8: TS2L5-RAM64-U | F8: 815101-B21 | G8: 705
A11: 2CPU | B11: MEMORY A
A12: .:*~*:._.:*~*:._.:*~*:._.:Moduli da 32GB.:*~*:._.:*~*:._.:*~*:._.: | B12: =$B$7 -> HPE 32GB 2Rx4 PC4-2933 Smart Kit | C12: 4 | D12: ="" ->  | E12: TS2L5-RAM32-U | F12: 815100-B21 | G12: 0 | H12: =$B$7 -> HPE 32GB 2Rx4 PC4-2933 Smart Kit | I12: 4 | J12: =$F$7 -> 815100-B21 | K12: ="" ->  | L12: ="" ->  | M12: ="" ->  | N12: ="" ->  | O12: ="" ->  | P12: ="" -> 
A13: 128 (DIMM 32GB) | B13: HPE 32GB 2Rx4 PC4-2933 Smart Kit | C13: 4 | D13: ="" ->  | E13: TS2L5-RAM32-U | F13: 815100-B21 | G13: 0 | H13: HPE 32GB 2Rx4 PC4-2933 Smart Kit | I13: 4 | J13: 815100-B21 | K13: ="" ->  | L13: ="" ->  | M13: ="" ->  | N13: ="" ->  | O13: ="" ->  | P13: ="" -> 
A14: 192 (DIMM 32GB) | B14: HPE 32GB 2Rx4 PC4-2933 Smart Kit | C14: 6 | D14: TS2L5-RAM32-U | E14: TS2L5-RAM32-U | F14: 815100-B21 | G14: =($G$7*C14)-$H$7 -> 794 | H14: HPE 32GB 2Rx4 PC4-2933 Smart Kit | I14: 4 | J14: 815100-B21 | K14: ="" ->  | L14: ="" ->  | M14: ="" ->  | N14: ="" ->  | O14: ="" ->  | P14: ="" -> 
A15: 256 (DIMM 32GB) | B15: HPE 32GB 2Rx4 PC4-2933 Smart Kit | C15: 8 | D15: TS2L5-RAM32-U | E15: TS2L5-RAM32-U | F15: 815100-B21 | G15: =($G$7*C15)-$H$7 -> 1588 | H15: HPE 32GB 2Rx4 PC4-2933 Smart Kit | I15: 4 | J15: 815100-B21 | K15: ="" ->  | L15: ="" ->  | M15: ="" ->  | N15: ="" ->  | O15: ="" ->  | P15: ="" -> 
A16: 384 (DIMM 32GB) | B16: HPE 32GB 2Rx4 PC4-2933 Smart Kit | C16: 12 | D16: TS2L5-RAM32-U | E16: TS2L5-RAM32-U | F16: 815100-B21 | G16: 3176 | H16: HPE 32GB 2Rx4 PC4-2933 Smart Kit | I16: 4 | J16: 815100-B21 | K16: ="" ->  | L16: ="" ->  | M16: ="" ->  | N16: ="" ->  | O16: ="" ->  | P16: ="" -> 
A17: 512 (DIMM 32GB) | B17: HPE 32GB 2Rx4 PC4-2933 Smart Kit | C17: 16 | D17: TS2L5-RAM32-U | E17: TS2L5-RAM32-U | F17: 815100-B21 | G17: 4764 | H17: HPE 32GB 2Rx4 PC4-2933 Smart Kit | I17: 4 | J17: 815100-B21 | K17: ="" ->  | L17: ="" ->  | M17: ="" ->  | N17: ="" ->  | O17: ="" ->  | P17: ="" -> 
A18: 768 (DIMM 32GB) | B18: HPE 32GB 2Rx4 PC4-2933 Smart Kit | C18: 24 | D18: TS2L5-RAM32-U | E18: TS2L5-RAM32-U | F18: 815100-B21 | G18: 7940 | H18: HPE 32GB 2Rx4 PC4-2933 Smart Kit | I18: 4 | J18: 815100-B21 | K18: ="" ->  | L18: ="" ->  | M18: ="" ->  | N18: ="" ->  | O18: ="" ->  | P18: ="" -> 
A19: .:*~*:._.:*~*:._.:*~*:._.:Moduli da 64GB.:*~*:._.:*~*:._.:*~*:._.: | B19: ="" ->  | C19: ="" ->  | D19: ="" ->  | E19: ="" ->  | F19: ="" ->  | G19: ="" ->  | H19: ="" ->  | I19: ="" ->  | J19: ="" ->  | K19: HPE 64GB 4Rx4 PC4-2933 Smart Kit | L19: 8 | M19: TS2L5-RAM64-U | N19: TS2L5-RAM64-U | O19: 815101-B21 | P19: =$G$8*L19 -> 5640
A20: 512 (DIMM 64GB) | B20: ="" ->  | C20: ="" ->  | D20: ="" ->  | E20: ="" ->  | F20: ="" ->  | G20: ="" ->  | H20: ="" ->  | I20: ="" ->  | J20: ="" ->  | K20: HPE 64GB 4Rx4 PC4-2933 Smart Kit | L20: 8 | M20: TS2L5-RAM64-U | N20: TS2L5-RAM64-U | O20: 815101-B21 | P20: 5640
A21: 768 (DIMM 64GB) | B21: ="" ->  | C21: ="" ->  | D21: ="" ->  | E21: ="" ->  | F21: ="" ->  | G21: ="" ->  | H21: ="" ->  | I21: ="" ->  | J21: ="" ->  | K21: HPE 64GB 4Rx4 PC4-2933 Smart Kit | L21: 12 | M21: TS2L5-RAM64-U | N21: TS2L5-RAM64-U | O21: 815101-B21 | P21: 8460
A22: 1024 (DIMM 64GB) | B22: ="" ->  | C22: ="" ->  | D22: ="" ->  | E22: ="" ->  | F22: ="" ->  | G22: ="" ->  | H22: ="" ->  | I22: ="" ->  | J22: ="" ->  | K22: HPE 64GB 4Rx4 PC4-2933 Smart Kit | L22: 16 | M22: TS2L5-RAM64-U | N22: TS2L5-RAM64-U | O22: 815101-B21 | P22: =$G$8*L22 -> 11280
A23: 1536 (DIMM 64GB) | B23: ="" ->  | C23: ="" ->  | D23: ="" ->  | E23: ="" ->  | F23: ="" ->  | G23: ="" ->  | H23: ="" ->  | I23: ="" ->  | J23: ="" ->  | K23: HPE 64GB 4Rx4 PC4-2933 Smart Kit | L23: 24 | M23: TS2L5-RAM64-U | N23: TS2L5-RAM64-U | O23: 815101-B21 | P23: =$G$8*L23 -> 16920
A24: 4CPU
A25: .:*~*:._.:*~*:._.:*~*:._.:Moduli da 32GB.:*~*:._.:*~*:._.:*~*:._.: | B25: =$B$7 -> HPE 32GB 2Rx4 PC4-2933 Smart Kit | C25: 4 | D25: ="" ->  | E25: ="" ->  | F25: 815100-B21 | G25: 0 | H25: =$B$7 -> HPE 32GB 2Rx4 PC4-2933 Smart Kit | I25: 4 | J25: =$F$7 -> 815100-B21 | K25: ="" ->  | L25: ="" ->  | M25: ="" ->  | N25: ="" ->  | O25: ="" ->  | P25: ="" -> 
A26: 128 (DIMM 32GB) | B26: HPE 32GB 2Rx4 PC4-2933 Smart Kit | C26: 4 | D26: ="" ->  | E26: ="" ->  | F26: 815100-B21 | G26: 0 | H26: HPE 32GB 2Rx4 PC4-2933 Smart Kit | I26: 4 | J26: 815100-B21 | K26: ="" ->  | L26: ="" ->  | M26: ="" ->  | N26: ="" ->  | O26: ="" ->  | P26: ="" -> 
A27: 256 (DIMM 32GB) | B27: HPE 32GB 2Rx4 PC4-2933 Smart Kit | C27: 8 | D27: TS2L5-RAM32-U | E27: TS2L5-RAM32-U | F27: 815100-B21 | G27: =($G$7*C27)-$H$7 -> 1588 | H27: HPE 32GB 2Rx4 PC4-2933 Smart Kit | I27: 4 | J27: =$F$7 -> 815100-B21 | K27: ="" ->  | L27: ="" ->  | M27: ="" ->  | N27: ="" ->  | O27: ="" ->  | P27: ="" -> 
A28: 384 (DIMM 32GB) | B28: HPE 32GB 2Rx4 PC4-2933 Smart Kit | C28: 12 | D28: TS2L5-RAM32-U | E28: TS2L5-RAM32-U | F28: 815100-B21 | G28: =($G$7*C28)-$H$7 -> 3176 | H28: HPE 32GB 2Rx4 PC4-2933 Smart Kit | I28: 4 | J28: 815100-B21 | K28: ="" ->  | L28: ="" ->  | M28: ="" ->  | N28: ="" ->  | O28: ="" ->  | P28: ="" -> 
A29: 512 (DIMM 32GB) | B29: HPE 32GB 2Rx4 PC4-2933 Smart Kit | C29: 16 | D29: TS2L5-RAM32-U | E29: TS2L5-RAM32-U | F29: 815100-B21 | G29: 4764 | H29: HPE 32GB 2Rx4 PC4-2933 Smart Kit | I29: 4 | J29: 815100-B21 | K29: ="" ->  | L29: ="" ->  | M29: ="" ->  | N29: ="" ->  | O29: ="" ->  | P29: ="" -> 
A30: 768 (DIMM 32GB) | B30: HPE 32GB 2Rx4 PC4-2933 Smart Kit | C30: 24 | D30: TS2L5-RAM32-U | E30: TS2L5-RAM32-U | F30: 815100-B21 | G30: 7940 | H30: HPE 32GB 2Rx4 PC4-2933 Smart Kit | I30: 4 | J30: 815100-B21 | K30: ="" ->  | L30: ="" ->  | M30: ="" ->  | N30: ="" ->  | O30: ="" ->  | P30: ="" -> 
A31: 1024 (DIMM 32GB) | B31: HPE 32GB 2Rx4 PC4-2933 Smart Kit | C31: 32 | D31: TS2L5-RAM32-U | E31: TS2L5-RAM32-U | F31: 815100-B21 | G31: 11116 | H31: HPE 32GB 2Rx4 PC4-2933 Smart Kit | I31: 4 | J31: 815100-B21 | K31: ="" ->  | L31: ="" ->  | M31: ="" ->  | N31: ="" ->  | O31: ="" ->  | P31: ="" -> 
A32: 1536 (DIMM 32GB) | B32: HPE 32GB 2Rx4 PC4-2933 Smart Kit | C32: 48 | D32: TS2L5-RAM32-U | E32: TS2L5-RAM32-U | F32: 815100-B21 | G32: 17468 | H32: HPE 32GB 2Rx4 PC4-2933 Smart Kit | I32: 4 | J32: 815100-B21 | K32: ="" ->  | L32: ="" ->  | M32: ="" ->  | N32: ="" ->  | O32: ="" ->  | P32: ="" -> 
A33: .:*~*:._.:*~*:._.:*~*:._.:Moduli da 64GB.:*~*:._.:*~*:._.:*~*:._.: | B33: ="" ->  | C33: ="" ->  | D33: ="" ->  | E33: ="" ->  | F33: ="" ->  | G33: ="" ->  | H33: ="" ->  | I33: ="" ->  | J33: ="" ->  | K33: HPE 64GB 4Rx4 PC4-2933 Smart Kit | L33: 8 | M33: TS2L5-RAM64 | N33: TS2L5-RAM64 | O33: 815101-B21 | P33: =$G$8*L33 -> 5640
A34: 512 (DIMM 64GB) | B34: ="" ->  | C34: ="" ->  | D34: ="" ->  | E34: ="" ->  | F34: ="" ->  | G34: ="" ->  | H34: ="" ->  | I34: ="" ->  | J34: ="" ->  | K34: HPE 64GB 4Rx4 PC4-2933 Smart Kit | L34: 8 | M34: TS2L5-RAM64 | N34: TS2L5-RAM64 | O34: 815101-B21 | P34: 5640
A35: 768 (DIMM 64GB) | B35: ="" ->  | C35: ="" ->  | D35: ="" ->  | E35: ="" ->  | F35: ="" ->  | G35: ="" ->  | H35: ="" ->  | I35: ="" ->  | J35: ="" ->  | K35: HPE 64GB 4Rx4 PC4-2933 Smart Kit | L35: 12 | M35: TS2L5-RAM64 | N35: TS2L5-RAM64 | O35: 815101-B21 | P35: 8460
A36: 1024 (DIMM 64GB) | B36: ="" ->  | C36: ="" ->  | D36: ="" ->  | E36: ="" ->  | F36: ="" ->  | G36: ="" ->  | H36: ="" ->  | I36: ="" ->  | J36: ="" ->  | K36: HPE 64GB 4Rx4 PC4-2933 Smart Kit | L36: 16 | M36: TS2L5-RAM64 | N36: TS2L5-RAM64 | O36: 815101-B21 | P36: =$G$8*L36 -> 11280
A37: 1536 (DIMM 64GB) | B37: ="" ->  | C37: ="" ->  | D37: ="" ->  | E37: ="" ->  | F37: ="" ->  | G37: ="" ->  | H37: ="" ->  | I37: ="" ->  | J37: ="" ->  | K37: HPE 64GB 4Rx4 PC4-2933 Smart Kit | L37: 24 | M37: TS2L5-RAM64 | N37: TS2L5-RAM64 | O37: 815101-B21 | P37: =$G$8*L37 -> 16920
A38: 2048 (DIMM 64GB) | B38: ="" ->  | C38: ="" ->  | D38: ="" ->  | E38: ="" ->  | F38: ="" ->  | G38: ="" ->  | H38: ="" ->  | I38: ="" ->  | J38: ="" ->  | K38: HPE 64GB 4Rx4 PC4-2933 Smart Kit | L38: 32 | M38: TS2L5-RAM64 | N38: TS2L5-RAM64 | O38: 815101-B21 | P38: =$G$8*L38 -> 22560
A39: 3072 (DIMM 64GB) | B39: ="" ->  | C39: ="" ->  | D39: ="" ->  | E39: ="" ->  | F39: ="" ->  | G39: ="" ->  | H39: ="" ->  | I39: ="" ->  | J39: ="" ->  | K39: HPE 64GB 4Rx4 PC4-2933 Smart Kit | L39: 48 | M39: TS2L5-RAM64 | N39: TS2L5-RAM64 | O39: 815101-B21 | P39: =$G$8*L39 -> 33840
B41: MEMORY B
A42: 2CPU | B42: UPGRADE 16GB | H42: MEMORIA BASE | K42: UPGRADE 32GB | T42: Memoria Totale | U42: Prezzo Totale Memorie | V42: Memory Cartridge Totali | W42: DIMM Slot | X42: 32 | Y42: 16 | Z42: 16
A43: 64 | B43: ="" ->  | C43: ="" ->  | D43: ="" ->  | E43: ="" ->  | F43: ="" ->  | G43: ="" ->  | H43: =$B$7 -> HPE 32GB 2Rx4 PC4-2933 Smart Kit | I43: 2 | J43: =$F$7 -> 815100-B21 | K43: ="" ->  | L43: ="" ->  | M43: ="" ->  | N43: ="" ->  | O43: ="" ->  | P43: ="" ->  | X43: =IF(L43="",0,L43) -> 0 | Y43: =IF(I43="",0,I43) -> 2 | Z43: =IF(C43="",0,C43) -> 0 | AA43: =SUM(X43:Z43) -> 0
A44: 128 | B44: HPE 32GB (1x32GB) Dual Rank x4 DDR4-2666 CAS-19-19-19 Registered Smart Memory Kit | C44: 2 | D44: TS2L4-32GB | E44: TS2L4-32GB | F44: 815100-B21 | G44: =$G$7*C44 -> 794 | H44: =$B$7 -> HPE 32GB 2Rx4 PC4-2933 Smart Kit | I44: 2 | J44: =$F$7 -> 815100-B21 | K44: ="" ->  | L44: ="" ->  | M44: ="" ->  | N44: ="" ->  | O44: ="" ->  | P44: ="" ->  | X44: 0 | Y44: 2 | Z44: 2 | AA44: 2
A45: 192 | B45: HPE 32GB (1x32GB) Dual Rank x4 DDR4-2666 CAS-19-19-19 Registered Smart Memory Kit | C45: 4 | D45: TS2L4-32GB | E45: TS2L4-32GB | F45: 815100-B21 | G45: 1588 | H45: HPE 32GB 2Rx4 PC4-2933 Smart Kit | I45: 2 | J45: 815100-B21 | K45: ="" ->  | L45: ="" ->  | M45: ="" ->  | N45: ="" ->  | O45: ="" ->  | P45: ="" ->  | X45: 0 | Y45: 2 | Z45: 4 | AA45: 4
A46: 256 | B46: HPE 32GB (1x32GB) Dual Rank x4 DDR4-2666 CAS-19-19-19 Registered Smart Memory Kit | C46: 6 | D46: TS2L4-32GB | E46: TS2L4-32GB | F46: 815100-B21 | G46: 2382 | H46: HPE 32GB 2Rx4 PC4-2933 Smart Kit | I46: 2 | J46: 815100-B21 | K46: ="" ->  | L46: ="" ->  | M46: ="" ->  | N46: ="" ->  | O46: ="" ->  | P46: ="" ->  | X46: 0 | Y46: 2 | Z46: 6 | AA46: 6
A47: 384 | B47: HPE 32GB (1x32GB) Dual Rank x4 DDR4-2666 CAS-19-19-19 Registered Smart Memory Kit | C47: 10 | D47: TS2L4-32GB | E47: TS2L4-32GB | F47: 815100-B21 | G47: 3970 | H47: HPE 32GB 2Rx4 PC4-2933 Smart Kit | I47: 2 | J47: 815100-B21 | K47: ="" ->  | L47: ="" ->  | M47: ="" ->  | N47: ="" ->  | O47: ="" ->  | P47: ="" ->  | X47: 0 | Y47: 2 | Z47: 10 | AA47: 10
A48: 512 | B48: HPE 32GB (1x32GB) Dual Rank x4 DDR4-2666 CAS-19-19-19 Registered Smart Memory Kit | C48: 14 | D48: TS2L4-32GB | E48: TS2L4-32GB | F48: 815100-B21 | G48: 5558 | H48: HPE 32GB 2Rx4 PC4-2933 Smart Kit | I48: 2 | J48: 815100-B21 | K48: ="" ->  | L48: ="" ->  | M48: ="" ->  | N48: ="" ->  | O48: ="" ->  | P48: ="" ->  | X48: 0 | Y48: 2 | Z48: 14 | AA48: 14
A49: 768 | B49: HPE 32GB (1x32GB) Dual Rank x4 DDR4-2666 CAS-19-19-19 Registered Smart Memory Kit | C49: 22 | D49: TS2L4-32GB | E49: TS2L4-32GB | F49: 815100-B21 | G49: 8734 | H49: HPE 32GB 2Rx4 PC4-2933 Smart Kit | I49: 2 | J49: 815100-B21 | K49: ="" ->  | L49: ="" ->  | M49: ="" ->  | N49: ="" ->  | O49: ="" ->  | P49: ="" ->  | X49: 0 | Y49: 2 | Z49: 22 | AA49: 22
A50: 1024 | B50: ="" ->  | C50: ="" ->  | D50: ="" ->  | E50: ="" ->  | F50: ="" ->  | G50: ="" ->  | H50: ="" ->  | I50: ="" ->  | J50: ="" ->  | K50: HPE 64GB (1x64GB) Quad Rank x4 DDR4-2666 CAS-19-19-19 Load Reduced Smart Memory Kit | L50: 16 | M50: TS1L2-64GB | N50: TS1L2-64GB | O50: 815101-B21 | P50: =$G$8*L50 -> 11280 | X50: 16 | Y50: 0 | Z50: 0 | AA50: 16
A51: 1536 | B51: ="" ->  | C51: ="" ->  | D51: ="" ->  | E51: ="" ->  | F51: ="" ->  | G51: ="" ->  | H51: ="" ->  | I51: ="" ->  | J51: ="" ->  | K51: HPE 64GB (1x64GB) Quad Rank x4 DDR4-2666 CAS-19-19-19 Load Reduced Smart Memory Kit | L51: 24 | M51: TS1L2-64GB | N51: TS1L2-64GB | O51: 815101-B21 | P51: =$G$8*L51 -> 16920 | X51: 24 | Y51: 0 | Z51: 0 | AA51: 24
A52: 4CPU
A53: 128 | B53: HPE 32GB (1x32GB) Dual Rank x4 DDR4-2666 CAS-19-19-19 Registered Smart Memory Kit | C53: 2 | D53: TS2L4-32GB | E53: TS2L4-32GB | F53: 815100-B21 | G53: =$G$7*C53 -> 794 | H53: =$B$7 -> HPE 32GB 2Rx4 PC4-2933 Smart Kit | I53: 2 | J53: =$F$7 -> 815100-B21 | K53: ="" ->  | L53: ="" ->  | M53: ="" ->  | N53: ="" ->  | O53: ="" ->  | P53: ="" ->  | X53: =IF(L53="",0,L53) -> 0 | Y53: =IF(I53="",0,I53) -> 2 | Z53: =IF(C53="",0,C53) -> 2 | AA53: =SUM(X53:Z53) -> 2
A54: 256 | B54: HPE 32GB (1x32GB) Dual Rank x4 DDR4-2666 CAS-19-19-19 Registered Smart Memory Kit | C54: 6 | D54: TS2L4-32GB | E54: TS2L4-32GB | F54: 815100-B21 | G54: 2382 | H54: =$B$7 -> HPE 32GB 2Rx4 PC4-2933 Smart Kit | I54: 2 | J54: =$F$7 -> 815100-B21 | K54: ="" ->  | L54: ="" ->  | M54: ="" ->  | N54: ="" ->  | O54: ="" ->  | P54: ="" ->  | X54: 0 | Y54: 2 | Z54: 6 | AA54: 6
A55: 384 | B55: HPE 32GB (1x32GB) Dual Rank x4 DDR4-2666 CAS-19-19-19 Registered Smart Memory Kit | C55: 10 | D55: TS2L4-32GB | E55: TS2L4-32GB | F55: 815100-B21 | G55: 3970 | H55: HPE 32GB 2Rx4 PC4-2933 Smart Kit | I55: 2 | J55: 815100-B21 | K55: ="" ->  | L55: ="" ->  | M55: ="" ->  | N55: ="" ->  | O55: ="" ->  | P55: ="" ->  | X55: 0 | Y55: 2 | Z55: 10 | AA55: 10
A56: 512 | B56: HPE 32GB (1x32GB) Dual Rank x4 DDR4-2666 CAS-19-19-19 Registered Smart Memory Kit | C56: 14 | D56: TS2L4-32GB | E56: TS2L4-32GB | F56: 815100-B21 | G56: 5558 | H56: HPE 32GB 2Rx4 PC4-2933 Smart Kit | I56: 2 | J56: 815100-B21 | K56: ="" ->  | L56: ="" ->  | M56: ="" ->  | N56: ="" ->  | O56: ="" ->  | P56: ="" ->  | X56: 0 | Y56: 2 | Z56: 14 | AA56: 14
A57: 768 | B57: HPE 32GB (1x32GB) Dual Rank x4 DDR4-2666 CAS-19-19-19 Registered Smart Memory Kit | C57: 22 | D57: TS2L4-32GB | E57: TS2L4-32GB | F57: 815100-B21 | G57: 8734 | H57: HPE 32GB 2Rx4 PC4-2933 Smart Kit | I57: 2 | J57: 815100-B21 | K57: ="" ->  | L57: ="" ->  | M57: ="" ->  | N57: ="" ->  | O57: ="" ->  | P57: ="" ->  | X57: 0 | Y57: 2 | Z57: 22 | AA57: 22
A58: 1024 | B58: HPE 32GB (1x32GB) Dual Rank x4 DDR4-2666 CAS-19-19-19 Registered Smart Memory Kit | C58: 30 | D58: TS2L4-32GB | E58: TS2L4-32GB | F58: 815100-B21 | G58: 11910 | H58: HPE 32GB 2Rx4 PC4-2933 Smart Kit | I58: 2 | J58: 815100-B21 | K58: ="" ->  | L58: ="" ->  | M58: ="" ->  | N58: ="" ->  | O58: ="" ->  | P58: ="" ->  | X58: 0 | Y58: 2 | Z58: 30 | AA58: 30
A59: 1536 | B59: HPE 32GB (1x32GB) Dual Rank x4 DDR4-2666 CAS-19-19-19 Registered Smart Memory Kit | C59: 46 | D59: TS2L4-32GB | E59: TS2L4-32GB | F59: 815100-B21 | G59: 18262 | H59: HPE 32GB 2Rx4 PC4-2933 Smart Kit | I59: 2 | J59: 815100-B21 | K59: ="" ->  | L59: ="" ->  | M59: ="" ->  | N59: ="" ->  | O59: ="" ->  | P59: ="" ->  | X59: 0 | Y59: 2 | Z59: 46 | AA59: 46
A60: 2048 | B60: ="" ->  | C60: ="" ->  | D60: ="" ->  | E60: ="" ->  | F60: ="" ->  | G60: ="" ->  | H60: ="" ->  | I60: ="" ->  | J60: ="" ->  | K60: HPE 64GB (1x64GB) Quad Rank x4 DDR4-2666 CAS-19-19-19 Load Reduced Smart Memory Kit | L60: 32 | M60: TS1L2-64GB | N60: TS1L2-64GB | O60: 815101-B21 | P60: =$G$8*L60 -> 22560 | X60: 32 | Y60: 0 | Z60: 0 | AA60: 32
A61: 3072 | B61: ="" ->  | C61: ="" ->  | D61: ="" ->  | E61: ="" ->  | F61: ="" ->  | G61: ="" ->  | H61: ="" ->  | I61: ="" ->  | J61: ="" ->  | K61: HPE 64GB (1x64GB) Quad Rank x4 DDR4-2666 CAS-19-19-19 Load Reduced Smart Memory Kit | L61: 48 | M61: TS1L2-64GB | N61: TS1L2-64GB | O61: 815101-B21 | P61: =$G$8*L61 -> 33840 | X61: 48 | Y61: 0 | Z61: 0 | AA61: 48
A63: 1CPU | B63: MEMORY C | T63: Memoria Totale | U63: Prezzo Totale Memorie | V63: Memory Cartridge Totali | W63: DIMM Slot | X63: 32 | Y63: 16 | Z63: 16
A64: =32*I64 -> 128 | B64: ="" ->  | C64: ="" ->  | D64: ="" ->  | E64: ="" ->  | G64: ="" ->  | H64: HPE 32GB (1x32GB) Dual Rank x4 DDR4-2666 CAS-19-19-19 Registered Smart Memory Kit | I64: 4 | J64: 815100-B21 | K64: ="" ->  | L64: ="" ->  | M64: ="" ->  | N64: ="" ->  | O64: ="" ->  | P64: ="" ->  | X64: =IF(L64="",0,L64) -> 0 | Y64: =IF(I64="",0,I64) -> 4 | Z64: =IF(C64="",0,C64) -> 0 | AA64: =SUM(X64:Z64) -> 4
A65: =(32*I65)+(C65*32) -> 256 | B65: HPE 32GB (1x32GB) Dual Rank x4 DDR4-2666 CAS-19-19-19 Registered Smart Memory Kit | C65: 4 | D65: TS2L4-32GB | E65: TS2L4-32GB | F65: 815100-B21 | G65: =$G$4*C65 -> 1376 | H65: HPE 32GB (1x32GB) Dual Rank x4 DDR4-2666 CAS-19-19-19 Registered Smart Memory Kit | I65: 4 | J65: 815100-B21 | K65: ="" ->  | L65: ="" ->  | M65: ="" ->  | N65: ="" ->  | O65: ="" ->  | P65: ="" ->  | X65: =IF(L65="",0,L65) -> 0 | Y65: =IF(I65="",0,I65) -> 4 | Z65: =IF(C65="",0,C65) -> 4 | AA65: =SUM(X65:Z65) -> 8
A66: =(32*I66)+(C66*32) -> 512 | B66: HPE 32GB (1x32GB) Dual Rank x4 DDR4-2666 CAS-19-19-19 Registered Smart Memory Kit | C66: 12 | D66: TS2L4-32GB | E66: TS2L4-32GB | F66: 815100-B21 | G66: =$G$4*C66 -> 4128 | H66: HPE 32GB (1x32GB) Dual Rank x4 DDR4-2666 CAS-19-19-19 Registered Smart Memory Kit | I66: 4 | J66: 815100-B21 | K66: ="" ->  | L66: ="" ->  | M66: ="" ->  | N66: ="" ->  | O66: ="" ->  | P66: ="" ->  | X66: 0 | Y66: 4 | Z66: 12 | AA66: 16
A67: =(32*I67)+(C67*32) -> 640 | B67: HPE 32GB (1x32GB) Dual Rank x4 DDR4-2666 CAS-19-19-19 Registered Smart Memory Kit | C67: 16 | D67: TS2L4-32GB | E67: TS2L4-32GB | F67: 815100-B21 | G67: =$G$4*C67 -> 5504 | H67: HPE 32GB (1x32GB) Dual Rank x4 DDR4-2666 CAS-19-19-19 Registered Smart Memory Kit | I67: 4 | J67: 815100-B21 | K67: ="" ->  | L67: ="" ->  | M67: ="" ->  | N67: ="" ->  | O67: ="" ->  | P67: ="" ->  | X67: =IF(L67="",0,L67) -> 0 | Y67: =IF(I67="",0,I67) -> 4 | Z67: =IF(C67="",0,C67) -> 16 | AA67: =SUM(X67:Z67) -> 20
A68: =(32*I68)+(C68*32) -> 768 | B68: HPE 32GB (1x32GB) Dual Rank x4 DDR4-2666 CAS-19-19-19 Registered Smart Memory Kit | C68: 20 | D68: TS2L4-32GB | E68: TS2L4-32GB | F68: 815100-B21 | G68: =$G$4*C68 -> 6880 | H68: HPE 32GB (1x32GB) Dual Rank x4 DDR4-2666 CAS-19-19-19 Registered Smart Memory Kit | I68: 4 | J68: 815100-B21 | K68: ="" ->  | L68: ="" ->  | M68: ="" ->  | N68: ="" ->  | O68: ="" ->  | P68: ="" ->  | X68: 0 | Y68: 4 | Z68: 20 | AA68: 24
A69: =(L69*64) -> 1024 | B69: ="" ->  | C69: ="" ->  | D69: ="" ->  | E69: ="" ->  | F69: ="" ->  | G69: ="" ->  | H69: ="" ->  | I69: ="" ->  | J69: ="" ->  | K69: HPE 64GB (1x64GB) Quad Rank x4 DDR4-2666 CAS-19-19-19 Load Reduced Smart Memory Kit | L69: 16 | M69: TS1L2-64GB | N69: TS1L2-64GB | O69: 815101-B21 | P69: =$G$8*L69 -> 11280 | X69: 16 | Y69: 0 | Z69: 0 | AA69: 16
A70: =(L70*64) -> 1280 | B70: ="" ->  | C70: ="" ->  | D70: ="" ->  | E70: ="" ->  | F70: ="" ->  | G70: ="" ->  | H70: ="" ->  | I70: ="" ->  | J70: ="" ->  | K70: HPE 64GB (1x64GB) Quad Rank x4 DDR4-2666 CAS-19-19-19 Load Reduced Smart Memory Kit | L70: 20 | M70: TS1L2-64GB | N70: TS1L2-64GB | O70: 815101-B21 | P70: =$G$8*L70 -> 14100 | X70: 20 | Y70: 0 | Z70: 0 | AA70: 20
A71: =(L71*64) -> 1536 | B71: ="" ->  | C71: ="" ->  | D71: ="" ->  | E71: ="" ->  | F71: ="" ->  | G71: ="" ->  | H71: ="" ->  | I71: ="" ->  | J71: ="" ->  | K71: HPE 64GB (1x64GB) Quad Rank x4 DDR4-2666 CAS-19-19-19 Load Reduced Smart Memory Kit | L71: 24 | M71: TS1L2-64GB | N71: TS1L2-64GB | O71: 815101-B21 | P71: =$G$8*L71 -> 16920 | X71: =IF(L71="",0,L71) -> 24 | Y71: =IF(I71="",0,I71) -> 0 | Z71: =IF(C71="",0,C71) -> 0 | AA71: =SUM(X71:Z71) -> 24
A72: 2CPU
A73: =(32*I73)+(C73*32) -> 256 | B73: HPE 32GB (1x32GB) Dual Rank x4 DDR4-2666 CAS-19-19-19 Registered Smart Memory Kit | C73: 4 | D73: TS2L4-32GB | E73: TS2L4-32GB | F73: 815100-B21 | G73: =$G$4*C73 -> 1376 | H73: HPE 32GB (1x32GB) Dual Rank x4 DDR4-2666 CAS-19-19-19 Registered Smart Memory Kit | I73: 4 | J73: 815100-B21 | K73: ="" ->  | L73: ="" ->  | M73: ="" ->  | N73: ="" ->  | O73: ="" ->  | P73: ="" ->  | X73: =IF(L73="",0,L73) -> 0 | Y73: =IF(I73="",0,I73) -> 4 | Z73: =IF(C73="",0,C73) -> 4 | AA73: =SUM(X73:Z73) -> 8
A74: 512 | B74: HPE 32GB (1x32GB) Dual Rank x4 DDR4-2666 CAS-19-19-19 Registered Smart Memory Kit | C74: 12 | D74: TS2L4-32GB | E74: TS2L4-32GB | F74: 815100-B21 | G74: 4128 | H74: HPE 32GB (1x32GB) Dual Rank x4 DDR4-2666 CAS-19-19-19 Registered Smart Memory Kit | I74: 4 | J74: 815100-B21 | K74: ="" ->  | L74: ="" ->  | M74: ="" ->  | N74: ="" ->  | O74: ="" ->  | P74: ="" ->  | X74: 0 | Y74: 4 | Z74: 12 | AA74: 16
A75: 640 | B75: HPE 32GB (1x32GB) Dual Rank x4 DDR4-2666 CAS-19-19-19 Registered Smart Memory Kit | C75: 16 | D75: TS2L4-32GB | E75: TS2L4-32GB | F75: 815100-B21 | G75: 5504 | H75: HPE 32GB (1x32GB) Dual Rank x4 DDR4-2666 CAS-19-19-19 Registered Smart Memory Kit | I75: 4 | J75: 815100-B21 | K75: ="" ->  | L75: ="" ->  | M75: ="" ->  | N75: ="" ->  | O75: ="" ->  | P75: ="" ->  | X75: 0 | Y75: 4 | Z75: 16 | AA75: 20
A76: 768 | B76: HPE 32GB (1x32GB) Dual Rank x4 DDR4-2666 CAS-19-19-19 Registered Smart Memory Kit | C76: 20 | D76: TS2L4-32GB | E76: TS2L4-32GB | F76: 815100-B21 | G76: 6880 | H76: HPE 32GB (1x32GB) Dual Rank x4 DDR4-2666 CAS-19-19-19 Registered Smart Memory Kit | I76: 4 | J76: 815100-B21 | K76: ="" ->  | L76: ="" ->  | M76: ="" ->  | N76: ="" ->  | O76: ="" ->  | P76: ="" ->  | X76: 0 | Y76: 4 | Z76: 20 | AA76: 24
A77: 1024 | B77: HPE 32GB (1x32GB) Dual Rank x4 DDR4-2666 CAS-19-19-19 Registered Smart Memory Kit | C77: 28 | D77: TS2L4-32GB | E77: TS2L4-32GB | F77: 815100-B21 | G77: 9632 | H77: HPE 32GB (1x32GB) Dual Rank x4 DDR4-2666 CAS-19-19-19 Registered Smart Memory Kit | I77: 4 | J77: 815100-B21 | K77: ="" ->  | L77: ="" ->  | M77: ="" ->  | N77: ="" ->  | O77: ="" ->  | P77: ="" ->  | X77: 0 | Y77: 4 | Z77: 28 | AA77: 32
A78: 1280 | B78: HPE 32GB (1x32GB) Dual Rank x4 DDR4-2666 CAS-19-19-19 Registered Smart Memory Kit | C78: 36 | D78: TS2L4-32GB | E78: TS2L4-32GB | F78: 815100-B21 | G78: 12384 | H78: HPE 32GB (1x32GB) Dual Rank x4 DDR4-2666 CAS-19-19-19 Registered Smart Memory Kit | I78: 4 | J78: 815100-B21 | K78: ="" ->  | L78: ="" ->  | M78: ="" ->  | N78: ="" ->  | O78: ="" ->  | P78: ="" ->  | X78: 0 | Y78: 4 | Z78: 36 | AA78: 40
A79: 1536 | B79: HPE 32GB (1x32GB) Dual Rank x4 DDR4-2666 CAS-19-19-19 Registered Smart Memory Kit | C79: 44 | D79: TS2L4-32GB | E79: TS2L4-32GB | F79: 815100-B21 | G79: 15136 | H79: HPE 32GB (1x32GB) Dual Rank x4 DDR4-2666 CAS-19-19-19 Registered Smart Memory Kit | I79: 4 | J79: 815100-B21 | K79: ="" ->  | L79: ="" ->  | M79: ="" ->  | N79: ="" ->  | O79: ="" ->  | P79: ="" ->  | X79: =IF(L79="",0,L79) -> 0 | Y79: =IF(I79="",0,I79) -> 4 | Z79: =IF(C79="",0,C79) -> 44 | AA79: =SUM(X79:Z79) -> 48
A80: =(L80*64) -> 2048 | B80: ="" ->  | C80: ="" ->  | D80: ="" ->  | E80: ="" ->  | F80: ="" ->  | G80: ="" ->  | H80: ="" ->  | I80: ="" ->  | J80: ="" ->  | K80: HPE 64GB (1x64GB) Quad Rank x4 DDR4-2666 CAS-19-19-19 Load Reduced Smart Memory Kit | L80: 32 | M80: TS1L2-64GB | N80: TS1L2-64GB | O80: 815101-B21 | P80: =$G$8*L80 -> 22560 | X80: =IF(L80="",0,L80) -> 32 | Y80: =IF(I80="",0,I80) -> 0 | Z80: =IF(C80="",0,C80) -> 0 | AA80: =SUM(X80:Z80) -> 32
A81: =(L81*64) -> 3072 | B81: ="" ->  | C81: ="" ->  | D81: ="" ->  | E81: ="" ->  | F81: ="" ->  | G81: ="" ->  | H81: ="" ->  | I81: ="" ->  | J81: ="" ->  | K81: HPE 64GB (1x64GB) Quad Rank x4 DDR4-2666 CAS-19-19-19 Load Reduced Smart Memory Kit | L81: 48 | M81: TS1L2-64GB | N81: TS1L2-64GB | O81: 815101-B21 | P81: =$G$8*L81 -> 33840 | X81: =IF(L81="",0,L81) -> 48 | Y81: =IF(I81="",0,I81) -> 0 | Z81: =IF(C81="",0,C81) -> 0 | AA81: =SUM(X81:Z81) -> 48
M89: 44GB8

Sheet HDD (hidden)
A1: Hard Drives
A2: DL560
A3: HP 300GB 12G SAS 15K 2.5in SC ENT HDD | C3: 10L2-HDD300GB | D3: S10L2-DL560-HDD300 | E3: 759208-B21 | F3: 140
A4: HP 1TB 6G SAS 7.2K 2.5in SC MDL HDD | C4: 10L2-HDD1TB | D4: S10L2-DL560-HDD1000 | E4: 652749-B21 | F4: 278
B5: DL560 | C5: DL560 2 | D5: DL560 3
A6: HDD max | B6: 8 | C6: 8 | D6: 8
A7: HDD 300GB Base | B7: 2 | C7: 2 | D7: 2 | E7: Hot Spare for 300GB HDD | F7: ='Lotto5 DL560 Gen10 1'!$C$130 -> No | G7: =IF(F7="Yes",1,0) -> 0 | H7: =#REF! ->  | I7: =IF(H7="Yes",1,0) ->  | J7: =#REF! ->  | K7: =IF(J7="Yes",1,0) -> 
A8: HDD 300GB Selected | B8: ='Lotto5 DL560 Gen10 1'!#REF! ->  | C8: =#REF! ->  | D8: =#REF! -> 
A9: HP 300GB 12G SAS 15K 2.5in SC ENT HDD | B9: 0 | C9: 0 | D9: 0
B10: 1 | C10: 1 | D10: 1
B11: 2 | C11: 2 | D11: 2
B12: 3 | C12: 3 | D12: 3
B13: 4 | C13: 4 | D13: 4
B14: 5 | C14: 5 | D14: 5
B15: 6 | C15: 6 | D15: 6
A16: HDD max | B16: 8 | C16: 8 | D16: 8
A17: HDD 300GB | B17: =B7+B8 ->  | C17: =C7+C8 ->  | D17: =D7+D8 -> 
A18: HDD 1TB Selected | B18: ='Lotto5 DL560 Gen10 1'!#REF! ->  | C18: =#REF! ->  | D18: =#REF! ->  | E18: Hot Spare for 1TB HDD | F18: ='Lotto5 DL560 Gen10 1'!$C$134 -> No | G18: =IF(F18="Yes",1,0) -> 0 | H18: =#REF! ->  | I18: =IF(H18="Yes",1,0) ->  | J18: =#REF! ->  | K18: =IF(J18="Yes",1,0) -> 
A19: HP 1TB 6G SAS 7.2K 2.5in SC MDL HDD | B19: =B$6-B$7-B$8 ->  | C19: =C$6-C$7-C$8 ->  | D19: =D$6-D$7-D$8 -> 
B20: =IF(B19-1<1,0,B19-1) -> 
A29: Hot Spare | B29: Yes
B30: No
A32: RAID Configuration | D32: HDD 300GB DL560 | F32: HDD 1TB DL560 | H32: HDD 300GB DL560 2 | J32: HDD 1TB DL560 2 | L32: HDD 300GB DL560 3 | N32: HDD 1TB DL560 3
A33: RAID Personalizzato | B33: =IF($B$109<=8,0,"") -> 0 | C33: ="" ->  | D33: =IF($G$7=0,A33,"") -> RAID Personalizzato | E33: =IF($G$7=0,C33,"") ->  | F33: =IF($G$18=0,A33,"") -> RAID Personalizzato | G33: =IF($G$18=0,C33,"") ->  | H33: =IF(I7=0,$A$33,"") ->  | I33: =IF(I7=0,$C$33,"") ->  | J33: =IF(I18=0,$A$33,"") ->  | K33: =IF(I18=0,$C$33,"") ->  | L33: =IF(K7=0,$A$33,"") ->  | M33: =IF(K7=0,$C$33,"") ->  | N33: =IF(K18=0,$A$33,"") ->  | O33: =IF(K18=0,$C$33,"") -> 
A34: RAID non Configurato (1-8 HDDs) | B34: 1 | C34: ="" ->  | D34: =IF($G$7=0,A34,"") -> RAID non Configurato (1-8 HDDs) | E34: =IF($G$7=0,C34,"") ->  | F34: =IF($G$18=0,A34,"") -> RAID non Configurato (1-8 HDDs) | G34: =IF($G$18=0,C34,"") ->  | H34: =IF(I7=0,$A$34,"") ->  | I34: =IF(I7=0,$C$34,"") ->  | J34: =IF(I18=0,$A$34,"") ->  | K34: =IF(I18=0,$C$34,"") ->  | L34: =IF(K7=0,$A$34,"") ->  | M34: =IF(K7=0,$C$34,"") ->  | N34: =IF(K18=0,$A$34,"") ->  | O34: =IF(K18=0,$C$34,"") -> 
A35: RAID 0 (1-8 HDDs) | B35: 1 | C35: ="" ->  | D35: =IF($G$7=0,A35,"") -> RAID 0 (1-8 HDDs) | E35: =IF($G$7=0,C35,"") ->  | F35: =IF($G$18=0,A35,"") -> RAID 0 (1-8 HDDs) | G35: =IF($G$18=0,C35,"") ->  | H35: =IF(I7=0,$A$35,"") ->  | I35: =IF(I7=0,$C$35,"") ->  | J35: =IF(I18=0,$A$35,"") ->  | K35: =IF(I18=0,$C$35,"") ->  | L35: =IF(K7=0,$A$35,"") ->  | M35: =IF(K7=0,$C$35,"") ->  | N35: =IF(K18=0,$A$35,"") ->  | O35: =IF(K18=0,$C$35,"") -> 
A36: RAID 1 (2 HDDs) | B36: 1 | C36: ="" ->  | D36: =IF($B$7+$B$8-$G$7=2,A36,"") ->  | E36: =IF($B$7+$B$8-$G$7=2,C36,"") ->  | F36: =IF($B$18-$G$18=2,A36,"") ->  | G36: =IF($B$18-$G$18=2,C36,"") ->  | H36: =IF($C$7+$C$8-I7=2,$A$36,"") ->  | I36: =IF($C$7+$C$8-I7=2,$C$36,"") ->  | J36: =IF($C$18-I18=2,A36,"") ->  | K36: =IF($C$18-I18=2,$C$36,"") ->  | L36: =IF($C$7+$C$8-K7=2,$A$36,"") ->  | M36: =IF($C$7+$C$8-K7=2,$C$36,"") ->  | N36: =IF($C$18-M18=2,E36,"") ->  | O36: =IF($D$18-K18=2,$C$36,"") -> 
A37: RAID 5 (da 3 a 10 HDDs) | B37: 1 | C37: ="" ->  | D37: =IF($B$7+$B$8-$G$7>=3,A37,"") ->  | E37: =IF($B$7+$B$8-$G$7>=3,C37,"") ->  | F37: =IF($B$18-$G$18>=3,A37,"") ->  | G37: =IF($B$18-$G$18>=3,C37,"") ->  | H37: =IF($C$7+$C$8-I7>=3,$A$37,"") ->  | I37: =IF($C$7+$C$8-I7>=3,$C$37,"") ->  | J37: =IF($C$18-I18>=3,$A$37,"") ->  | K37: =IF($C$18-I18>=3,$C$37,"") ->  | L37: =IF($D$7+$D$8-K7>=3,$A$37,"") ->  | M37: =IF($D$7+$D$8-K7>=3,$C$37,"") ->  | N37: =IF($D$18-K18>=3,$A$37,"") ->  | O37: =IF($D$18-K18>=3,$C$37,"") -> 
A38: RAID 10 (4-8 HDDs in pairs) | B38: 1 | C38: ="" ->  | D38: =IF($B$7+$B$8-$G$7=4,A38,"") ->  | E38: =IF($B$7+$B$8-$G$7=4,C38,"") ->  | F38: =IF($B$18-$G$18=4,A38,"") ->  | G38: =IF($B$18-$G$18=4,C38,"") ->  | H38: =IF($C$7+$C$8-I7=4,$A$38,"") ->  | I38: =IF($C$7+$C$8-I7=4,$C$38,"") ->  | J38: =IF($C$18-I18=4,$A$38,"") ->  | K38: =IF($C$18-I18=4,$C$38,"") ->  | L38: =IF($D$7+$D$8-K7=4,$A$38,"") ->  | M38: =IF($D$7+$D$8-K7=4,$C$38,"") ->  | N38: =IF($D$18-K18=4,$A$38,"") ->  | O38: =IF($D$18-K18=4,$C$38,"") -> 
A39: RAID 1+RAID 1 (2 + 2 HDDs) | B39: 1 | C39: ="" ->  | D39: =IF($B$7+$B$8-$G$7=4,A39,"") ->  | E39: =IF($B$7+$B$8-$G$7=4,C39,"") ->  | F39: =IF($B$18-$G$18=4,A39,"") ->  | G39: =IF($B$18-$G$18=4,C39,"") ->  | H39: =IF($C$7+$C$8-I7=4,$A$39,"") ->  | I39: =IF($C$7+$C$8-I7=4,$C$39,"") ->  | J39: =IF($C$18-I18=4,A39,"") ->  | K39: =IF($C$18-I18=4,$C$39,"") ->  | L39: =IF($D$7+$D$8-K7=4,$A$39,"") ->  | M39: =IF($D$7+$D$8-K7=4,$C$39,"") ->  | N39: =IF($D$18-K18=4,A39,"") ->  | O39: =IF($D$18-K18=4,$C$39,"") -> 
A40: RAID 1+RAID 5 (2 + 3-8 HDDs) | B40: 1 | C40: ="" ->  | D40: =IF($B$7+$B$8-$G$7>=5,A40,"") ->  | E40: =IF($B$7+$B$8-$G$7>=5,C40,"") ->  | F40: =IF($B$18-$G$18>=5,A40,"") ->  | G40: =IF($B$18-$G$18>=5,C40,"") ->  | H40: =IF($C$7+$C$8-I7>=5,$A$40,"") ->  | I40: =IF($C$7+$C$8-I7>=5,$C$40,"") ->  | J40: =IF($C$18-I18>=5,$A$40,"") ->  | K40: =IF($C$18-I18>=5,$C$40,"") ->  | L40: =IF($D$7+$D$8-K7>=5,$A$40,"") ->  | M40: =IF($D$7+$D$8-K7>=5,$C$40,"") ->  | N40: =IF($D$18-K18>=5,$A$40,"") ->  | O40: =IF($D$18-K18>=5,$C$40,"") -> 
A41: RAID 1 + RAID 10 (2 + 4 HDDs in pairs) | B41: 1 | C41: ="" ->  | D41: =IF($B$7+$B$8-$G$7=6,A41,"") ->  | E41: =IF($B$7+$B$8-$G$7=6,C41,"") ->  | F41: =IF($B$18-$G$18=6,A41,"") ->  | G41: =IF($B$18-$G$18=6,C41,"") ->  | H41: =IF($C$7+$C$8-I7=6,$A$41,"") ->  | I41: =IF($C$7+$C$8-I7=6,$C$41,"") ->  | J41: =IF($C$18-I18=6,A41,"") ->  | K41: =IF($C$18-I18=6,$C$41,"") ->  | L41: =IF($D$7+$D$8-M7=6,$A$41,"") ->  | M41: =IF($D$7+$D$8-M7=6,$C$41,"") ->  | N41: =IF($D$18-K18=6,A41,"") ->  | O41: =IF($D$18-K18=6,$C$41,"") -> 
A43: R730xd
A44: HP 300GB 12G SAS 15K 2.5in SC ENT HDD | C44: 10L2-HDD300GB | D44: S10L2-DL580-HDD300 | E44: 759208-B21 | F44: 140
A48: HP 1TB 6G SAS 7.2K 2.5in SC MDL HDD | C48: 10L2-HDD1TB | D48: S10L2-DL580-HDD1000 | E48: 652749-B21 | F48: 278
B49: =#REF! ->  | C49: =#REF! ->  | D49: =#REF! -> 
A50: HDD max | B50: 10 | C50: 10 | D50: 10
A51: HDD 300GB Base | B51: 2 | C51: 2 | D51: 2
A52: Hot Spare for 300GB HDD | B52: =IF(B49="Yes",1,0) ->  | C52: =IF(C49="Yes",1,0) ->  | D52: =IF(D49="Yes",1,0) -> 
A53: HDD 300GB Selected | B53: =#REF! ->  | C53: =#REF! ->  | D53: =#REF! -> 
A54: HP 300GB 12G SAS 15K 2.5in SC ENT HDD | B54: 0 | C54: 0 | D54: 0
B55: 1 | C55: 1 | D55: 1
B56: 2 | C56: 2 | D56: 2
B57: 3 | C57: 3 | D57: 3
B58: 4 | C58: 4 | D58: 4
B59: 5 | C59: 5 | D59: 5
B60: 6 | C60: 6 | D60: 6
B61: 7 | C61: 7 | D61: 7
B62: 8 | C62: 8 | D62: 8
B69: =#REF! ->  | C69: =#REF! ->  | D69: =#REF! -> 
A70: HDD max | B70: 10 | C70: 10 | D70: 10
A71: HDD 300GB | B71: =B51+B53 ->  | C71: =C51+C53 ->  | D71: =D51+D53 -> 
A72: Hot Spare for 1TB HDD | B72: =IF(B69="Yes",1,0) ->  | C72: =IF(C69="Yes",1,0) ->  | D72: =IF(D69="Yes",1,0) -> 
A73: HDD 1TB Selected | B73: =#REF! ->  | C73: =#REF! ->  | D73: =#REF! -> 
A74: HP 1TB 6G SAS 7.2K 2.5in SC MDL HDD | B74: =$B$70-$B$71-$B$73 ->  | C74: =$C$70-$C$71-$C$73 ->  | D74: =$D$70-$D$71-$D$73 -> 
B75: =IF(B74-1<1,0,B74-1) ->  | D75: =IF(D74-1<1,0,D74-1) -> 
A92: RAID Configuration | D92: HDD 300GB R730xd | F92: HDD 1TB R730xd | H92: HDD 300GB R730xd 2 | J92: HDD 1TB R730xd 2 | L92: HDD 300GB R730xd 3 | N92: HDD 1TB R730xd 3
A93: RAID Personalizzato | B93: =IF($B$109<=8,0,"") -> 0 | C93: [780-BBJC] | D93: =IF($B$52=0,A93,"") ->  | E93: =IF($B$52=0,C93,"") ->  | F93: =IF($B$72=0,A93,"") ->  | G93: =IF($B$72=0,C93,"") ->  | H93: =IF($C$52=0,A93,"") ->  | I93: =IF($C$52=0,C93,"") ->  | J93: =IF($C$72=0,A93,"") ->  | K93: =IF($C$72=0,C93,"") ->  | L93: =IF($D$52=0,A93,"") ->  | M93: =IF($D$52=0,C93,"") ->  | N93: =IF($D$72=0,A93,"") ->  | O93: =IF($D$72=0,C93,"") -> 
A94: RAID non Configurato (1-8 HDDs) | B94: 1 | C94: [780-BBJD] | D94: =IF($B$52=0,A94,"") ->  | E94: =IF($B$52=0,C94,"") ->  | F94: =IF($B$72=0,A94,"") ->  | G94: =IF($B$72=0,C94,"") ->  | H94: =IF($C$52=0,A94,"") ->  | I94: =IF($C$52=0,C94,"") ->  | J94: =IF($C$72=0,A94,"") ->  | K94: =IF($C$72=0,C94,"") ->  | L94: =IF($D$52=0,A94,"") ->  | M94: =IF($D$52=0,C94,"") ->  | N94: =IF($D$72=0,A94,"") ->  | O94: =IF($D$72=0,C94,"") -> 
A95: RAID 0 (1-8 HDDs) | B95: 1 | C95: [780-BBJF] | D95: =IF($B$52=0,A95,"") ->  | E95: =IF($B$52=0,C95,"") ->  | F95: =IF($B$72=0,A95,"") ->  | G95: =IF($B$72=0,C95,"") ->  | H95: =IF($C$52=0,A95,"") ->  | I95: =IF($C$52=0,C95,"") ->  | J95: =IF($C$72=0,A95,"") ->  | K95: =IF($C$72=0,C95,"") ->  | L95: =IF($D$52=0,A95,"") ->  | M95: =IF($D$52=0,C95,"") ->  | N95: =IF($D$72=0,A95,"") ->  | O95: =IF($D$72=0,C95,"") -> 
A96: RAID 1 (2 HDDs) | B96: 1 | C96: [780-BBJK] | D96: =IF($B$51+$B$53-$B$52=2,A96,"") ->  | E96: =IF($B$51+$B$53-$B$52=2,C96,"") ->  | F96: =IF($B$73-$B$72=2,A96,"") ->  | G96: =IF($B$73-$B$72=2,C96,"") ->  | H96: =IF($C$51+$C$53-$C$52=2,A96,"") ->  | I96: =IF($C$51+$C$53-$C$52=2,C96,"") ->  | J96: =IF($C$73-$C$72=2,A96,"") ->  | K96: =IF($C$73-$C$72=2,C96,"") ->  | L96: =IF($D$51+$D$53-$D$52=2,A96,"") ->  | M96: =IF($D$51+$D$53-$D$52=2,C96,"") ->  | N96: =IF($D$73-$D$72=2,A96,"") ->  | O96: =IF($D$73-$D$72=2,C96,"") -> 
A97: RAID 5 (da 3 a 10 HDDs) | B97: 1 | C97: [780-BBJL] | D97: =IF($B$51+$B$53-$B$52>=3,A97,"") ->  | E97: =IF($B$51+$B$53-$B$52>=3,C97,"") ->  | F97: =IF($B$73-$B$72>=3,A97,"") ->  | G97: =IF($B$73-$B$72>=3,C97,"") ->  | H97: =IF($C$51+$C$53-$C$52>=3,A97,"") ->  | I97: =IF($C$51+$C$53-$C$52>=3,C97,"") ->  | J97: =IF($C$73-$C$72>=3,A97,"") ->  | K97: =IF($C$73-$C$72>=3,C97,"") ->  | L97: =IF($D$51+$D$53-$D$52>=3,A97,"") ->  | M97: =IF($D$51+$D$53-$D$52>=3,C97,"") ->  | N97: =IF($D$73-$D$72>=3,A97,"") ->  | O97: =IF($D$73-$D$72>=3,C97,"") -> 
A98: RAID 10 (4-8 HDDs in pairs) | B98: 1 | C98: [780-BBJN] | D98: =IF($B$51+$B$53-$B$52=4,A98,"") ->  | E98: =IF($B$51+$B$53-$B$52=4,C98,"") ->  | F98: =IF($B$73-$B$72=4,A98,"") ->  | G98: =IF($B$73-$B$72=4,C98,"") ->  | H98: =IF($C$51+$C$53-$C$52=4,A98,"") ->  | I98: =IF($C$51+$C$53-$C$52=4,C98,"") ->  | J98: =IF($C$73-$C$72=4,A98,"") ->  | K98: =IF($C$73-$C$72=4,C98,"") ->  | L98: =IF($D$51+$D$53-$D$52=4,A98,"") ->  | M98: =IF($D$51+$D$53-$D$52=4,C98,"") ->  | N98: =IF($D$73-$D$72=4,A98,"") ->  | O98: =IF($D$73-$D$72=4,C98,"") -> 
A99: RAID 1+RAID 1 (2 + 2 HDDs) | B99: 1 | C99: [780-BBJO] | D99: =IF($B$51+$B$53-$B$52=4,A99,"") ->  | E99: =IF($B$51+$B$53-$B$52=4,C99,"") ->  | F99: =IF($B$73-$B$72=4,A99,"") ->  | G99: =IF($B$73-$B$72=4,C99,"") ->  | H99: =IF($C$51+$C$53-$C$52=4,A99,"") ->  | I99: =IF($C$51+$C$53-$C$52=4,C99,"") ->  | J99: =IF($C$73-$C$72=4,A99,"") ->  | K99: =IF($C$73-$C$72=4,C99,"") ->  | L99: =IF($D$51+$D$53-$D$52=4,A99,"") ->  | M99: =IF($D$51+$D$53-$D$52=4,C99,"") ->  | N99: =IF($D$73-$D$72=4,A99,"") ->  | O99: =IF($D$73-$D$72=4,C99,"") -> 
A100: RAID 1+RAID 5 (2 + 3-8 HDDs) | B100: 1 | C100: [780-BBJP] | D100: =IF($B$51+$B$53-$B$52>=5,A100,"") ->  | E100: =IF($B$51+$B$53-$B$52>=5,C100,"") ->  | F100: =IF($B$73-$B$72>=5,A100,"") ->  | G100: =IF($B$73-$B$72>=5,C100,"") ->  | H100: =IF($C$51+$C$53-$C$52>=5,A100,"") ->  | I100: =IF($C$51+$C$53-$C$52>=5,C100,"") ->  | J100: =IF($C$73-$C$72>=5,A100,"") ->  | K100: =IF($C$73-$C$72>=5,C100,"") ->  | L100: =IF($D$51+$D$53-$D$52>=5,A100,"") ->  | M100: =IF($D$51+$D$53-$D$52>=5,C100,"") ->  | N100: =IF($D$73-$D$72>=5,A100,"") ->  | O100: =IF($D$73-$D$72>=5,C100,"") -> 
A101: RAID 1 + RAID 10 (2 + 4 HDDs in pairs) | B101: 1 | C101: [780-BBJQ] | D101: =IF($B$51+$B$53-$B$52=6,A101,"") ->  | E101: =IF($B$51+$B$53-$B$52=6,C101,"") ->  | F101: =IF($B$73-$B$72=6,A101,"") ->  | G101: =IF($B$73-$B$72=6,C101,"") ->  | H101: =IF($C$51+$C$53-$C$52=6,A101,"") ->  | I101: =IF($C$51+$C$53-$C$52=6,C101,"") ->  | J101: =IF($C$73-$C$72=6,A101,"") ->  | K101: =IF($C$73-$C$72=6,C101,"") ->  | L101: =IF($D$51+$D$53-$D$52=6,A101,"") ->  | M101: =IF($D$51+$D$53-$D$52=6,C101,"") ->  | N101: =IF($D$73-$D$72=6,A101,"") ->  | O101: =IF($D$73-$D$72=6,C101,"") -> 
A108: T630
A109: 300GB 10K RPM SAS 12Gbps 2.5in Hot-plug Hard Drive,CusKit | C109: 10L1-HDD300GB-T | D109: S10L1-T630-HDD300 | E109: [400-AJOQ] | F109: 91
A110: 1TB 7.2K RPM NLSAS 6Gbps 2.5in Hot-plug Hard Drive,13G,CusKit | C110: 10L1-HDD1TB | D110: S10L1-T630-HDD1000 | E110: [400-AEFF] | F110: 296
A112: HDD max | B112: 32
A113: HDD 300GB Base | B113: 2
A114: HDD 300GB Selected | B114: =#REF! -> 
A115: 300GB 10K RPM SAS 12Gbps 2.5in Hot-plug Hard Drive,CusKit | B115: 0 | D115: Hot Spare for 300GB HDD | E115: =#REF! ->  | F115: =IF(E115="Yes",1,0) -> 
B116: 1
B117: 2
B118: 3
B119: 4
B120: 5
B121: 6
B122: 7
B123: 8
B124: 9
B125: 10
B126: 11
B127: 12
B128: 13
B129: 14
B130: 15
B131: 16
B132: 17
B133: 18
B134: 19
B135: 20
B136: 21
B137: 22
B138: 23
B139: 24
B140: 25
B141: 26
B142: 27
B143: 28
B144: 29
B145: 30
A146: HDD max | B146: 32
A147: HDD 300GB | B147: =B113+B114 -> 
A148: HDD 1TB Selected | B148: =#REF! ->  | D148: Hot Spare for 1TB HDD | E148: =#REF! ->  | F148: =IF(E148="Yes",1,0) -> 
A149: 1TB 7.2K RPM NLSAS 6Gbps 2.5in Hot-plug Hard Drive,13G,CusKit | B149: =$B$146-$B$147-$B$148 -> 
B150: =IF(B149-1<1,0,B149-1) -> 
B158: =IF(B157-1<1,0,B157-1) -> 
A181: RAID Configuration | D181: HDD 300GB | F181: HDD 1TB
A182: C1 - No RAID for H330 (1-8 HDDs) | B182: =IF($B$109<=8,0,"") -> 0 | C182: [780-BBJC] | D182: =IF($F$115=0,A182,"") ->  | E182: =IF($F$115=0,C182,"") ->  | F182: =IF($F$148=0,A182,"") ->  | G182: =IF($F$148=0,C182,"") -> 
A183: C10 - Unconfigured RAID for H330 (1-8 HDDs) | B183: 1 | C183: [780-BBJD] | D183: =IF($F$115=0,A183,"") ->  | E183: =IF($F$115=0,C183,"") ->  | F183: =IF($F$148=0,A183,"") ->  | G183: =IF($F$148=0,C183,"") -> 
A184: C2 - RAID 0 for H330 (1-8 HDDs) | B184: 1 | C184: [780-BBJF] | D184: =IF($F$115=0,A184,"") ->  | E184: =IF($F$115=0,C184,"") ->  | F184: =IF($F$148=0,A184,"") ->  | G184: =IF($F$148=0,C184,"") -> 
A185: C3 - RAID 1 for H330 (2 HDDs) | B185: 1 | C185: [780-BBJK] | D185: =IF($B$113+$B$114-$F$115=2,A185,"") ->  | E185: =IF($B$113+$B$114-$F$115=2,C185,"") ->  | F185: =IF($B$148-$F$148=2,A185,"") ->  | G185: =IF($B$148-$F$148=2,C185,"") -> 
A186: C4 - RAID 5 for H330 (3-8 HDDs) | B186: 1 | C186: [780-BBJL] | D186: =IF($B$113+$B$114-$F$115>=3,A186,"") ->  | E186: =IF($B$113+$B$114-$F$115>=3,C186,"") ->  | F186: =IF($B$148-$F$148>=3,A186,"") ->  | G186: =IF($B$148-$F$148>=3,C186,"") -> 
A187: C6 - RAID 10 forH330 (4-8 HDDs in pairs) | B187: 1 | C187: [780-BBJN] | D187: =IF($B$113+$B$114-$F$115=4,A187,"") ->  | E187: =IF($B$113+$B$114-$F$115=4,C187,"") ->  | F187: =IF($B$148-$F$148=4,A187,"") ->  | G187: =IF($B$148-$F$148=4,C187,"") -> 
A188: C7 - RAID 1+RAID 1 for H330 (2 + 2 HDDs) | B188: 1 | C188: [780-BBJO] | D188: =IF($B$113+$B$114-$F$115=4,A188,"") ->  | E188: =IF($B$113+$B$114-$F$115=4,C188,"") ->  | F188: =IF($B$148-$F$148=4,A188,"") ->  | G188: =IF($B$148-$F$148=4,C188,"") -> 
A189: C8 - RAID 1+RAID 5 for H330 (2 + 3-8 HDDs) | B189: 1 | C189: [780-BBJP] | D189: =IF($B$113+$B$114-$F$115>=5,A189,"") ->  | E189: =IF($B$113+$B$114-$F$115>=5,C189,"") ->  | F189: =IF($B$148-$F$148>=5,A189,"") ->  | G189: =IF($B$148-$F$148>=5,C189,"") -> 
A190: C9 - RAID 1+RAID 10 for H330 (2 + 4 HDDs in pairs) | B190: 1 | C190: [780-BBJQ] | D190: =IF($B$113+$B$114-$F$115=6,A190,"") ->  | E190: =IF($B$113+$B$114-$F$115=6,C190,"") ->  | F190: =IF($B$148-$F$148=6,A190,"") ->  | G190: =IF($B$148-$F$148=6,C190,"") -> 

Sheet Servizi Opzionali (hidden)
A1: Warranty Upgrades | G1: Protezione dei dati - Keep Your Hard Drive
A2: DL560
A3: None | B3: ="" ->  | C3: ="" ->  | D3: ="" ->  | E3: ="" ->  | F3: ="" ->  | I3: =IF(($A$22=$A$12),"",IF($A$8=$A$3,I13,IF($A$8=$A$4,I14,IF($A$8=$A$5,I15)))) ->  | J3: =IF(($A$22=$A$12),"",IF($A$8=$A$3,J13,IF($A$8=$A$4,J14,IF($A$8=$A$5,J15)))) ->  | K3: =IF(($A$22=$A$12),"",IF($A$8=$A$3,K13,IF($A$8=$A$4,K14,IF($A$8=$A$5,K15)))) ->  | L3: =IF(($A$22=$A$12),"",IF($A$8=$A$3,L13,IF($A$8=$A$4,L14,IF($A$8=$A$5,L15)))) ->  | M3: =IF(($A$22=$A$12),"",IF($A$8=$A$3,M13,IF($A$8=$A$4,M14,IF($A$8=$A$5,M15)))) -> 
A4: 4Yr Warranty upgrade | B4: 1 | C4: 10L2-SO-12M | D4: S10L2-DL560-S-12M | E4: ="" ->  | F4: 350
A5: 5Yr Warranty upgrade | B5: 1 | C5: 10L2-SO-24M | D5: S10L2-DL560-S-24M | E5: ="" ->  | F5: 700
A7: Estensione Garanzia Selezionata
A8: ='Lotto5 DL560 Gen10 1'!$B$218 -> None | C8: DL560
A9: =#REF! ->  | C9: DL560 2
A10: =#REF! ->  | C10: DL560 3
A12: None | B12: ="" ->  | C12: ="" ->  | D12: ="" ->  | E12: ="" ->  | F12: ="" ->  | H12: None
A13: =IF($A$8=$A$3,H13,IF($A$8=$A$4,H14,IF($A$8=$A$5,H15))) -> 3Yr Data Protection - Keep Your Hard Drive | B13: 1 | C13: 10L2-SO-HDD | D13: S10L2-DL560-S-HDD | E13: =IF($A$8=$A$3,L13,IF($A$8=$A$4,L14,IF($A$8=$A$5,L15))) ->  | F13: 300 | H13: 3Yr Data Protection - Keep Your Hard Drive | I13: 1 | J13: 10L2-SO-HDD | K13: S10L2-DL560-S-HDD | L13: ="" ->  | M13: 300
A14: None | B14: ="" ->  | C14: ="" ->  | D14: ="" ->  | E14: ="" ->  | F14: ="" ->  | H14: 4Yr Data Protection - Keep Your Hard Drive | I14: =I13 -> 1 | J14: =J13 -> 10L2-SO-HDD | K14: =K13 -> S10L2-DL560-S-HDD | L14: ="" ->  | M14: =M13 -> 300
A15: =IF(A9=A3,H13,IF(A9=A4,H14,IF(A9=A5,H15))) ->  | B15: 1 | C15: 10L2-SO-HDD | D15: S10L2-DL560-S-HDD | E15: =IF(A9=A3,L13,IF(A9=A4,L14,IF(A9=A5,L15))) ->  | F15: 300 | H15: 5Yr Data Protection - Keep Your Hard Drive | I15: =I13 -> 1 | J15: =J13 -> 10L2-SO-HDD | K15: =K13 -> S10L2-DL560-S-HDD | L15: ="" ->  | M15: =M13 -> 300
A16: None | B16: ="" ->  | C16: ="" ->  | D16: ="" ->  | E16: ="" ->  | F16: ="" -> 
A17: =IF(A10=A3,H13,IF(A10=A4,H14,IF(A10=A5,H15))) ->  | B17: 1 | C17: 10L2-SO-HDD | D17: S10L2-DL560-S-HDD | E17: =IF(A10=A3,L13,IF(A10=A4,L14,IF(A10=A5,L15))) ->  | F17: 300
A21: Protezione dei dati Selezionata
A22: ='Lotto5 DL560 Gen10 1'!B221 -> None
A24: Servizio Specialistico di System and Network Management per sistema opertivo Windows, erogato on site. | B24: 1 | C24: 10L2-SO-WIN | D24: S10L1-R630-S-WIN | F24: 200
A25: Servizio Specialistico di System and Network Management per sistema opertivo Linux, erogato on site. | B25: 1 | C25: 10L2-SO-LINUX | D25: S10L1-R630-S-LINUX | F25: 200
A27: None | B27: ="" ->  | C27: ="" ->  | D27: ="" ->  | E27: ="" ->  | F27: ="" -> 
A28: =IF('Lotto5 DL560 Gen10 1'!$C$16>=5,H28,"None") -> None | B28: =IF('Lotto5 DL560 Gen10 1'!$C$16>=5,I28,"") ->  | C28: =IF('Lotto5 DL560 Gen10 1'!$C$16>=5,J28,"") ->  | D28: =IF('Lotto5 DL560 Gen10 1'!$C$16>=5,K28,"") ->  | E28: =IF('Lotto5 DL560 Gen10 1'!$C$16>=5,L28,"") ->  | F28: =IF('Lotto5 DL560 Gen10 1'!$C$16>=5,M28,"") ->  | H28: Servizi di manutenzione preventiva | I28: 1 | J28: 10L1-SO-PREV | K28: S10L1-T630-S-PREV | M28: 200
A30: Warranty Upgrades | G30: Protezione dei dati - Keep Your Hard Drive
A31: DL580
A32: None | B32: ="" ->  | C32: ="" ->  | D32: ="" ->  | E32: ="" ->  | F32: ="" ->  | I32: =IF(($A$22=$A$12),"",IF($A$8=$A$3,I42,IF($A$8=$A$4,I43,IF($A$8=$A$5,I44)))) ->  | J32: =IF(($A$22=$A$12),"",IF($A$8=$A$3,J42,IF($A$8=$A$4,J43,IF($A$8=$A$5,J44)))) ->  | K32: =IF(($A$22=$A$12),"",IF($A$8=$A$3,K42,IF($A$8=$A$4,K43,IF($A$8=$A$5,K44)))) ->  | L32: =IF(($A$22=$A$12),"",IF($A$8=$A$3,L42,IF($A$8=$A$4,L43,IF($A$8=$A$5,L44)))) ->  | M32: =IF(($A$22=$A$12),"",IF($A$8=$A$3,M42,IF($A$8=$A$4,M43,IF($A$8=$A$5,M44)))) -> 
A33: Estensione della manutenzione in garanzia per ulteriori 12 mesi | B33: 1 | C33: TS2L5-4Y | D33: TS2L5-4Y | E33: HA537A1 | F33: 300
A34: Estensione della manutenzione in garanzia per ulteriori 24 mesi | B34: 1 | C34: TS2L5-5Y | D34: TS2L5-5Y | E34: HA538A1 | F34: 600
A36: Estensione Garanzia Selezionata
A37: =#REF! ->  | C37: DL580
A38: =#REF! ->  | C38: DL580 2
A39: =#REF! ->  | C39: DL580 3
A41: None | B41: ="" ->  | C41: ="" ->  | D41: ="" ->  | E41: ="" ->  | F41: ="" ->  | H41: None
A42: =IF($A$37=$A$32,H42,IF($A$37=$A$33,H43,IF($A$37=$A$34,H44))) ->  | B42: 1 | C42: 10L2-SO-HDD | D42: S10L2-DL580-S-HDD | E42: =IF($A$37=$A$32,L42,IF($A$37=$A$33,L43,IF($A$37=$A$34,L44))) ->  | F42: 300 | H42: 3Yr Data Protection - Keep Your Hard Drive | I42: 1 | J42: 10L2-SO-HDD | K42: S10L2-DL580-S-HDD | L42: [733-10057] | M42: 300
A43: None | B43: ="" ->  | C43: ="" ->  | D43: ="" ->  | E43: ="" ->  | F43: ="" ->  | H43: 4Yr Data Protection - Keep Your Hard Drive | I43: =I42 -> 1 | J43: =J42 -> 10L2-SO-HDD | K43: =K42 -> S10L2-DL580-S-HDD | L43: [733-10058] | M43: =M42 -> 300
A44: =IF(A38=A32,H42,IF(A38=A33,H43,IF(A38=A34,H44))) ->  | B44: 1 | C44: 10L2-SO-HDD | D44: S10L2-DL580-S-HDD | E44: =IF(A38=A32,L42,IF(A38=A33,L43,IF(A38=A34,L44))) ->  | F44: 300 | H44: 5Yr Data Protection - Keep Your Hard Drive | I44: =I42 -> 1 | J44: =J42 -> 10L2-SO-HDD | K44: =K42 -> S10L2-DL580-S-HDD | L44: [733-10059] | M44: =M42 -> 300
A45: None | B45: ="" ->  | C45: ="" ->  | D45: ="" ->  | E45: ="" ->  | F45: ="" -> 
A46: =IF(A39=A32,H42,IF(A39=A33,H43,IF(A39=A34,H44))) ->  | B46: 1 | C46: 10L2-SO-HDD | D46: S10L2-DL580-S-HDD | E46: =IF(A39=A32,L42,IF(A39=A33,L43,IF(A39=A34,L44))) ->  | F46: 300
A50: Protezione dei dati Selezionata
A51: =#REF! -> 
A53: Servizio Specialistico di System and Network Management per sistema opertivo Windows, erogato on site. | B53: 1 | C53: 10L2-SO-WIN | D53: S10L1-R730xd-S-WIN | F53: 200
A54: Servizio Specialistico di System and Network Management per sistema opertivo Linux, erogato on site. | B54: 1 | C54: 10L2-SO-LINUX | D54: S10L1-R730xd-S-LINUX | F54: 200
A56: None | B56: ="" ->  | C56: ="" ->  | D56: ="" ->  | E56: ="" ->  | F56: ="" -> 
A57: =IF(#REF!>=5,H57,"None") ->  | B57: =IF(#REF!>=5,I57,"") ->  | C57: =IF(#REF!>=5,J57,"") ->  | D57: =IF(#REF!>=5,K57,"") ->  | E57: =IF(#REF!>=5,L57,"") ->  | F57: =IF(#REF!>=5,M57,"") ->  | H57: Servizi di manutenzione preventiva | I57: 1 | J57: 10L2-SO-PREV | K57: S10L2-DL580-S-PREV | M57: 200
A60: Warranty Upgrades | G60: Protezione dei dati - Keep Your Hard Drive
A61: T630
A62: None | B62: ="" ->  | C62: ="" ->  | D62: ="" ->  | E62: ="" ->  | F62: ="" ->  | I62: =IF(($A$22=$A$12),"",IF($A$8=$A$3,I70,IF($A$8=$A$4,I71,IF($A$8=$A$5,I72)))) ->  | J62: =IF(($A$22=$A$12),"",IF($A$8=$A$3,J70,IF($A$8=$A$4,J71,IF($A$8=$A$5,J72)))) ->  | K62: =IF(($A$22=$A$12),"",IF($A$8=$A$3,K70,IF($A$8=$A$4,K71,IF($A$8=$A$5,K72)))) ->  | L62: =IF(($A$22=$A$12),"",IF($A$8=$A$3,L70,IF($A$8=$A$4,L71,IF($A$8=$A$5,L72)))) ->  | M62: =IF(($A$22=$A$12),"",IF($A$8=$A$3,M70,IF($A$8=$A$4,M71,IF($A$8=$A$5,M72)))) -> 
A63: 4Yr Warranty upgrade | B63: 1 | C63: 10L1-SO-12M-T | D63: S10L1-T630-S-12M | E63: ="" ->  | F63: 175
A64: 5Yr Warranty upgrade | B64: 1 | C64: 10L1-SO-24M-T | D64: S10L1-T630-S-24M | E64: ="" ->  | F64: 350
A66: Estensione Garanzia Selezionata
A67: =#REF! -> 
A69: None | B69: ="" ->  | C69: ="" ->  | D69: ="" ->  | E69: ="" ->  | F69: ="" ->  | H69: None
A70: =IF($A$67=$A$62,H70,IF($A$67=$A$63,H71,IF($A$67=$A$64,H72))) ->  | B70: 1 | C70: 10L1-SO-HDD | D70: S10L1-T630-S-HDD | E70: =IF($A$67=$A$62,L70,IF($A$67=$A$63,L71,IF($A$67=$A$64,L72))) ->  | F70: 150 | H70: 3Yr Data Protection - Keep Your Hard Drive | I70: 1 | J70: 10L1-SO-HDD | K70: S10L1-T630-S-HDD | L70: [733-10057] | M70: 150
H71: 4Yr Data Protection - Keep Your Hard Drive | I71: =I70 -> 1 | J71: =J70 -> 10L1-SO-HDD | K71: =K70 -> S10L1-T630-S-HDD | L71: [733-10058] | M71: =M70 -> 150
H72: 5Yr Data Protection - Keep Your Hard Drive | I72: =I70 -> 1 | J72: =J70 -> 10L1-SO-HDD | K72: =K70 -> S10L1-T630-S-HDD | L72: [733-10059] | M72: =M70 -> 150
A74: Protezione dei dati Selezionata
A75: =#REF! -> 
A77: Servizio Specialistico di System and Network Management per sistema opertivo Windows, erogato on site. | B77: 1 | C77: 10L1-SO-WIN | D77: S10L1-T630-S-WIN | F77: 193
A78: Servizio Specialistico di System and Network Management per sistema opertivo Linux, erogato on site. | B78: 1 | C78: 10L1-SO-LINUX | D78: S10L1-T630-S-LINUX | F78: 193
A80: None | B80: ="" ->  | C80: ="" ->  | D80: ="" ->  | E80: ="" ->  | F80: ="" -> 
A81: =IF(#REF!>=5,H81,"None") ->  | B81: =IF(#REF!>=5,I81,"") ->  | C81: =IF(#REF!>=5,J81,"") ->  | D81: =IF(#REF!>=5,K81,"") ->  | E81: =IF(#REF!>=5,L81,"") ->  | F81: =IF(#REF!>=5,M81,"") ->  | H81: Servizi di manutenzione preventiva | I81: 1 | J81: 10L1-SO-PREV | K81: S10L1-T630-S-PREV | M81: 193
